Organisation Name (A),Department (B),Service Cat Label (C ),Purpose of Spend (D),Expenditure CIPFA Sub Group (E ),Supplier (F),Supplier Reference (G),Pay Date (H),Transaction Number (I),Net Amount (J),Grant to VCSE? (K),Charity Number (L),Card Transaction (M),Irrecoverable VAT (N)
Pendle Borough Council,Parks & Recreation Services,Transport Related Expense,Tprt : Repairs : General,3105,FST CONSUMABLES LIMITED,A0000004, 03/05/2018,PCO0287953,108.70,N,N/A,N,N/A
Pendle Borough Council,Parks & Recreation Services,Transport Related Expense,Tprt : Repairs : General,3105,BALMERS GM LIMITED,A0000198, 17/05/2018,PCO0288169,1.76,N,N/A,N,N/A
Pendle Borough Council,Parks & Recreation Services,Transport Related Expense,Tprt : Repairs : General,3105,BALMERS GM LIMITED,A0000198, 03/05/2018,PCO0287995,3.75,N,N/A,N,N/A
Pendle Borough Council,Parks & Recreation Services,Transport Related Expense,Tprt : Repairs : General,3105,BALMERS GM LIMITED,A0000198, 17/05/2018,PCO0288169,3.75,N,N/A,N,N/A
Pendle Borough Council,Parks & Recreation Services,Transport Related Expense,Tprt : Repairs : General,3105,BALMERS GM LIMITED,A0000198, 03/05/2018,PCO0287956,9.15,N,N/A,N,N/A
Pendle Borough Council,Parks & Recreation Services,Transport Related Expense,Tprt : Repairs : General,3105,BALMERS GM LIMITED,A0000198, 03/05/2018,PCO0287995,11.50,N,N/A,N,N/A
Pendle Borough Council,Parks & Recreation Services,Transport Related Expense,Tprt : Repairs : General,3105,BALMERS GM LIMITED,A0000198, 03/05/2018,PCO0288001,17.01,N,N/A,N,N/A
Pendle Borough Council,Parks & Recreation Services,Transport Related Expense,Tprt : Repairs : General,3105,BALMERS GM LIMITED,A0000198, 17/05/2018,PCO0288169,18.96,N,N/A,N,N/A
Pendle Borough Council,Parks & Recreation Services,Transport Related Expense,Tprt : Repairs : General,3105,BALMERS GM LIMITED,A0000198, 03/05/2018,PCO0287995,21.52,N,N/A,N,N/A
Pendle Borough Council,Parks & Recreation Services,Transport Related Expense,Tprt : Repairs : General,3105,BALMERS GM LIMITED,A0000198, 03/05/2018,PCO0287950,24.72,N,N/A,N,N/A
Pendle Borough Council,Parks & Recreation Services,Transport Related Expense,Tprt : Repairs : General,3105,BALMERS GM LIMITED,A0000198, 03/05/2018,PCO0288001,32.77,N,N/A,N,N/A
Pendle Borough Council,Parks & Recreation Services,Transport Related Expense,Tprt : Repairs : General,3105,BALMERS GM LIMITED,A0000198, 03/05/2018,PCO0287956,96.00,N,N/A,N,N/A
Pendle Borough Council,Parks & Recreation Services,Transport Related Expense,Tprt : Repairs : General,3105,BALMERS GM LIMITED,A0000198, 03/05/2018,PCO0287956,108.95,N,N/A,N,N/A
Pendle Borough Council,Parks & Recreation Services,Transport Related Expense,Tprt : Repairs : General,3105,BALMERS GM LIMITED,A0000198, 03/05/2018,PCO0287995,130.74,N,N/A,N,N/A
Pendle Borough Council,Parks & Recreation Services,Premises Related Expense,Grounds : R & M : Day to Day : Routine,2101,BARNES JB LIMITED,A0000202, 24/05/2018,PCO0288430,82.00,N,N/A,N,N/A
Pendle Borough Council,Parks & Recreation Services,Transport Related Expense,Tprt : Repairs : General,3105,BARNES JB LIMITED,A0000202, 24/05/2018,PCO0288426,36.44,N,N/A,N,N/A
Pendle Borough Council,Parks & Recreation Services,Transport Related Expense,Tprt : Repairs : General,3105,BARNES JB LIMITED,A0000202, 24/05/2018,PCO0288427,131.46,N,N/A,N,N/A
Pendle Borough Council,Economic Development & Tourism,Supplies and Services,EFM : Other Equipment,4003,BARNES JB LIMITED,A0000202, 03/05/2018,REG0287736,26.50,N,N/A,N,N/A
Pendle Borough Council,Operational Services,Supplies and Services,EFM Materials,4004,BARNES JB LIMITED,A0000202, 17/05/2018,OPS0288154,42.50,N,N/A,N,N/A
Pendle Borough Council,Financial Services,,Precept Parish & T Council,303,BARROWFORD PARISH COUNCIL,A0000239, 08/05/2018,AAS0288056,154200.00,N,N/A,N,N/A
Pendle Borough Council,Financial Services,Premises Related Expense,Rents,2301,BARROWFORD PARISH COUNCIL,A0000239, 03/05/2018,AAS0287911,50.00,N,N/A,N,N/A
Pendle Borough Council,Chief Executives Policy Unit,Supplies and Services,Other Expenses,4705,BLACKBURN/DARWEN BOROUGH COUNCIL,A0000381, 17/05/2018,COR0288144,1557.19,N,N/A,N,N/A
Pendle Borough Council,Chief Executives Policy Unit,Supplies and Services,Other Expenses,4705,BLACKBURN/DARWEN BOROUGH COUNCIL,A0000381, 17/05/2018,COR0288144,623.47,N,N/A,N,N/A
Pendle Borough Council,Chief Executives Policy Unit,Supplies and Services,Other Expenses,4705,BLACKBURN/DARWEN BOROUGH COUNCIL,A0000381, 17/05/2018,COR0288144,784.11,N,N/A,N,N/A
Pendle Borough Council,Chief Executives Policy Unit,Supplies and Services,Other Expenses,4705,BLACKBURN/DARWEN BOROUGH COUNCIL,A0000381, 17/05/2018,COR0288144,365.89,N,N/A,N,N/A
Pendle Borough Council,Parks & Recreation Services,Transport Related Expense,Tprt : Repairs : General,3105,BOC GASES LTD,A0000386, 17/05/2018,PCO0288176,18.65,N,N/A,N,N/A
Pendle Borough Council,Parks & Recreation Services,Premises Related Expense,Bldgs : R & M : Day To Day,2001,CB EXCAVATORS LTD,A0000396, 17/05/2018,PCO0288166,2158.00,N,N/A,N,N/A
Pendle Borough Council,Parks & Recreation Services,Premises Related Expense,Grounds : R & M : Day to Day : Routine,2101,CB EXCAVATORS LTD,A0000396, 24/05/2018,PCO0288421,690.00,N,N/A,N,N/A
Pendle Borough Council,Parks & Recreation Services,Premises Related Expense,Grounds : R & M : Day to Day : Routine,2101,CB EXCAVATORS LTD,A0000396, 17/05/2018,PCO0288165,2600.00,N,N/A,N,N/A
Pendle Borough Council,Parks & Recreation Services,Premises Related Expense,Grounds : R & M : Day to Day : Routine,2101,CB EXCAVATORS LTD,A0000396, 24/05/2018,PCO0288420,1438.00,N,N/A,N,N/A
Pendle Borough Council,Parks & Recreation Services,Premises Related Expense,Grounds : R & M : Day to Day : Routine,2101,CB EXCAVATORS LTD,A0000396, 24/05/2018,PCO0288421,795.00,N,N/A,N,N/A
Pendle Borough Council,Parks & Recreation Services,Premises Related Expense,Grounds : R & M : Day to Day : Routine,2101,CB EXCAVATORS LTD,A0000396, 24/05/2018,PCO0288420,2334.00,N,N/A,N,N/A
Pendle Borough Council,Parks & Recreation Services,Premises Related Expense,Grounds : R & M : Day to Day : Routine,2101,CB EXCAVATORS LTD,A0000396, 24/05/2018,PCO0288421,3670.00,N,N/A,N,N/A
Pendle Borough Council,Property Services,Premises Related Expense,Bldgs : R & M : Day To Day,2001,BARROWFORD SAFE & LOCK SERV LT,A0000458, 17/05/2018,EST0288247,70.08,N,N/A,N,N/A
Pendle Borough Council,Financial Services,Premises Related Expense,Rents,2301,BRIERFIELD TOWN COUNCIL,A0000469, 03/05/2018,AAS0287909,100.00,N,N/A,N,N/A
Pendle Borough Council,Democratic & Legal Services,Supplies and Services,Meeting Expenses,4610,BRIERFIELD TOWN COUNCIL,A0000469, 17/05/2018,DAL0288244,36.00,N,N/A,N,N/A
Pendle Borough Council,Financial Services,Premises Related Expense,Rents,2301,BELEVEDERE&CALDERVALE SPORT CLUB,A0000477, 03/05/2018,AAS0287915,100.00,N,N/A,N,N/A
Pendle Borough Council,Parks & Recreation Services,Transport Related Expense,Tprt : Annual Hire Charge,3601,R J CLOUGH & SON LTD,A0000567, 24/05/2018,PCO0288431,29.60,N,N/A,N,N/A
Pendle Borough Council,Operational Services,Transport Related Expense,Tprt : Annual Hire Charge,3601,CRAVEN VEHICLE SERVICES LIMITED,A0000572, 17/05/2018,OPS0288199,108.33,N,N/A,N,N/A
Pendle Borough Council,Operational Services,Transport Related Expense,Tprt : Annual Hire Charge,3601,CRAVEN VEHICLE SERVICES LIMITED,A0000572, 17/05/2018,OPS0288200,116.67,N,N/A,N,N/A
Pendle Borough Council,Operational Services,Transport Related Expense,Tprt : Annual Hire Charge,3601,CRAVEN VEHICLE SERVICES LIMITED,A0000572, 17/05/2018,OPS0288201,133.33,N,N/A,N,N/A
Pendle Borough Council,Operational Services,Transport Related Expense,Tprt : Annual Hire Charge,3601,CRAVEN VEHICLE SERVICES LIMITED,A0000572, 17/05/2018,OPS0288186,650.00,N,N/A,N,N/A
Pendle Borough Council,Operational Services,Transport Related Expense,Tprt : Annual Hire Charge,3601,CRAVEN VEHICLE SERVICES LIMITED,A0000572, 17/05/2018,OPS0288188,650.00,N,N/A,N,N/A
Pendle Borough Council,Environmental Health Services,Premises Related Expense,Bldgs : R & M : Abnormal,2002,MARTIN COLLINS JOINERY & GLAZING,A0000623, 03/05/2018,ENV0287997,126.00,N,N/A,N,N/A
Pendle Borough Council,Housing Regeneration Services,Supplies and Services,Other Expenses,4705,MARTIN COLLINS JOINERY & GLAZING,A0000623, 03/05/2018,HMR0287939,54.00,N,N/A,N,N/A
Pendle Borough Council,Planning & Building Control,Supplies and Services,Other Expenses,4705,MARTIN COLLINS JOINERY & GLAZING,A0000623, 03/05/2018,PBC0287924,58.00,N,N/A,N,N/A
Pendle Borough Council,Planning & Building Control,,Other Income : Non-VATable,9303,CAVALIER TAXIS,A0000638, 31/05/2018,PBC0288468,49.87,N,N/A,N,N/A
Pendle Borough Council,Planning & Building Control,,Other Income : Non-VATable,9303,CAVALIER TAXIS,A0000638, 03/05/2018,PBC0287992,66.50,N,N/A,N,N/A
Pendle Borough Council,Economic Development & Tourism,Supplies and Services,Miscellaneous : Other,4707,DEWHURST DECORATING SUPPLIES,A0000879, 17/05/2018,REG0288032,7.42,N,N/A,N,N/A
Pendle Borough Council,Property Services,Premises Related Expense,Bldgs : R & M : Day To Day,2001,J DRIVER LTD,A0000884, 17/05/2018,EST0288246,684.19,N,N/A,N,N/A
Pendle Borough Council,Property Services,Premises Related Expense,Bldgs : R & M : Day To Day,2001,J DRIVER LTD,A0000884, 17/05/2018,EST0288246,72.00,N,N/A,N,N/A
Pendle Borough Council,Property Services,Premises Related Expense,Bldgs : R & M : Day To Day,2001,J DRIVER LTD,A0000884, 17/05/2018,EST0288246,132.86,N,N/A,N,N/A
Pendle Borough Council,Property Services,Premises Related Expense,Bldgs : R & M : Day To Day,2001,J DRIVER LTD,A0000884, 17/05/2018,EST0288246,276.80,N,N/A,N,N/A
Pendle Borough Council,Property Services,Premises Related Expense,Bldgs : R & M : Day To Day,2001,J DRIVER LTD,A0000884, 17/05/2018,EST0288246,72.00,N,N/A,N,N/A
Pendle Borough Council,Property Services,Premises Related Expense,Bldgs : R & M : Day To Day,2001,J DRIVER LTD,A0000884, 17/05/2018,EST0288246,72.00,N,N/A,N,N/A
Pendle Borough Council,Property Services,Premises Related Expense,Bldgs : R & M : Day To Day,2001,J DRIVER LTD,A0000884, 17/05/2018,EST0288246,205.99,N,N/A,N,N/A
Pendle Borough Council,Property Services,Premises Related Expense,Bldgs : R & M : Day To Day,2001,J DRIVER LTD,A0000884, 17/05/2018,EST0288246,66.00,N,N/A,N,N/A
Pendle Borough Council,Property Services,Premises Related Expense,Bldgs : R & M : Day To Day,2001,J DRIVER LTD,A0000884, 17/05/2018,EST0288246,275.18,N,N/A,N,N/A
Pendle Borough Council,Property Services,Premises Related Expense,Bldgs : R & M : Day To Day,2001,J DRIVER LTD,A0000884, 17/05/2018,EST0288246,44.00,N,N/A,N,N/A
Pendle Borough Council,Property Services,Premises Related Expense,Bldgs : R & M : Day To Day,2001,J DRIVER LTD,A0000884, 17/05/2018,EST0288246,54.00,N,N/A,N,N/A
Pendle Borough Council,Property Services,Premises Related Expense,Bldgs : R & M : Day To Day,2001,J DRIVER LTD,A0000884, 17/05/2018,EST0288246,150.18,N,N/A,N,N/A
Pendle Borough Council,Parks & Recreation Services,Supplies and Services,Protective Clothing,4201,ENGINEERING & FOUNDRY SUPPLIES,A0001002, 03/05/2018,PCO0287962,12.50,N,N/A,N,N/A
Pendle Borough Council,Parks & Recreation Services,Supplies and Services,Protective Clothing,4201,ENGINEERING & FOUNDRY SUPPLIES,A0001002, 10/05/2018,PCO0288044,25.00,N,N/A,N,N/A
Pendle Borough Council,Economic Development & Tourism,Supplies and Services,Protective Clothing,4201,ENGINEERING & FOUNDRY SUPPLIES,A0001002, 17/05/2018,REG0288145,42.97,N,N/A,N,N/A
Pendle Borough Council,Operational Services,,Stock : Purchases,PJ01,ENGINEERING & FOUNDRY SUPPLIES,A0001002, 24/05/2018,OPS0288378,28.25,N,N/A,N,N/A
Pendle Borough Council,Operational Services,,Stock : Purchases,PJ01,ENGINEERING & FOUNDRY SUPPLIES,A0001002, 17/05/2018,OPS0288209,35.35,N,N/A,N,N/A
Pendle Borough Council,Operational Services,,Stock : Purchases,PJ01,ENGINEERING & FOUNDRY SUPPLIES,A0001002, 17/05/2018,OPS0288209,37.98,N,N/A,N,N/A
Pendle Borough Council,Operational Services,,Stock : Purchases,PJ01,ENGINEERING & FOUNDRY SUPPLIES,A0001002, 17/05/2018,OPS0288209,37.98,N,N/A,N,N/A
Pendle Borough Council,Operational Services,,Stock : Purchases,PJ01,ENGINEERING & FOUNDRY SUPPLIES,A0001002, 17/05/2018,OPS0288209,37.98,N,N/A,N,N/A
Pendle Borough Council,Operational Services,,Stock : Purchases,PJ01,ENGINEERING & FOUNDRY SUPPLIES,A0001002, 17/05/2018,OPS0288208,38.20,N,N/A,N,N/A
Pendle Borough Council,Operational Services,,Stock : Purchases,PJ01,ENGINEERING & FOUNDRY SUPPLIES,A0001002, 17/05/2018,OPS0288209,38.20,N,N/A,N,N/A
Pendle Borough Council,Operational Services,,Stock : Purchases,PJ01,ENGINEERING & FOUNDRY SUPPLIES,A0001002, 17/05/2018,OPS0288209,45.60,N,N/A,N,N/A
Pendle Borough Council,Operational Services,,Stock : Purchases,PJ01,ENGINEERING & FOUNDRY SUPPLIES,A0001002, 17/05/2018,OPS0288209,45.60,N,N/A,N,N/A
Pendle Borough Council,Operational Services,,Stock : Purchases,PJ01,ENGINEERING & FOUNDRY SUPPLIES,A0001002, 17/05/2018,OPS0288209,45.60,N,N/A,N,N/A
Pendle Borough Council,Operational Services,,Stock : Purchases,PJ01,ENGINEERING & FOUNDRY SUPPLIES,A0001002, 24/05/2018,OPS0288378,45.60,N,N/A,N,N/A
Pendle Borough Council,Operational Services,,Stock : Purchases,PJ01,ENGINEERING & FOUNDRY SUPPLIES,A0001002, 24/05/2018,OPS0288377,60.00,N,N/A,N,N/A
Pendle Borough Council,Operational Services,,Stock : Purchases,PJ01,ENGINEERING & FOUNDRY SUPPLIES,A0001002, 31/05/2018,OPS0288525,65.00,N,N/A,N,N/A
Pendle Borough Council,Operational Services,,Stock : Purchases,PJ01,ENGINEERING & FOUNDRY SUPPLIES,A0001002, 31/05/2018,OPS0288525,65.00,N,N/A,N,N/A
Pendle Borough Council,Operational Services,,Stock : Purchases,PJ01,ENGINEERING & FOUNDRY SUPPLIES,A0001002, 17/05/2018,OPS0288209,72.50,N,N/A,N,N/A
Pendle Borough Council,Operational Services,,Stock : Purchases,PJ01,ENGINEERING & FOUNDRY SUPPLIES,A0001002, 17/05/2018,OPS0288209,72.50,N,N/A,N,N/A
Pendle Borough Council,Operational Services,,Stock : Purchases,PJ01,ENGINEERING & FOUNDRY SUPPLIES,A0001002, 17/05/2018,OPS0288209,72.50,N,N/A,N,N/A
Pendle Borough Council,Operational Services,,Stock : Purchases,PJ01,ENGINEERING & FOUNDRY SUPPLIES,A0001002, 24/05/2018,OPS0288378,76.40,N,N/A,N,N/A
Pendle Borough Council,Operational Services,,Stock : Purchases,PJ01,ENGINEERING & FOUNDRY SUPPLIES,A0001002, 17/05/2018,OPS0288209,81.87,N,N/A,N,N/A
Pendle Borough Council,Operational Services,,Stock : Purchases,PJ01,ENGINEERING & FOUNDRY SUPPLIES,A0001002, 03/05/2018,OPS0287976,120.00,N,N/A,N,N/A
Pendle Borough Council,Financial Services,,Precept Parish & T Council,303,EARBY TOWN COUNCIL,A0001004, 08/05/2018,AAS0288060,135830.00,N,N/A,N,N/A
Pendle Borough Council,Democratic & Legal Services,Supplies and Services,Meeting Expenses,4610,EARBY TOWN COUNCIL,A0001004, 24/05/2018,DAL0288438,6.00,N,N/A,N,N/A
Pendle Borough Council,Financial Services,Premises Related Expense,Rents,2301,EARBY COMMUNITY CENTRE,A0001015, 03/05/2018,AAS0287913,50.00,N,N/A,N,N/A
Pendle Borough Council,Financial Services,Premises Related Expense,Rents,2301,EARBY & KELBROOK SR CITIZEN WELFARE,A0001024, 03/05/2018,AAS0287910,150.00,N,N/A,N,N/A
Pendle Borough Council,Property Services,Capital Costs,Capital : Payments,CD14,FIRST SIGNS LIMITED,A0001121, 24/05/2018,EST0288453,340.00,N,N/A,N,N/A
Pendle Borough Council,Parks & Recreation Services,Transport Related Expense,Tprt : Repairs : General,3105,GIBSONS GARDEN MACHINERY LTD,A0001201, 17/05/2018,PCO0288170,39.42,N,N/A,N,N/A
Pendle Borough Council,Parks & Recreation Services,Transport Related Expense,Tprt : Repairs : General,3105,GIBSONS GARDEN MACHINERY LTD,A0001201, 03/05/2018,PCO0287998,41.36,N,N/A,N,N/A
Pendle Borough Council,Parks & Recreation Services,Transport Related Expense,Tprt : Repairs : General,3105,GIBSONS GARDEN MACHINERY LTD,A0001201, 17/05/2018,PCO0288168,70.96,N,N/A,N,N/A
Pendle Borough Council,Parks & Recreation Services,Transport Related Expense,Tprt : Repairs : General,3105,GIBSONS GARDEN MACHINERY LTD,A0001201, 17/05/2018,PCO0288162,243.20,N,N/A,N,N/A
Pendle Borough Council,Parks & Recreation Services,Transport Related Expense,Tprt : Repairs : General,3105,GIBSONS GARDEN MACHINERY LTD,A0001201, 03/05/2018,PCO0287999,314.74,N,N/A,N,N/A
Pendle Borough Council,Parks & Recreation Services,Transport Related Expense,Tprt : Repairs : General,3105,GIBSONS GARDEN MACHINERY LTD,A0001201, 03/05/2018,PCO0287969,22.77,N,N/A,N,N/A
Pendle Borough Council,Parks & Recreation Services,Transport Related Expense,Tprt : Repairs : General,3105,GIBSONS GARDEN MACHINERY LTD,A0001201, 03/05/2018,PCO0288000,64.66,N,N/A,N,N/A
Pendle Borough Council,Parks & Recreation Services,Transport Related Expense,Tprt : Repairs : General,3105,GIBSONS GARDEN MACHINERY LTD,A0001201, 31/05/2018,PCO0288440,393.42,N,N/A,N,N/A
Pendle Borough Council,Parks & Recreation Services,Transport Related Expense,Tprt : Repairs : General,3105,GIBSONS GARDEN MACHINERY LTD,A0001201, 31/05/2018,PCO0288535,116.99,N,N/A,N,N/A
Pendle Borough Council,Engineering & Special Projects,Premises Related Expense,Grounds : R & M : Day to Day : Routine,2101,G B SIGNS SOLUTIONS LIMITED,A0001202, 03/05/2018,HED0287866,93.75,N,N/A,N,N/A
Pendle Borough Council,Engineering & Special Projects,Premises Related Expense,Grounds : R & M : Day to Day : Routine,2101,G B SIGNS SOLUTIONS LIMITED,A0001202, 03/05/2018,HED0287866,46.87,N,N/A,N,N/A
Pendle Borough Council,Engineering & Special Projects,Premises Related Expense,Grounds : R & M : Day to Day : Routine,2101,G B SIGNS SOLUTIONS LIMITED,A0001202, 03/05/2018,HED0287866,15.12,N,N/A,N,N/A
Pendle Borough Council,Engineering & Special Projects,Premises Related Expense,Grounds : R & M : Day to Day : Routine,2101,G B SIGNS SOLUTIONS LIMITED,A0001202, 03/05/2018,HED0287866,95.26,N,N/A,N,N/A
Pendle Borough Council,Engineering & Special Projects,Premises Related Expense,Grounds : R & M : Day to Day : Routine,2101,G B SIGNS SOLUTIONS LIMITED,A0001202, 03/05/2018,HED0287866,63.50,N,N/A,N,N/A
Pendle Borough Council,Operational Services,Premises Related Expense,Bldgs : R & M : Day To Day,2001,J HARGREAVES,A0001359, 24/05/2018,OPS0288415,96.00,N,N/A,N,N/A
Pendle Borough Council,Parks & Recreation Services,Premises Related Expense,Bldgs : R & M : Day To Day,2001,J HARGREAVES,A0001359, 10/05/2018,PCO0288051,25.00,N,N/A,N,N/A
Pendle Borough Council,Environmental Health Services,Supplies and Services,EFM : Other Equipment,4003,KILLGERM CHEMICALS LTD,A0001624, 17/05/2018,ENV0288215,16.71,N,N/A,N,N/A
Pendle Borough Council,Environmental Health Services,Supplies and Services,EFM : Other Equipment,4003,KILLGERM CHEMICALS LTD,A0001624, 10/05/2018,ENV0288081,17.07,N,N/A,N,N/A
Pendle Borough Council,Environmental Health Services,Supplies and Services,EFM : Other Equipment,4003,KILLGERM CHEMICALS LTD,A0001624, 17/05/2018,ENV0288215,39.90,N,N/A,N,N/A
Pendle Borough Council,Environmental Health Services,Supplies and Services,EFM Materials,4004,KILLGERM CHEMICALS LTD,A0001624, 10/05/2018,ENV0288081,9.76,N,N/A,N,N/A
Pendle Borough Council,Environmental Health Services,Supplies and Services,EFM Materials,4004,KILLGERM CHEMICALS LTD,A0001624, 10/05/2018,ENV0288081,25.74,N,N/A,N,N/A
Pendle Borough Council,Environmental Health Services,Supplies and Services,EFM Materials,4004,KILLGERM CHEMICALS LTD,A0001624, 10/05/2018,ENV0288081,37.80,N,N/A,N,N/A
Pendle Borough Council,Environmental Health Services,Supplies and Services,EFM Materials,4004,KILLGERM CHEMICALS LTD,A0001624, 10/05/2018,ENV0288081,48.50,N,N/A,N,N/A
Pendle Borough Council,Environmental Health Services,Supplies and Services,EFM Materials,4004,KILLGERM CHEMICALS LTD,A0001624, 10/05/2018,ENV0288081,67.98,N,N/A,N,N/A
Pendle Borough Council,Environmental Health Services,Supplies and Services,EFM Materials,4004,KILLGERM CHEMICALS LTD,A0001624, 17/05/2018,ENV0288215,70.20,N,N/A,N,N/A
Pendle Borough Council,Environmental Health Services,Supplies and Services,EFM Materials,4004,KILLGERM CHEMICALS LTD,A0001624, 10/05/2018,ENV0288081,98.50,N,N/A,N,N/A
Pendle Borough Council,Environmental Health Services,Supplies and Services,EFM Materials,4004,KILLGERM CHEMICALS LTD,A0001624, 10/05/2018,ENV0288081,156.06,N,N/A,N,N/A
Pendle Borough Council,Environmental Health Services,Supplies and Services,EFM Materials,4004,KILLGERM CHEMICALS LTD,A0001624, 10/05/2018,ENV0288081,203.12,N,N/A,N,N/A
Pendle Borough Council,Environmental Health Services,Supplies and Services,EFM Materials,4004,KILLGERM CHEMICALS LTD,A0001624, 10/05/2018,ENV0288081,338.25,N,N/A,N,N/A
Pendle Borough Council,Parks & Recreation Services,Premises Related Expense,Grounds : R & M : Day to Day : Routine,2101,LANLEE SUPPLIES LIMITED,A0001672, 17/05/2018,PCO0288156,174.92,N,N/A,N,N/A
Pendle Borough Council,Parks & Recreation Services,Premises Related Expense,Grounds : R & M : Day to Day : Routine,2101,LANLEE SUPPLIES LIMITED,A0001672, 31/05/2018,PCO0288441,385.80,N,N/A,N,N/A
Pendle Borough Council,Economic Development & Tourism,Supplies and Services,Maintenance contracts,4006,LANLEE SUPPLIES LIMITED,A0001672, 17/05/2018,REG0288147,11.60,N,N/A,N,N/A
Pendle Borough Council,Economic Development & Tourism,Supplies and Services,Maintenance contracts,4006,LANLEE SUPPLIES LIMITED,A0001672, 03/05/2018,REG0287735,19.14,N,N/A,N,N/A
Pendle Borough Council,Economic Development & Tourism,Supplies and Services,Maintenance contracts,4006,LANLEE SUPPLIES LIMITED,A0001672, 17/05/2018,REG0288148,48.33,N,N/A,N,N/A
Pendle Borough Council,Economic Development & Tourism,Supplies and Services,Maintenance contracts,4006,LANLEE SUPPLIES LIMITED,A0001672, 17/05/2018,REG0288151,56.30,N,N/A,N,N/A
Pendle Borough Council,Parks & Recreation Services,Transport Related Expense,Tprt : Repairs : General,3105,DICK LEIGH,A0001675, 17/05/2018,PCO0288161,31.16,N,N/A,N,N/A
Pendle Borough Council,Parks & Recreation Services,Transport Related Expense,Tprt : Repairs : General,3105,DICK LEIGH,A0001675, 17/05/2018,PCO0288161,42.00,N,N/A,N,N/A
Pendle Borough Council,Parks & Recreation Services,Supplies and Services,EFM : Other Equipment,4003,DICK LEIGH,A0001675, 31/05/2018,PCO0288528,193.75,N,N/A,N,N/A
Pendle Borough Council,Financial Services,Premises Related Expense,Rents,2301,LANCASHIRE COUNTY COUNCIL,A0001690, 03/05/2018,AAS0287916,50.00,N,N/A,N,N/A
Pendle Borough Council,Democratic & Legal Services,Supplies and Services,Search Fees,4404,LANCASHIRE COUNTY COUNCIL,A0001690, 17/05/2018,DAL0288210,522.00,N,N/A,N,N/A
Pendle Borough Council,Engineering & Special Projects,Capital Costs,Capital : Payments,CD14,LANCASHIRE COUNTY COUNCIL,A0001690, 24/05/2018,HED0288345,411.54,N,N/A,N,N/A
Pendle Borough Council,Housing Regeneration Services,Capital Costs,Ren Grant : 1996 Act,CH22,LANCASHIRE COUNTY COUNCIL,A0001690, 03/05/2018,HMR0287932,5496.00,N,N/A,N,N/A
Pendle Borough Council,Financial Services,Premises Related Expense,Rents,2301,LORD STREET CO PRIMARY SCHOOL,A0001702, 03/05/2018,AAS0287908,100.00,N,N/A,N,N/A
Pendle Borough Council,Engineering & Special Projects,Premises Related Expense,Bldgs : R & M : Day To Day,2001,LIMELIGHT SIGNS LIMITED,A0001796, 17/05/2018,HED0288216,51.40,N,N/A,N,N/A
Pendle Borough Council,Housing Regeneration Services,Capital Costs,Ren Grant : 1996 Act,CH22,MONK OF COLNE LTD,A0001828, 10/05/2018,HMR0288041,3258.72,N,N/A,N,N/A
Pendle Borough Council,Financial Services,Supplies and Services,Mayoral Allowance,4615,MAYOR OF PENDLES ALLOWANCE,A0001839, 11/05/2018,AAS0288136,5130.00,N,N/A,N,N/A
Pendle Borough Council,Financial Services,Supplies and Services,Allpay,4422,NORTHERN HOUSING CONSORTIUM,A0001966, 17/05/2018,AAS0288269,885.00,N,N/A,N,N/A
Pendle Borough Council,Property Services,Premises Related Expense,Water & Sewerage,2501,WATER PLUS LIMITED,A0001986, 03/05/2018,EST0287940,44.43,N,N/A,N,N/A
Pendle Borough Council,Property Services,Premises Related Expense,Water & Sewerage,2501,WATER PLUS LIMITED,A0001986, 03/05/2018,EST0287968,167.04,N,N/A,N,N/A
Pendle Borough Council,Property Services,Premises Related Expense,Water & Sewerage,2501,WATER PLUS LIMITED,A0001986, 10/05/2018,EST0288091,39.19,N,N/A,N,N/A
Pendle Borough Council,Property Services,Premises Related Expense,Water & Sewerage,2501,WATER PLUS LIMITED,A0001986, 03/05/2018,EST0287938,985.68,N,N/A,N,N/A
Pendle Borough Council,Property Services,Premises Related Expense,Water & Sewerage,2501,WATER PLUS LIMITED,A0001986, 10/05/2018,EST0288090,54.16,N,N/A,N,N/A
Pendle Borough Council,Property Services,Premises Related Expense,Bldgs : R & M : Day To Day,2001,F NUTTER & SONS,A0002037, 03/05/2018,EST0288016,60.00,N,N/A,N,N/A
Pendle Borough Council,Property Services,Premises Related Expense,Bldgs : R & M : Day To Day,2001,F NUTTER & SONS,A0002037, 03/05/2018,EST0288016,700.00,N,N/A,N,N/A
Pendle Borough Council,Property Services,Premises Related Expense,Bldgs : R & M : Day To Day,2001,F NUTTER & SONS,A0002037, 03/05/2018,EST0288016,250.00,N,N/A,N,N/A
Pendle Borough Council,Property Services,Premises Related Expense,Bldgs : R & M : Day To Day,2001,F NUTTER & SONS,A0002037, 03/05/2018,EST0288016,400.00,N,N/A,N,N/A
Pendle Borough Council,Property Services,Premises Related Expense,Bldgs : R & M : Day To Day,2001,F NUTTER & SONS,A0002037, 03/05/2018,EST0288016,300.00,N,N/A,N,N/A
Pendle Borough Council,Property Services,Premises Related Expense,Bldgs : R & M : Day To Day,2001,F NUTTER & SONS,A0002037, 03/05/2018,EST0288016,1150.00,N,N/A,N,N/A
Pendle Borough Council,Property Services,Premises Related Expense,Bldgs : R & M : Day To Day,2001,OPTION HYGIENE LIMITED,A0002063, 24/05/2018,EST0288449,147.00,N,N/A,N,N/A
Pendle Borough Council,Operational Services,Supplies and Services,EFM Materials,4004,OPTION HYGIENE LIMITED,A0002063, 17/05/2018,OPS0288195,14.95,N,N/A,N,N/A
Pendle Borough Council,Operational Services,Supplies and Services,EFM Materials,4004,OPTION HYGIENE LIMITED,A0002063, 17/05/2018,OPS0288195,42.50,N,N/A,N,N/A
Pendle Borough Council,Operational Services,,Stock : Purchases,PJ01,OPTION HYGIENE LIMITED,A0002063, 03/05/2018,OPS0287974,50.35,N,N/A,N,N/A
Pendle Borough Council,Operational Services,,Stock : Purchases,PJ01,OPTION HYGIENE LIMITED,A0002063, 03/05/2018,OPS0287972,1773.80,N,N/A,N,N/A
Pendle Borough Council,Financial Services,,Precept Parish & T Council,303,OLD LAUND BOOTH PARISH COUNCIL,A0002067, 08/05/2018,AAS0288067,14850.00,N,N/A,N,N/A
Pendle Borough Council,Operational Services,Premises Related Expense,Bldgs : R & M : Day To Day,2001,POWER PIPES (PENDLE) LIMITED,A0002089, 03/05/2018,OPS0287978,123.81,N,N/A,N,N/A
Pendle Borough Council,Parks & Recreation Services,Transport Related Expense,Tprt : Repairs : General,3105,POWER PIPES (PENDLE) LIMITED,A0002089, 03/05/2018,PCO0287963,54.17,N,N/A,N,N/A
Pendle Borough Council,Parks & Recreation Services,Transport Related Expense,Tprt : Repairs : General,3105,POWER PIPES (PENDLE) LIMITED,A0002089, 03/05/2018,PCO0287946,24.42,N,N/A,N,N/A
Pendle Borough Council,Democratic & Legal Services,Supplies and Services,Consultants Fees,4401,PRESTON CITY COUNCIL,A0002144, 03/05/2018,DAL0287986,170.00,N,N/A,N,N/A
Pendle Borough Council,Housing Regeneration Services,Capital Costs,Ren Grant : 1996 Act,CH22,PENBURN CONSTRUCTION LTD,A0002191, 17/05/2018,HMR0288239,27187.60,N,N/A,N,N/A
Pendle Borough Council,Parks & Recreation Services,Agency Staff,Emp : Basic Wages,1001,PENDLE PERSONNEL LTD,A0002198, 03/05/2018,PCO0288002,508.40,N,N/A,N,N/A
Pendle Borough Council,Parks & Recreation Services,Agency Staff,Emp : Basic Wages,1001,PENDLE PERSONNEL LTD,A0002198, 31/05/2018,PCO0288536,705.08,N,N/A,N,N/A
Pendle Borough Council,Parks & Recreation Services,Agency Staff,Emp : Basic Wages,1001,PENDLE PERSONNEL LTD,A0002198, 17/05/2018,PCO0288181,865.05,N,N/A,N,N/A
Pendle Borough Council,Parks & Recreation Services,Agency Staff,Emp : Basic Wages,1001,PENDLE PERSONNEL LTD,A0002198, 03/05/2018,PCO0287971,927.26,N,N/A,N,N/A
Pendle Borough Council,Parks & Recreation Services,Agency Staff,Emp : Basic Wages,1001,PENDLE PERSONNEL LTD,A0002198, 17/05/2018,PCO0288183,1036.35,N,N/A,N,N/A
Pendle Borough Council,Parks & Recreation Services,Agency Staff,Emp : Agency Wages,1004,PENDLE PERSONNEL LTD,A0002198, 31/05/2018,PCO0288536,711.00,N,N/A,N,N/A
Pendle Borough Council,Parks & Recreation Services,Agency Staff,Emp : Agency Wages,1004,PENDLE PERSONNEL LTD,A0002198, 17/05/2018,PCO0288183,764.33,N,N/A,N,N/A
Pendle Borough Council,Parks & Recreation Services,Agency Staff,Emp : Agency Wages,1004,PENDLE PERSONNEL LTD,A0002198, 03/05/2018,PCO0287971,924.30,N,N/A,N,N/A
Pendle Borough Council,Parks & Recreation Services,Agency Staff,Emp : Agency Wages,1004,PENDLE PERSONNEL LTD,A0002198, 17/05/2018,PCO0288181,1026.26,N,N/A,N,N/A
Pendle Borough Council,Parks & Recreation Services,Agency Staff,Emp : Agency Wages,1004,PENDLE PERSONNEL LTD,A0002198, 03/05/2018,PCO0288002,1350.90,N,N/A,N,N/A
Pendle Borough Council,Parks & Recreation Services,Agency Staff,Emp : Agency Wages,1004,PENDLE PERSONNEL LTD,A0002198, 31/05/2018,PCO0288536,3614.30,N,N/A,N,N/A
Pendle Borough Council,Parks & Recreation Services,Agency Staff,Emp : Agency Wages,1004,PENDLE PERSONNEL LTD,A0002198, 03/05/2018,PCO0288002,3685.35,N,N/A,N,N/A
Pendle Borough Council,Parks & Recreation Services,Agency Staff,Emp : Agency Wages,1004,PENDLE PERSONNEL LTD,A0002198, 03/05/2018,PCO0287971,3697.20,N,N/A,N,N/A
Pendle Borough Council,Parks & Recreation Services,Agency Staff,Emp : Agency Wages,1004,PENDLE PERSONNEL LTD,A0002198, 17/05/2018,PCO0288183,3697.20,N,N/A,N,N/A
Pendle Borough Council,Parks & Recreation Services,Agency Staff,Emp : Agency Wages,1004,PENDLE PERSONNEL LTD,A0002198, 17/05/2018,PCO0288181,4159.35,N,N/A,N,N/A
Pendle Borough Council,Parks & Recreation Services,Agency Staff,Emp : Salaries & Wages,1020,PENDLE PERSONNEL LTD,A0002198, 31/05/2018,PCO0288537,195.00,N,N/A,N,N/A
Pendle Borough Council,Parks & Recreation Services,Agency Staff,Emp : Salaries & Wages,1020,PENDLE PERSONNEL LTD,A0002198, 24/05/2018,PCO0288277,200.20,N,N/A,N,N/A
Pendle Borough Council,Parks & Recreation Services,Agency Staff,Emp : Salaries & Wages,1020,PENDLE PERSONNEL LTD,A0002198, 10/05/2018,PCO0288054,335.40,N,N/A,N,N/A
Pendle Borough Council,Parks & Recreation Services,Agency Staff,Emp : Salaries & Wages,1020,PENDLE PERSONNEL LTD,A0002198, 10/05/2018,PCO0288053,353.60,N,N/A,N,N/A
Pendle Borough Council,Parks & Recreation Services,Agency Staff,Emp : Salaries & Wages,1020,PENDLE PERSONNEL LTD,A0002198, 03/05/2018,PCO0287970,358.80,N,N/A,N,N/A
Pendle Borough Council,Economic Development & Tourism,Supplies and Services,Miscellaneous : Other,4707,RIGBY TAYLOR LIMITED,A0002276, 31/05/2018,REG0288465,117.00,N,N/A,N,N/A
Pendle Borough Council,Democratic & Legal Services,Supplies and Services,Postages,4501,ROYAL MAIL GROUP LIMITED,A0002281, 17/05/2018,DAL0288230,89.82,N,N/A,N,N/A
Pendle Borough Council,Democratic & Legal Services,Supplies and Services,Postages,4501,ROYAL MAIL GROUP LIMITED,A0002281, 17/05/2018,DAL0288230,341.81,N,N/A,N,N/A
Pendle Borough Council,Democratic & Legal Services,Supplies and Services,Postages,4501,ROYAL MAIL GROUP LIMITED,A0002281, 17/05/2018,DAL0288097,775.00,N,N/A,N,N/A
Pendle Borough Council,Democratic & Legal Services,Supplies and Services,Postages,4501,ROYAL MAIL GROUP LIMITED,A0002281, 17/05/2018,DAL0288097,157.92,N,N/A,N,N/A
Pendle Borough Council,Democratic & Legal Services,Supplies and Services,Postages,4501,ROYAL MAIL GROUP LIMITED,A0002281, 17/05/2018,DAL0288229,2589.82,N,N/A,N,N/A
Pendle Borough Council,Democratic & Legal Services,Supplies and Services,Postages,4501,ROYAL MAIL GROUP LIMITED,A0002281, 17/05/2018,DAL0288097,4.06,N,N/A,N,N/A
Pendle Borough Council,Democratic & Legal Services,Supplies and Services,Postages,4501,ROYAL MAIL GROUP LIMITED,A0002281, 17/05/2018,DAL0288097,3.48,N,N/A,N,N/A
Pendle Borough Council,Democratic & Legal Services,Supplies and Services,Postages,4501,ROYAL MAIL GROUP LIMITED,A0002281, 17/05/2018,DAL0288097,3.70,N,N/A,N,N/A
Pendle Borough Council,Democratic & Legal Services,Supplies and Services,Postages,4501,ROYAL MAIL GROUP LIMITED,A0002281, 17/05/2018,DAL0288097,39.44,N,N/A,N,N/A
Pendle Borough Council,Democratic & Legal Services,Supplies and Services,Postages,4501,ROYAL MAIL GROUP LIMITED,A0002281, 03/05/2018,DAL0287751,0.55,N,N/A,N,N/A
Pendle Borough Council,Democratic & Legal Services,Supplies and Services,Postages,4501,ROYAL MAIL GROUP LIMITED,A0002281, 17/05/2018,DAL0288097,34.74,N,N/A,N,N/A
Pendle Borough Council,Democratic & Legal Services,Supplies and Services,Postages,4501,ROYAL MAIL GROUP LIMITED,A0002281, 03/05/2018,DAL0287751,0.55,N,N/A,N,N/A
Pendle Borough Council,Democratic & Legal Services,Supplies and Services,Postages,4501,ROYAL MAIL GROUP LIMITED,A0002281, 17/05/2018,DAL0288097,26.66,N,N/A,N,N/A
Pendle Borough Council,Democratic & Legal Services,Supplies and Services,Postages,4501,ROYAL MAIL GROUP LIMITED,A0002281, 17/05/2018,DAL0288097,19.88,N,N/A,N,N/A
Pendle Borough Council,Democratic & Legal Services,Supplies and Services,Postages,4501,ROYAL MAIL GROUP LIMITED,A0002281, 17/05/2018,DAL0288097,272.65,N,N/A,N,N/A
Pendle Borough Council,Democratic & Legal Services,Supplies and Services,Postages,4501,ROYAL MAIL GROUP LIMITED,A0002281, 17/05/2018,DAL0288097,1.45,N,N/A,N,N/A
Pendle Borough Council,Operational Services,Supplies and Services,Postages,4501,ROYAL MAIL GROUP LIMITED,A0002281, 24/05/2018,OPS0288285,30.75,N,N/A,N,N/A
Pendle Borough Council,Democratic & Legal Services,Supplies and Services,Postages,4501,ROYAL MAIL GROUP LIMITED,A0002281, 17/05/2018,DAL0288097,42.18,N,N/A,N,N/A
Pendle Borough Council,Operational Services,Supplies and Services,Postages,4501,ROYAL MAIL GROUP LIMITED,A0002281, 03/05/2018,OPS0287984,42.64,N,N/A,N,N/A
Pendle Borough Council,Engineering & Special Projects,Supplies and Services,Postages,4501,ROYAL MAIL GROUP LIMITED,A0002281, 24/05/2018,HED0288297,98.64,N,N/A,N,N/A
Pendle Borough Council,Financial Services,,Precept Parish & T Council,303,REEDLEY HALLOWS PARISH COUNCIL,A0002283, 08/05/2018,AAS0288068,11300.00,N,N/A,N,N/A
Pendle Borough Council,Financial Services,Supplies and Services,Other Expenses,4705,RIBBLE VALLEY BOROUGH COUNCIL,A0002290, 03/05/2018,AAS0288012,2000.00,N,N/A,N,N/A
Pendle Borough Council,Housing Regeneration Services,Supplies and Services,Other Expenses,4705,RIBBLE VALLEY BOROUGH COUNCIL,A0002290, 17/05/2018,HMR0288219,250.00,N,N/A,N,N/A
Pendle Borough Council,Housing Regeneration Services,,LANCASHIRE COUNTY COUNCIL,9.00E+09,RIBBLE VALLEY BOROUGH COUNCIL,A0002290, 24/05/2018,HMR0288398,1159.88,N,N/A,N,N/A
Pendle Borough Council,Operational Services,Supplies and Services,Sub-Contractors,4007,ROSSENDALE PET CREMATORIUM,A0002345, 17/05/2018,OPS0288153,164.00,N,N/A,N,N/A
Pendle Borough Council,Operational Services,Agency Staff,Emp : Agency Wages,1004,STANLEY BROTHERS (TIPPERS) LTD,A0002422, 17/05/2018,OPS0288202,268.80,N,N/A,N,N/A
Pendle Borough Council,Operational Services,Agency Staff,Emp : Agency Wages,1004,STANLEY BROTHERS (TIPPERS) LTD,A0002422, 17/05/2018,OPS0288202,67.20,N,N/A,N,N/A
Pendle Borough Council,Operational Services,Transport Related Expense,Tprt : Annual Hire Charge,3601,STANLEY BROTHERS (TIPPERS) LTD,A0002422, 24/05/2018,OPS0288282,640.00,N,N/A,N,N/A
Pendle Borough Council,Operational Services,Transport Related Expense,Tprt : Annual Hire Charge,3601,STANLEY BROTHERS (TIPPERS) LTD,A0002422, 24/05/2018,OPS0288278,2000.00,N,N/A,N,N/A
Pendle Borough Council,Economic Development & Tourism,Supplies and Services,Miscellaneous : Other,4707,STANLEY BROTHERS (TIPPERS) LTD,A0002422, 17/05/2018,REG0288146,1170.00,N,N/A,N,N/A
Pendle Borough Council,Parks & Recreation Services,Capital Costs,Capital : Payments,CD14,STANLEY BROTHERS (TIPPERS) LTD,A0002422, 17/05/2018,PCO0288179,540.00,N,N/A,N,N/A
Pendle Borough Council,Engineering & Special Projects,Capital Costs,Capital : Payments,CD14,STANLEY BROTHERS (TIPPERS) LTD,A0002422, 24/05/2018,HED0288428,840.00,N,N/A,N,N/A
Pendle Borough Council,Engineering & Special Projects,Capital Costs,Capital : Payments,CD14,STANLEY BROTHERS (TIPPERS) LTD,A0002422, 24/05/2018,HED0288428,840.00,N,N/A,N,N/A
Pendle Borough Council,Parks & Recreation Services,Capital Costs,Capital : Payments,CD14,STANLEY BROTHERS (TIPPERS) LTD,A0002422, 17/05/2018,PCO0288177,1860.00,N,N/A,N,N/A
Pendle Borough Council,Operational Services,Supplies and Services,Veterinary Fees,4405,STANLEY HOUSE VETERINARY GROUP,A0002423, 17/05/2018,OPS0288149,12.50,N,N/A,N,N/A
Pendle Borough Council,Parks & Recreation Services,Transport Related Expense,Tprt : Repairs : General,3105,SPALDINGS (UK) LTD,A0002537, 03/05/2018,PCO0287996,9.72,N,N/A,N,N/A
Pendle Borough Council,Parks & Recreation Services,Transport Related Expense,Tprt : Repairs : General,3105,SPALDINGS (UK) LTD,A0002537, 03/05/2018,PCO0287996,40.00,N,N/A,N,N/A
Pendle Borough Council,Parks & Recreation Services,Transport Related Expense,Tprt : Repairs : General,3105,SPALDINGS (UK) LTD,A0002537, 17/05/2018,PCO0288171,50.00,N,N/A,N,N/A
Pendle Borough Council,Parks & Recreation Services,Transport Related Expense,Tprt : Repairs : General,3105,SPALDINGS (UK) LTD,A0002537, 03/05/2018,PCO0287996,53.56,N,N/A,N,N/A
Pendle Borough Council,Parks & Recreation Services,Transport Related Expense,Tprt : Repairs : General,3105,SPALDINGS (UK) LTD,A0002537, 03/05/2018,PCO0287996,57.05,N,N/A,N,N/A
Pendle Borough Council,Parks & Recreation Services,Transport Related Expense,Tprt : Repairs : General,3105,SPALDINGS (UK) LTD,A0002537, 03/05/2018,PCO0287996,145.80,N,N/A,N,N/A
Pendle Borough Council,Parks & Recreation Services,Supplies and Services,Protective Clothing,4201,SPALDINGS (UK) LTD,A0002537, 03/05/2018,PCO0287996,45.20,N,N/A,N,N/A
Pendle Borough Council,Parks & Recreation Services,Premises Related Expense,Grounds : R & M : Day to Day : Routine,2101,ROBERTSON MEMORIALS,A0002590, 03/05/2018,PCO0287947,265.62,N,N/A,N,N/A
Pendle Borough Council,Parks & Recreation Services,Premises Related Expense,Grounds : R & M : Day to Day : Routine,2101,ROBERTSON MEMORIALS,A0002590, 03/05/2018,PCO0287948,350.62,N,N/A,N,N/A
Pendle Borough Council,Property Services,Premises Related Expense,Bldgs : R & M : Day To Day,2001,T & F STEEL DESIGNS LTD,A0002627, 24/05/2018,EST0288451,105.00,N,N/A,N,N/A
Pendle Borough Council,Property Services,Premises Related Expense,Bldgs : R & M : Day To Day,2001,T & F STEEL DESIGNS LTD,A0002627, 24/05/2018,EST0288451,130.00,N,N/A,N,N/A
Pendle Borough Council,Property Services,Premises Related Expense,Bldgs : R & M : Day To Day,2001,T & F STEEL DESIGNS LTD,A0002627, 24/05/2018,EST0288452,180.00,N,N/A,N,N/A
Pendle Borough Council,Property Services,Premises Related Expense,Bldgs : R & M : Day To Day,2001,T & F STEEL DESIGNS LTD,A0002627, 24/05/2018,EST0288452,240.00,N,N/A,N,N/A
Pendle Borough Council,Property Services,Premises Related Expense,Bldgs : R & M : Day To Day,2001,T & F STEEL DESIGNS LTD,A0002627, 24/05/2018,EST0288450,278.00,N,N/A,N,N/A
Pendle Borough Council,Property Services,Premises Related Expense,Bldgs : R & M : Day To Day,2001,T & F STEEL DESIGNS LTD,A0002627, 24/05/2018,EST0288450,540.00,N,N/A,N,N/A
Pendle Borough Council,Democratic & Legal Services,Supplies and Services,Reference Books Acts,4304,LEXIS NEXIS,A0002634, 10/05/2018,DAL0288083,12233.13,N,N/A,N,N/A
Pendle Borough Council,Operational Services,,Stock : Purchases,PJ01,THE HELPING HAND CO LTD,A0002655, 24/05/2018,OPS0288281,5.00,N,N/A,N,N/A
Pendle Borough Council,Operational Services,,Stock : Purchases,PJ01,THE HELPING HAND CO LTD,A0002655, 24/05/2018,OPS0288376,5.00,N,N/A,N,N/A
Pendle Borough Council,Operational Services,,Stock : Purchases,PJ01,THE HELPING HAND CO LTD,A0002655, 24/05/2018,OPS0288281,71.00,N,N/A,N,N/A
Pendle Borough Council,Operational Services,,Stock : Purchases,PJ01,THE HELPING HAND CO LTD,A0002655, 24/05/2018,OPS0288376,84.20,N,N/A,N,N/A
Pendle Borough Council,Housing Regeneration Services,Supplies and Services,Other Expenses,4705,JOHNSONS TEXICARE LTD,A0002665, 03/05/2018,HMR0287873,87.60,N,N/A,N,N/A
Pendle Borough Council,Parks & Recreation Services,Supplies and Services,Expenditure : Materials,2,TRAVIS PERKINS TRADING CO LTD,A0002709, 03/05/2018,PCO0287966,3.46,N,N/A,N,N/A
Pendle Borough Council,Parks & Recreation Services,Supplies and Services,Expenditure : Materials,2,TRAVIS PERKINS TRADING CO LTD,A0002709, 03/05/2018,PCO0287957,24.94,N,N/A,N,N/A
Pendle Borough Council,Parks & Recreation Services,Supplies and Services,Expenditure : Materials,2,TRAVIS PERKINS TRADING CO LTD,A0002709, 03/05/2018,PCO0287966,57.60,N,N/A,N,N/A
Pendle Borough Council,Parks & Recreation Services,Supplies and Services,Expenditure : Materials,2,TRAVIS PERKINS TRADING CO LTD,A0002709, 31/05/2018,PCO0288531,58.85,N,N/A,N,N/A
Pendle Borough Council,Parks & Recreation Services,Supplies and Services,Expenditure : Materials,2,TRAVIS PERKINS TRADING CO LTD,A0002709, 03/05/2018,PCO0287966,63.12,N,N/A,N,N/A
Pendle Borough Council,Parks & Recreation Services,Premises Related Expense,Bldgs : R & M : Day To Day,2001,TRAVIS PERKINS TRADING CO LTD,A0002709, 31/05/2018,PCO0288529,131.10,N,N/A,N,N/A
Pendle Borough Council,Economic Development & Tourism,Supplies and Services,Miscellaneous : Other,4707,TRAVIS PERKINS TRADING CO LTD,A0002709, 17/05/2018,REG0287874,26.04,N,N/A,N,N/A
Pendle Borough Council,Housing Regeneration Services,Supplies and Services,Other Expenses,4705,TEXT STYLES UK LIMITED,A0002725, 10/05/2018,HMR0288035,79.92,N,N/A,N,N/A
Pendle Borough Council,Parks & Recreation Services,Premises Related Expense,Bldgs : R & M : Day To Day,2001,TRISTAR PRINTERS LTD,A0002731, 17/05/2018,PCO0288157,130.00,N,N/A,N,N/A
Pendle Borough Council,Democratic & Legal Services,Supplies and Services,Printing & Stationery,4301,TRISTAR PRINTERS LTD,A0002731, 03/05/2018,DAL0287987,37.00,N,N/A,N,N/A
Pendle Borough Council,Democratic & Legal Services,Supplies and Services,Printing & Stationery,4301,TRISTAR PRINTERS LTD,A0002731, 24/05/2018,DAL0288387,69.00,N,N/A,N,N/A
Pendle Borough Council,Democratic & Legal Services,Supplies and Services,Printing & Stationery,4301,TRISTAR PRINTERS LTD,A0002731, 03/05/2018,DAL0287987,109.00,N,N/A,N,N/A
Pendle Borough Council,Democratic & Legal Services,Supplies and Services,Postages,4501,TRISTAR PRINTERS LTD,A0002731, 03/05/2018,DAL0287988,115.50,N,N/A,N,N/A
Pendle Borough Council,Democratic & Legal Services,Supplies and Services,Postages,4501,TRISTAR PRINTERS LTD,A0002731, 03/05/2018,DAL0287988,115.50,N,N/A,N,N/A
Pendle Borough Council,Democratic & Legal Services,Supplies and Services,Postages,4501,TRISTAR PRINTERS LTD,A0002731, 03/05/2018,DAL0287988,38.50,N,N/A,N,N/A
Pendle Borough Council,Democratic & Legal Services,Supplies and Services,Postages,4501,TRISTAR PRINTERS LTD,A0002731, 03/05/2018,DAL0287988,38.50,N,N/A,N,N/A
Pendle Borough Council,Property Services,Premises Related Expense,Water & Sewerage,2501,YORKSHIRE WATER,A0002808, 24/05/2018,EST0288457,8.45,N,N/A,N,N/A
Pendle Borough Council,Operational Services,Premises Related Expense,Grounds : R & M : Day to Day : Routine,2101,ENVIRONMENT AGENCY,A0003560, 24/05/2018,OPS0288284,10.00,N,N/A,N,N/A
Pendle Borough Council,Operational Services,Premises Related Expense,Grounds : R & M : Day to Day : Routine,2101,ENVIRONMENT AGENCY,A0003560, 03/05/2018,OPS0287980,25.00,N,N/A,N,N/A
Pendle Borough Council,Engineering & Special Projects,Supplies and Services,Seminars etc All Costs,4601,REDACTED - PERESONAL DATA,A0003786, 17/05/2018,HED0288211,0.98,N,N/A,N,N/A
Pendle Borough Council,Engineering & Special Projects,Supplies and Services,Seminars etc All Costs,4601,REDACTED - PERESONAL DATA,A0003786, 31/05/2018,HED0288575,2.08,N,N/A,N,N/A
Pendle Borough Council,Engineering & Special Projects,Supplies and Services,Seminars etc All Costs,4601,REDACTED - PERESONAL DATA,A0003786, 17/05/2018,HED0288211,3.17,N,N/A,N,N/A
Pendle Borough Council,Democratic & Legal Services,Supplies and Services,Mobile Phones,4508,EE LIMITED,A0004680, 31/05/2018,DAL4005889,-150.00,N,N/A,N,N/A
Pendle Borough Council,Democratic & Legal Services,Supplies and Services,Mobile Phones,4508,EE LIMITED,A0004680, 31/05/2018,DAL0288581,560.00,N,N/A,N,N/A
Pendle Borough Council,Democratic & Legal Services,Supplies and Services,Mobile Phones,4508,EE LIMITED,A0004680, 24/05/2018,DAL4005883,-100.00,N,N/A,N,N/A
Pendle Borough Council,Democratic & Legal Services,Supplies and Services,Mobile Phones,4508,EE LIMITED,A0004680, 24/05/2018,DAL0288373,240.00,N,N/A,N,N/A
Pendle Borough Council,Planning & Building Control,Supplies and Services,Seminars etc All Costs,4601,REDACTED - PERESONAL DATA,A0005566, 17/05/2018,PBC0288128,12.80,N,N/A,N,N/A
Pendle Borough Council,Planning & Building Control,Supplies and Services,Seminars etc All Costs,4601,REDACTED - PERESONAL DATA,A0005566, 03/05/2018,PBC0287927,17.50,N,N/A,N,N/A
Pendle Borough Council,Financial Services,Premises Related Expense,Rents,2301,PARK  HIGH SCHOOL,A0005785, 03/05/2018,AAS0287914,100.00,N,N/A,N,N/A
Pendle Borough Council,Property Services,Premises Related Expense,Bldgs : R & M : Day To Day,2001,FAST GLASS GLAZING LIMITED,A0005903, 31/05/2018,EST0288557,89.00,N,N/A,N,N/A
Pendle Borough Council,Property Services,Premises Related Expense,Bldgs : R & M : Day To Day,2001,FAST GLASS GLAZING LIMITED,A0005903, 31/05/2018,EST0288555,165.00,N,N/A,N,N/A
Pendle Borough Council,Property Services,Premises Related Expense,Bldgs : R & M : Day To Day,2001,FAST GLASS GLAZING LIMITED,A0005903, 31/05/2018,EST0288555,200.00,N,N/A,N,N/A
Pendle Borough Council,Parks & Recreation Services,Transport Related Expense,Hire of Plant,3502,F G ROWLAND LIMITED,A0006489, 17/05/2018,PCO0288172,1404.00,N,N/A,N,N/A
Pendle Borough Council,Democratic & Legal Services,Indirect Employee Expenses,Staff Refreshments,1261,PHILIP SANDERSON,A0006611, 17/05/2018,DAL0288226,14.84,N,N/A,N,N/A
Pendle Borough Council,Democratic & Legal Services,Indirect Employee Expenses,Staff Refreshments,1261,PHILIP SANDERSON,A0006611, 17/05/2018,DAL0288226,10.00,N,N/A,N,N/A
Pendle Borough Council,Democratic & Legal Services,Supplies and Services,Hospitality,4611,PHILIP SANDERSON,A0006611, 17/05/2018,DAL0288226,20.40,N,N/A,N,N/A
Pendle Borough Council,Parks & Recreation Services,Premises Related Expense,Bldgs : R & M : Day To Day,2001,LHT ENTERPRISES LIMITED,A0010288, 10/05/2018,PCO0288052,43.73,N,N/A,N,N/A
Pendle Borough Council,Environmental Health Services,Premises Related Expense,Bldgs : R & M : Abnormal,2002,CPC PROP & GARDENING SERV LTD,A0011770, 10/05/2018,ENV0288042,110.00,N,N/A,N,N/A
Pendle Borough Council,Democratic & Legal Services,Supplies and Services,Printing & Stationery,4301,NLA MEDIA ACCESS LIMITED,A0012340, 24/05/2018,DAL0288390,711.00,N,N/A,N,N/A
Pendle Borough Council,Democratic & Legal Services,Premises Related Expense,Rents,2301,PENDLE LEISURE LIMITED,A0012961, 31/05/2018,DAL0288580,111.00,Y,XR43029,N,N/A
Pendle Borough Council,Democratic & Legal Services,Premises Related Expense,Rents,2301,PENDLE LEISURE LIMITED,A0012961, 31/05/2018,DAL0288578,180.00,Y,XR43029,N,N/A
Pendle Borough Council,Financial Services,Premises Related Expense,Rents,2301,PENDLE LEISURE LIMITED,A0012961, 03/05/2018,AAS0287878,500.00,Y,XR43029,N,N/A
Pendle Borough Council,Democratic & Legal Services,Premises Related Expense,Rents,2301,PENDLE LEISURE LIMITED,A0012961, 31/05/2018,DAL0288579,585.00,Y,XR43029,N,N/A
Pendle Borough Council,Human Resources,Supplies and Services,Seminars etc All Costs,4601,PENDLE LEISURE LIMITED,A0012961, 10/05/2018,PER0288103,120.00,Y,XR43029,N,N/A
Pendle Borough Council,Human Resources,Supplies and Services,Seminars etc All Costs,4601,PENDLE LEISURE LIMITED,A0012961, 17/05/2018,PER0288254,150.00,Y,XR43029,N,N/A
Pendle Borough Council,Human Resources,Supplies and Services,Seminars etc All Costs,4601,PENDLE LEISURE LIMITED,A0012961, 31/05/2018,PER0288542,230.00,Y,XR43029,N,N/A
Pendle Borough Council,Democratic & Legal Services,Supplies and Services,Grants/Contributions,4739,PENDLE LEISURE LIMITED,A0012961, 24/05/2018,DAL0288436,33.33,Y,XR43029,N,N/A
Pendle Borough Council,Democratic & Legal Services,Supplies and Services,Grants/Contributions,4739,PENDLE LEISURE LIMITED,A0012961, 24/05/2018,DAL0288436,90.00,Y,XR43029,N,N/A
Pendle Borough Council,Parks & Recreation Services,Premises Related Expense,Bldgs : R & M : Day To Day,2001,LANDSCAPE ENGINEERING LTD,A0013135, 31/05/2018,PCO0288459,720.00,N,N/A,N,N/A
Pendle Borough Council,Property Services,Premises Related Expense,Grounds : R & M : Day to Day : Routine,2101,LANDSCAPE ENGINEERING LTD,A0013135, 03/05/2018,EST0288015,400.00,N,N/A,N,N/A
Pendle Borough Council,Parks & Recreation Services,Premises Related Expense,Grounds : R & M : Day to Day : Routine,2101,LANDSCAPE ENGINEERING LTD,A0013135, 31/05/2018,PCO0288443,2400.00,N,N/A,N,N/A
Pendle Borough Council,Parks & Recreation Services,Premises Related Expense,Grounds : R & M : Day to Day : Routine,2101,LANDSCAPE ENGINEERING LTD,A0013135, 31/05/2018,PCO0288459,1200.00,N,N/A,N,N/A
Pendle Borough Council,Property Services,Capital Costs,Capital : Payments,CD14,LANDSCAPE ENGINEERING LTD,A0013135, 24/05/2018,EST0288444,660.00,N,N/A,N,N/A
Pendle Borough Council,Property Services,Capital Costs,Capital : Payments,CD14,LANDSCAPE ENGINEERING LTD,A0013135, 24/05/2018,EST0288442,1510.00,N,N/A,N,N/A
Pendle Borough Council,Operational Services,Supplies and Services,Sub-Contractors,4007,ORCHARD RECYCLING SERVICE,A0015803, 17/05/2018,OPS0288173,585.90,N,N/A,N,N/A
Pendle Borough Council,Operational Services,Supplies and Services,Sub-Contractors,4007,ORCHARD RECYCLING SERVICE,A0015803, 03/05/2018,OPS0287977,806.40,N,N/A,N,N/A
Pendle Borough Council,Operational Services,Supplies and Services,Sub-Contractors,4007,ORCHARD RECYCLING SERVICE,A0015803, 10/05/2018,OPS0288088,837.90,N,N/A,N,N/A
Pendle Borough Council,Operational Services,Supplies and Services,Sub-Contractors,4007,ORCHARD RECYCLING SERVICE,A0015803, 31/05/2018,OPS0288543,837.90,N,N/A,N,N/A
Pendle Borough Council,Operational Services,Supplies and Services,Sub-Contractors,4007,ORCHARD RECYCLING SERVICE,A0015803, 24/05/2018,OPS0288375,1115.10,N,N/A,N,N/A
Pendle Borough Council,Operational Services,Supplies and Services,Miscellaneous : Other,4707,ORCHARD RECYCLING SERVICE,A0015803, 10/05/2018,OPS0288088,177.50,N,N/A,N,N/A
Pendle Borough Council,Operational Services,Supplies and Services,Miscellaneous : Other,4707,ORCHARD RECYCLING SERVICE,A0015803, 24/05/2018,OPS0288375,274.25,N,N/A,N,N/A
Pendle Borough Council,Operational Services,Supplies and Services,Miscellaneous : Other,4707,ORCHARD RECYCLING SERVICE,A0015803, 03/05/2018,OPS0287977,331.25,N,N/A,N,N/A
Pendle Borough Council,Operational Services,Supplies and Services,Miscellaneous : Other,4707,ORCHARD RECYCLING SERVICE,A0015803, 17/05/2018,OPS0288173,386.50,N,N/A,N,N/A
Pendle Borough Council,Operational Services,Supplies and Services,Miscellaneous : Other,4707,ORCHARD RECYCLING SERVICE,A0015803, 31/05/2018,OPS0288543,481.00,N,N/A,N,N/A
Pendle Borough Council,Operational Services,Agency Costs,Fast Action Response,5009,ORCHARD RECYCLING SERVICE,A0015803, 10/05/2018,OPS0288088,177.50,N,N/A,N,N/A
Pendle Borough Council,Operational Services,Agency Costs,Fast Action Response,5009,ORCHARD RECYCLING SERVICE,A0015803, 24/05/2018,OPS0288375,274.25,N,N/A,N,N/A
Pendle Borough Council,Operational Services,Agency Costs,Fast Action Response,5009,ORCHARD RECYCLING SERVICE,A0015803, 03/05/2018,OPS0287977,331.25,N,N/A,N,N/A
Pendle Borough Council,Operational Services,Agency Costs,Fast Action Response,5009,ORCHARD RECYCLING SERVICE,A0015803, 17/05/2018,OPS0288173,386.50,N,N/A,N,N/A
Pendle Borough Council,Operational Services,Agency Costs,Fast Action Response,5009,ORCHARD RECYCLING SERVICE,A0015803, 31/05/2018,OPS0288543,481.00,N,N/A,N,N/A
Pendle Borough Council,Operational Services,Capital Costs,Capital : Payments,CD14,ORCHARD RECYCLING SERVICE,A0015803, 03/05/2018,OPS0287977,390.00,N,N/A,N,N/A
Pendle Borough Council,Financial Services,Supplies and Services,Other Expenses,4705,MAYORESS CHARITY COMMITTEE,A0015905, 24/05/2018,AAS0288346,1247.00,N,N/A,N,N/A
Pendle Borough Council,Housing Regeneration Services,Supplies and Services,Other Expenses,4705,REDACTED - PERESONAL DATA,A0020031, 24/05/2018,HMR0288384,9.99,N,N/A,N,N/A
Pendle Borough Council,Environmental Health Services,Supplies and Services,Other Expenses,4705,CHARTERED INST OF ENV HEALTH,A0020604, 10/05/2018,ENV0288084,490.00,N,N/A,N,N/A
Pendle Borough Council,Parks & Recreation Services,Transport Related Expense,Tprt : Repairs : General,3105,WALTON SUMMIT TRUCK  CENTRE LTD,A0020983, 03/05/2018,PCO0287949,36.48,N,N/A,N,N/A
Pendle Borough Council,Operational Services,Supplies and Services,Other Expenses,4705,ASPEN VALLEY KENNELS & CATTERY,A0022106, 17/05/2018,OPS0288198,929.00,N,N/A,N,N/A
Pendle Borough Council,Property Services,Premises Related Expense,Electricity,2203,E.ON,A0023073, 17/05/2018,EST0288257,0.22,N,N/A,N,N/A
Pendle Borough Council,Parks & Recreation Services,Premises Related Expense,Bldgs : R & M : Day To Day,2001,MABRON PLASTICS LTD,A0024126, 17/05/2018,PCO0288164,1776.00,N,N/A,N,N/A
Pendle Borough Council,Financial Services,Transport Related Expense,Tprt : Annual Hire Charge,3601,ALD AUTOMOTIVES,A0025555, 24/05/2018,AAS0288768,193.24,N,N/A,N,N/A
Pendle Borough Council,Housing Regeneration Services,Supplies and Services,Subscriptions & Donations,4706,LANGUAGE LINE LIMITED,A0025582, 17/05/2018,HMR0288235,90.00,N,N/A,N,N/A
Pendle Borough Council,Environmental Health Services,Supplies and Services,Other Expenses,4705,GRADKO INTERNATIONAL LTD,A0025806, 10/05/2018,ENV0288082,4.50,N,N/A,N,N/A
Pendle Borough Council,Environmental Health Services,Supplies and Services,Other Expenses,4705,GRADKO INTERNATIONAL LTD,A0025806, 31/05/2018,ENV0288570,183.00,N,N/A,N,N/A
Pendle Borough Council,Environmental Health Services,Supplies and Services,Other Expenses,4705,GRADKO INTERNATIONAL LTD,A0025806, 10/05/2018,ENV0288082,192.50,N,N/A,N,N/A
Pendle Borough Council,Financial Services,Premises Related Expense,Rents,2301,THE ROCKING HORSE CLUB - PENDLE LTD,A0025948, 03/05/2018,AAS0287901,100.00,N,N/A,N,N/A
Pendle Borough Council,Economic Development & Tourism,Supplies and Services,Grants/Contributions,4739,PENNINE EVENTS LIMITED,A0027128, 03/05/2018,REG0287943,5643.00,N,N/A,N,N/A
Pendle Borough Council,Democratic & Legal Services,Supplies and Services,Court Fees,4403,REDACTED - PERESONAL DATA,A0040311, 31/05/2018,DAL0288576,1.75,N,N/A,N,N/A
Pendle Borough Council,Democratic & Legal Services,Supplies and Services,Court Fees,4403,REDACTED - PERESONAL DATA,A0040311, 31/05/2018,DAL0288576,1.83,N,N/A,N,N/A
Pendle Borough Council,Democratic & Legal Services,Supplies and Services,Seminars etc All Costs,4601,REDACTED - PERESONAL DATA,A0040311, 03/05/2018,DAL0287993,1.75,N,N/A,N,N/A
Pendle Borough Council,Democratic & Legal Services,Supplies and Services,Seminars etc All Costs,4601,REDACTED - PERESONAL DATA,A0040311, 03/05/2018,DAL0287993,4.67,N,N/A,N,N/A
Pendle Borough Council,Democratic & Legal Services,Supplies and Services,Seminars etc All Costs,4601,REDACTED - PERESONAL DATA,A0040311, 10/05/2018,DAL0288031,12.80,N,N/A,N,N/A
Pendle Borough Council,Democratic & Legal Services,Supplies and Services,EFM : Photocopiers,4001,CANON (UK) LIMITED,A0040400, 24/05/2018,DAL0288380,32.81,N,N/A,N,N/A
Pendle Borough Council,Democratic & Legal Services,Supplies and Services,EFM : Photocopiers,4001,CANON (UK) LIMITED,A0040400, 24/05/2018,DAL0288380,41.02,N,N/A,N,N/A
Pendle Borough Council,Democratic & Legal Services,Supplies and Services,EFM : Photocopiers,4001,CANON (UK) LIMITED,A0040400, 24/05/2018,DAL0288380,57.42,N,N/A,N,N/A
Pendle Borough Council,Democratic & Legal Services,Supplies and Services,EFM : Photocopiers,4001,CANON (UK) LIMITED,A0040400, 24/05/2018,DAL0288380,16.41,N,N/A,N,N/A
Pendle Borough Council,Democratic & Legal Services,Supplies and Services,EFM : Photocopiers,4001,CANON (UK) LIMITED,A0040400, 24/05/2018,DAL0288380,16.41,N,N/A,N,N/A
Pendle Borough Council,Democratic & Legal Services,Supplies and Services,EFM : Photocopiers,4001,CANON (UK) LIMITED,A0040400, 31/05/2018,DAL0288577,0.96,N,N/A,N,N/A
Pendle Borough Council,Democratic & Legal Services,Supplies and Services,EFM : Photocopiers,4001,CANON (UK) LIMITED,A0040400, 24/05/2018,DAL0288463,27.25,N,N/A,N,N/A
Pendle Borough Council,Democratic & Legal Services,Supplies and Services,EFM : Photocopiers,4001,CANON (UK) LIMITED,A0040400, 31/05/2018,DAL0288577,173.18,N,N/A,N,N/A
Pendle Borough Council,Democratic & Legal Services,Supplies and Services,EFM : Photocopiers,4001,CANON (UK) LIMITED,A0040400, 31/05/2018,DAL0288577,114.14,N,N/A,N,N/A
Pendle Borough Council,Democratic & Legal Services,Supplies and Services,EFM : Photocopiers,4001,CANON (UK) LIMITED,A0040400, 31/05/2018,DAL0288577,8.03,N,N/A,N,N/A
Pendle Borough Council,Democratic & Legal Services,Supplies and Services,EFM : Photocopiers,4001,CANON (UK) LIMITED,A0040400, 24/05/2018,DAL0288463,49.84,N,N/A,N,N/A
Pendle Borough Council,Democratic & Legal Services,Supplies and Services,EFM : Photocopiers,4001,CANON (UK) LIMITED,A0040400, 24/05/2018,DAL0288463,0.78,N,N/A,N,N/A
Pendle Borough Council,Democratic & Legal Services,Supplies and Services,EFM : Photocopiers,4001,CANON (UK) LIMITED,A0040400, 31/05/2018,DAL0288577,19.98,N,N/A,N,N/A
Pendle Borough Council,Democratic & Legal Services,Supplies and Services,EFM : Photocopiers,4001,CANON (UK) LIMITED,A0040400, 31/05/2018,DAL0288577,32.93,N,N/A,N,N/A
Pendle Borough Council,Housing Regeneration Services,Supplies and Services,EFM : Photocopiers,4001,CANON (UK) LIMITED,A0040400, 24/05/2018,HMR0288388,60.35,N,N/A,N,N/A
Pendle Borough Council,Housing Regeneration Services,Supplies and Services,EFM : Photocopiers,4001,CANON (UK) LIMITED,A0040400, 24/05/2018,HMR0288388,78.45,N,N/A,N,N/A
Pendle Borough Council,Housing Regeneration Services,Supplies and Services,EFM : Photocopiers,4001,CANON (UK) LIMITED,A0040400, 31/05/2018,HMR0288563,56.66,N,N/A,N,N/A
Pendle Borough Council,Housing Regeneration Services,Supplies and Services,EFM : Photocopiers,4001,CANON (UK) LIMITED,A0040400, 24/05/2018,HMR0288395,59.40,N,N/A,N,N/A
Pendle Borough Council,Housing Regeneration Services,Supplies and Services,EFM : Photocopiers,4001,CANON (UK) LIMITED,A0040400, 24/05/2018,HMR0288386,120.78,N,N/A,N,N/A
Pendle Borough Council,Engineering & Special Projects,Supplies and Services,EFM : Photocopiers,4001,CANON (UK) LIMITED,A0040400, 24/05/2018,HED0288400,130.16,N,N/A,N,N/A
Pendle Borough Council,Housing Regeneration Services,Supplies and Services,EFM : Photocopiers,4001,CANON (UK) LIMITED,A0040400, 24/05/2018,HMR0288389,173.50,N,N/A,N,N/A
Pendle Borough Council,Engineering & Special Projects,Supplies and Services,EFM : Photocopiers,4001,CANON (UK) LIMITED,A0040400, 24/05/2018,HED0288402,253.22,N,N/A,N,N/A
Pendle Borough Council,Engineering & Special Projects,Supplies and Services,EFM : Photocopiers,4001,CANON (UK) LIMITED,A0040400, 24/05/2018,HED0288400,40.00,N,N/A,N,N/A
Pendle Borough Council,Planning & Building Control,Supplies and Services,EFM : Other Equipment,4003,CANON (UK) LIMITED,A0040400, 31/05/2018,PBC0288471,53.52,N,N/A,N,N/A
Pendle Borough Council,Directorate,Supplies and Services,Printing & Stationery,4301,CANON (UK) LIMITED,A0040400, 24/05/2018,MAN0288419,86.44,N,N/A,N,N/A
Pendle Borough Council,Planning & Building Control,Supplies and Services,Printing & Stationery,4301,CANON (UK) LIMITED,A0040400, 31/05/2018,PBC0288478,58.59,N,N/A,N,N/A
Pendle Borough Council,Planning & Building Control,Supplies and Services,Printing & Stationery,4301,CANON (UK) LIMITED,A0040400, 31/05/2018,PBC0288479,316.23,N,N/A,N,N/A
Pendle Borough Council,Financial Services,Premises Related Expense,Rents,2301,ROLLS ROYCE LEISURE,A0040636, 03/05/2018,AAS0287897,400.00,N,N/A,N,N/A
Pendle Borough Council,Property Services,Premises Related Expense,Bldgs : R & M : Day To Day,2001,PENNINE FIRE & SAFETY LTD,A0040931, 17/05/2018,EST0288242,93.50,N,N/A,N,N/A
Pendle Borough Council,Property Services,Premises Related Expense,Bldgs : R & M : Day To Day,2001,PENNINE FIRE & SAFETY LTD,A0040931, 17/05/2018,EST0288243,28.00,N,N/A,N,N/A
Pendle Borough Council,Economic Development & Tourism,Supplies and Services,Maintenance contracts,4006,REDACTED - PERESONAL DATA,A0041674, 24/05/2018,REG0288276,6.17,N,N/A,N,N/A
Pendle Borough Council,Economic Development & Tourism,Supplies and Services,Miscellaneous : Other,4707,REDACTED - PERESONAL DATA,A0041674, 24/05/2018,REG0288276,19.67,N,N/A,N,N/A
Pendle Borough Council,Economic Development & Tourism,Supplies and Services,Miscellaneous : Other,4707,REDACTED - PERESONAL DATA,A0041674, 17/05/2018,REG0288040,34.67,N,N/A,N,N/A
Pendle Borough Council,Economic Development & Tourism,Supplies and Services,Miscellaneous : Other,4707,REDACTED - PERESONAL DATA,A0041674, 17/05/2018,REG0288096,68.83,N,N/A,N,N/A
Pendle Borough Council,Chief Executives Policy Unit,Supplies and Services,Printing & Stationery,4301,REDACTED - PERESONAL DATA,A0041689, 24/05/2018,COR0288370,4.99,N,N/A,N,N/A
Pendle Borough Council,Chief Executives Policy Unit,Supplies and Services,Seminars etc All Costs,4601,REDACTED - PERESONAL DATA,A0041689, 24/05/2018,COR0288370,1.50,N,N/A,N,N/A
Pendle Borough Council,Financial Services,Premises Related Expense,Rents,2301,MARSDEN COMMUNITY PRIMARY SCHOOL,A0042343, 03/05/2018,AAS0287902,100.00,N,N/A,N,N/A
Pendle Borough Council,Directorate,Supplies and Services,Seminars etc All Costs,4601,EVENT-X LIMITED,A0042407, 24/05/2018,MAN0288418,260.00,N,N/A,N,N/A
Pendle Borough Council,Financial Services,Indirect Employee Expenses,Water Supply,1262,WATER SMART (NW) LIMITED,A0042729, 10/05/2018,AAS0288121,179.00,N,N/A,N,N/A
Pendle Borough Council,Parks & Recreation Services,Premises Related Expense,Grounds : R & M : Day to Day : Routine,2101,C & R WALNE ENGRAVERS,A0042734, 03/05/2018,PCO0287965,36.00,N,N/A,N,N/A
Pendle Borough Council,Financial Services,,Precept Parish & T Council,303,ROUGHLEE BOOTH PARISH COUNCIL,A0042922, 08/05/2018,AAS0288069,7213.00,N,N/A,N,N/A
Pendle Borough Council,Economic Development & Tourism,Supplies and Services,EFM : Other Equipment,4003,ROBERTSHAWS GARDEN MACHINERY LTD,A0043296, 31/05/2018,REG0288466,14.13,N,N/A,N,N/A
Pendle Borough Council,Parks & Recreation Services,Transport Related Expense,Tprt : Repairs : General,3105,REDACTED - PERESONAL DATA,A0043864, 03/05/2018,PCO0287994,75.00,N,N/A,N,N/A
Pendle Borough Council,Operational Services,Transport Related Expense,Tprt : Repairs : General,3105,S M SHEPHERD BUILDING CONTRACTORS,A0044037, 24/05/2018,OPS0288283,37.50,N,N/A,N,N/A
Pendle Borough Council,Operational Services,Supplies and Services,Sub-Contractors,4007,S M SHEPHERD BUILDING CONTRACTORS,A0044037, 24/05/2018,OPS0288283,20.00,N,N/A,N,N/A
Pendle Borough Council,Operational Services,Supplies and Services,Sub-Contractors,4007,S M SHEPHERD BUILDING CONTRACTORS,A0044037, 03/05/2018,OPS0287981,40.00,N,N/A,N,N/A
Pendle Borough Council,Operational Services,Supplies and Services,Sub-Contractors,4007,S M SHEPHERD BUILDING CONTRACTORS,A0044037, 24/05/2018,OPS0288283,80.00,N,N/A,N,N/A
Pendle Borough Council,Property Services,Premises Related Expense,Electricity,2203,E.ON UK PLC,A0044040, 17/05/2018,EST0288258,339.43,N,N/A,N,N/A
Pendle Borough Council,Operational Services,Transport Related Expense,Tprt : Repairs : General,3105,GO PLANT LIMITED,A0045105, 24/05/2018,OPS0288321,57.52,N,N/A,N,N/A
Pendle Borough Council,Operational Services,Transport Related Expense,Tprt : Repairs : General,3105,GO PLANT LIMITED,A0045105, 24/05/2018,OPS0288309,80.34,N,N/A,N,N/A
Pendle Borough Council,Operational Services,Transport Related Expense,Tprt : Repairs : General,3105,GO PLANT LIMITED,A0045105, 24/05/2018,OPS0288312,252.50,N,N/A,N,N/A
Pendle Borough Council,Operational Services,Transport Related Expense,Tprt : Repairs : General,3105,GO PLANT LIMITED,A0045105, 24/05/2018,OPS0288329,460.45,N,N/A,N,N/A
Pendle Borough Council,Operational Services,Transport Related Expense,Tprt : Repairs : General,3105,GO PLANT LIMITED,A0045105, 24/05/2018,OPS0288305,149.68,N,N/A,N,N/A
Pendle Borough Council,Operational Services,Transport Related Expense,Tprt : Repairs : General,3105,GO PLANT LIMITED,A0045105, 24/05/2018,OPS0288332,446.65,N,N/A,N,N/A
Pendle Borough Council,Operational Services,Transport Related Expense,Tprt : Repairs : General,3105,GO PLANT LIMITED,A0045105, 24/05/2018,OPS0288328,44.63,N,N/A,N,N/A
Pendle Borough Council,Operational Services,Transport Related Expense,Tprt : Repairs : General,3105,GO PLANT LIMITED,A0045105, 24/05/2018,OPS0288327,367.50,N,N/A,N,N/A
Pendle Borough Council,Operational Services,Transport Related Expense,Tprt : Repairs : General,3105,GO PLANT LIMITED,A0045105, 24/05/2018,OPS0288317,149.68,N,N/A,N,N/A
Pendle Borough Council,Operational Services,Transport Related Expense,Tprt : Repairs : General,3105,GO PLANT LIMITED,A0045105, 24/05/2018,OPS0288308,99.08,N,N/A,N,N/A
Pendle Borough Council,Operational Services,Transport Related Expense,Tprt : Repairs : General,3105,GO PLANT LIMITED,A0045105, 24/05/2018,OPS0288325,367.50,N,N/A,N,N/A
Pendle Borough Council,Operational Services,Transport Related Expense,Tprt : Repairs : General,3105,GO PLANT LIMITED,A0045105, 24/05/2018,OPS0288333,136.37,N,N/A,N,N/A
Pendle Borough Council,Operational Services,Transport Related Expense,Tprt : Repairs : General,3105,GO PLANT LIMITED,A0045105, 24/05/2018,OPS0288324,149.68,N,N/A,N,N/A
Pendle Borough Council,Operational Services,Transport Related Expense,Tprt : Repairs : General,3105,GO PLANT LIMITED,A0045105, 24/05/2018,OPS0288326,659.52,N,N/A,N,N/A
Pendle Borough Council,Operational Services,Transport Related Expense,Tprt : Repairs : General,3105,GO PLANT LIMITED,A0045105, 17/05/2018,OPS0288194,163.81,N,N/A,N,N/A
Pendle Borough Council,Economic Development & Tourism,Transport Related Expense,Tprt : Repairs : General,3105,GO PLANT LIMITED,A0045105, 17/05/2018,REG0287875,162.90,N,N/A,N,N/A
Pendle Borough Council,Operational Services,Transport Related Expense,Tyres,3204,GO PLANT LIMITED,A0045105, 24/05/2018,OPS0288304,33.30,N,N/A,N,N/A
Pendle Borough Council,Operational Services,Transport Related Expense,Tyres,3204,GO PLANT LIMITED,A0045105, 24/05/2018,OPS0288320,41.30,N,N/A,N,N/A
Pendle Borough Council,Operational Services,Transport Related Expense,Tyres,3204,GO PLANT LIMITED,A0045105, 24/05/2018,OPS0288311,133.30,N,N/A,N,N/A
Pendle Borough Council,Operational Services,Transport Related Expense,Tyres,3204,GO PLANT LIMITED,A0045105, 24/05/2018,OPS0288331,132.15,N,N/A,N,N/A
Pendle Borough Council,Operational Services,Transport Related Expense,Tyres,3204,GO PLANT LIMITED,A0045105, 24/05/2018,OPS0288306,33.30,N,N/A,N,N/A
Pendle Borough Council,Operational Services,Transport Related Expense,Tyres,3204,GO PLANT LIMITED,A0045105, 24/05/2018,OPS0288322,89.50,N,N/A,N,N/A
Pendle Borough Council,Parks & Recreation Services,Transport Related Expense,Tyres,3204,GO PLANT LIMITED,A0045105, 10/05/2018,PCO0288049,33.30,N,N/A,N,N/A
Pendle Borough Council,Parks & Recreation Services,Transport Related Expense,Tyres,3204,GO PLANT LIMITED,A0045105, 10/05/2018,PCO0288048,41.30,N,N/A,N,N/A
Pendle Borough Council,Parks & Recreation Services,Transport Related Expense,Tyres,3204,GO PLANT LIMITED,A0045105, 10/05/2018,PCO0288047,363.20,N,N/A,N,N/A
Pendle Borough Council,Operational Services,Transport Related Expense,Tprt : Annual Hire Charge,3601,GO PLANT LIMITED,A0045105, 24/05/2018,OPS0288330,200.00,N,N/A,N,N/A
Pendle Borough Council,Operational Services,Transport Related Expense,Tprt : Annual Hire Charge,3601,GO PLANT LIMITED,A0045105, 17/05/2018,OPS0288192,400.00,N,N/A,N,N/A
Pendle Borough Council,Operational Services,Transport Related Expense,Tprt : Annual Hire Charge,3601,GO PLANT LIMITED,A0045105, 17/05/2018,OPS0288193,500.00,N,N/A,N,N/A
Pendle Borough Council,Operational Services,Transport Related Expense,Tprt : Annual Hire Charge,3601,GO PLANT LIMITED,A0045105, 24/05/2018,OPS0288319,750.00,N,N/A,N,N/A
Pendle Borough Council,Chief Executives Policy Unit,Transport Related Expense,Tprt : Annual Hire Charge,3601,GO PLANT LIMITED,A0045105, 17/05/2018,COR0288126,290.00,N,N/A,N,N/A
Pendle Borough Council,Operational Services,Transport Related Expense,Tprt : Annual Hire Charge,3601,GO PLANT LIMITED,A0045105, 17/05/2018,OPS0288204,61768.31,N,N/A,N,N/A
Pendle Borough Council,Operational Services,Transport Related Expense,Tprt : Annual Hire Charge,3601,GO PLANT LIMITED,A0045105, 17/05/2018,OPS0288205,61768.31,N,N/A,N,N/A
Pendle Borough Council,Democratic & Legal Services,Supplies and Services,Reference Books Acts,4304,HAMMICKS LEGAL INFORMATION SERVICES,A0045271, 03/05/2018,DAL0287945,368.00,N,N/A,N,N/A
Pendle Borough Council,Financial Services,Premises Related Expense,Bldgs : R & M : Day To Day,2001,PLUSNET TECHNOLOGIES LIMITED,A0045646, 01/05/2018,AAS0288184,15.00,N,N/A,N,N/A
Pendle Borough Council,Financial Services,Supplies and Services,Computer Charges,4509,PLUSNET TECHNOLOGIES LIMITED,A0045646, 03/05/2018,AAS0288182,12.49,N,N/A,N,N/A
Pendle Borough Council,Engineering & Special Projects,Premises Related Expense,Grounds : R & M : Day to Day : Routine,2101,DIANES CATERING,A0045900, 03/05/2018,HED0287870,102.92,N,N/A,N,N/A
Pendle Borough Council,Financial Services,Supplies and Services,Expenditure : Materials,2,BARCLAYCARD COMMERCIAL,A0045954, 22/05/2018,AAS0288609,38.93,N,N/A,N,N/A
Pendle Borough Council,Financial Services,Premises Related Expense,Bldgs : R & M : Day To Day,2001,BARCLAYCARD COMMERCIAL,A0045954, 22/05/2018,AAS0288609,22.38,N,N/A,N,N/A
Pendle Borough Council,Financial Services,Premises Related Expense,Grounds : R & M : Day to Day : Routine,2101,BARCLAYCARD COMMERCIAL,A0045954, 22/05/2018,AAS0288611,3.42,N,N/A,N,N/A
Pendle Borough Council,Financial Services,Premises Related Expense,Grounds : R & M : Day to Day : Routine,2101,BARCLAYCARD COMMERCIAL,A0045954, 22/05/2018,AAS0288611,78.95,N,N/A,N,N/A
Pendle Borough Council,Financial Services,Premises Related Expense,Premises Cleaning,2601,BARCLAYCARD COMMERCIAL,A0045954, 22/05/2018,AAS0288613,10.00,N,N/A,N,N/A
Pendle Borough Council,Financial Services,Premises Related Expense,Premises Cleaning,2601,BARCLAYCARD COMMERCIAL,A0045954, 22/05/2018,AAS0288613,30.00,N,N/A,N,N/A
Pendle Borough Council,Financial Services,Supplies and Services,EFM : Office and computer equipment,4002,BARCLAYCARD COMMERCIAL,A0045954, 22/05/2018,AAS0288611,3.74,N,N/A,N,N/A
Pendle Borough Council,Financial Services,Supplies and Services,EFM : Office and computer equipment,4002,BARCLAYCARD COMMERCIAL,A0045954, 22/05/2018,AAS0288611,4.46,N,N/A,N,N/A
Pendle Borough Council,Financial Services,Supplies and Services,EFM : Office and computer equipment,4002,BARCLAYCARD COMMERCIAL,A0045954, 22/05/2018,AAS0288611,4.98,N,N/A,N,N/A
Pendle Borough Council,Financial Services,Supplies and Services,EFM : Other Equipment,4003,BARCLAYCARD COMMERCIAL,A0045954, 22/05/2018,AAS0288611,17.46,N,N/A,N,N/A
Pendle Borough Council,Financial Services,Supplies and Services,EFM : Other Equipment,4003,BARCLAYCARD COMMERCIAL,A0045954, 22/05/2018,AAS0288611,29.76,N,N/A,N,N/A
Pendle Borough Council,Financial Services,Supplies and Services,EFM : Other Equipment,4003,BARCLAYCARD COMMERCIAL,A0045954, 22/05/2018,AAS0288611,2.00,N,N/A,N,N/A
Pendle Borough Council,Financial Services,Supplies and Services,EFM : Other Equipment,4003,BARCLAYCARD COMMERCIAL,A0045954, 22/05/2018,AAS0288611,3.54,N,N/A,N,N/A
Pendle Borough Council,Financial Services,Supplies and Services,EFM Materials,4004,BARCLAYCARD COMMERCIAL,A0045954, 22/05/2018,AAS0288613,4.50,N,N/A,N,N/A
Pendle Borough Council,Financial Services,Supplies and Services,EFM Materials,4004,BARCLAYCARD COMMERCIAL,A0045954, 22/05/2018,AAS0288613,110.00,N,N/A,N,N/A
Pendle Borough Council,Financial Services,Supplies and Services,Printing & Stationery,4301,BARCLAYCARD COMMERCIAL,A0045954, 22/05/2018,AAS0288611,11.69,N,N/A,N,N/A
Pendle Borough Council,Financial Services,Supplies and Services,Printing & Stationery,4301,BARCLAYCARD COMMERCIAL,A0045954, 22/05/2018,AAS0288611,255.60,N,N/A,N,N/A
Pendle Borough Council,Financial Services,Supplies and Services,TV Rentals & Licences,4408,BARCLAYCARD COMMERCIAL,A0045954, 22/05/2018,AAS0288613,150.50,N,N/A,N,N/A
Pendle Borough Council,Financial Services,Supplies and Services,Postages,4501,BARCLAYCARD COMMERCIAL,A0045954, 22/05/2018,AAS0288612,2.00,N,N/A,N,N/A
Pendle Borough Council,Financial Services,Supplies and Services,Postages,4501,BARCLAYCARD COMMERCIAL,A0045954, 22/05/2018,AAS0288612,15.30,N,N/A,N,N/A
Pendle Borough Council,Financial Services,Supplies and Services,Postages,4501,BARCLAYCARD COMMERCIAL,A0045954, 22/05/2018,AAS0288612,10.95,N,N/A,N,N/A
Pendle Borough Council,Financial Services,Supplies and Services,Seminars etc All Costs,4601,BARCLAYCARD COMMERCIAL,A0045954, 22/05/2018,AAS0288612,2.08,N,N/A,N,N/A
Pendle Borough Council,Financial Services,Supplies and Services,Seminars etc All Costs,4601,BARCLAYCARD COMMERCIAL,A0045954, 22/05/2018,AAS0288613,3.75,N,N/A,N,N/A
Pendle Borough Council,Financial Services,Supplies and Services,Members Conference Expenses,4605,BARCLAYCARD COMMERCIAL,A0045954, 22/05/2018,AAS0288612,92.50,N,N/A,N,N/A
Pendle Borough Council,Financial Services,Supplies and Services,Other Expenses,4705,BARCLAYCARD COMMERCIAL,A0045954, 22/05/2018,AAS0288613,4.00,N,N/A,N,N/A
Pendle Borough Council,Financial Services,Supplies and Services,Other Expenses,4705,BARCLAYCARD COMMERCIAL,A0045954, 22/05/2018,AAS0288610,50.00,N,N/A,N,N/A
Pendle Borough Council,Financial Services,Supplies and Services,Other Expenses,4705,BARCLAYCARD COMMERCIAL,A0045954, 22/05/2018,AAS0288610,50.00,N,N/A,N,N/A
Pendle Borough Council,Financial Services,Supplies and Services,Other Expenses,4705,BARCLAYCARD COMMERCIAL,A0045954, 22/05/2018,AAS0288610,50.00,N,N/A,N,N/A
Pendle Borough Council,Financial Services,Supplies and Services,Miscellaneous : Other,4707,BARCLAYCARD COMMERCIAL,A0045954, 22/05/2018,AAS0288613,1.50,N,N/A,N,N/A
Pendle Borough Council,Financial Services,Supplies and Services,Miscellaneous : Other,4707,BARCLAYCARD COMMERCIAL,A0045954, 22/05/2018,AAS0288613,360.54,N,N/A,N,N/A
Pendle Borough Council,Financial Services,Transfer Payments,Accommodation ,6103,BARCLAYCARD COMMERCIAL,A0045954, 22/05/2018,AAS0288613,-55.00,N,N/A,N,N/A
Pendle Borough Council,Financial Services,Transfer Payments,Accommodation ,6103,BARCLAYCARD COMMERCIAL,A0045954, 22/05/2018,AAS0288613,55.00,N,N/A,N,N/A
Pendle Borough Council,Financial Services,Transfer Payments,Accommodation ,6103,BARCLAYCARD COMMERCIAL,A0045954, 22/05/2018,AAS0288613,80.00,N,N/A,N,N/A
Pendle Borough Council,Financial Services,Transfer Payments,Accommodation ,6103,BARCLAYCARD COMMERCIAL,A0045954, 22/05/2018,AAS0288613,130.00,N,N/A,N,N/A
Pendle Borough Council,Financial Services,Transfer Payments,Accommodation ,6103,BARCLAYCARD COMMERCIAL,A0045954, 22/05/2018,AAS0288613,140.00,N,N/A,N,N/A
Pendle Borough Council,Financial Services,Transfer Payments,Accommodation ,6103,BARCLAYCARD COMMERCIAL,A0045954, 22/05/2018,AAS0288613,165.00,N,N/A,N,N/A
Pendle Borough Council,Financial Services,Transfer Payments,Accommodation ,6103,BARCLAYCARD COMMERCIAL,A0045954, 22/05/2018,AAS0288613,217.00,N,N/A,N,N/A
Pendle Borough Council,Financial Services,Transfer Payments,Accommodation ,6103,BARCLAYCARD COMMERCIAL,A0045954, 22/05/2018,AAS0288613,220.00,N,N/A,N,N/A
Pendle Borough Council,Revenues Services,,Fees Income : Non-VATable,9302,CLIFFORD SMITH & BUCHANAN,A0046285, 31/05/2018,TRE0288588,630.00,N,N/A,N,N/A
Pendle Borough Council,Engineering & Special Projects,Premises Related Expense,Grounds : R & M : Day to Day : Routine,2101,REDACTED - PERESONAL DATA,A0046430, 10/05/2018,HED0288080,3.17,N,N/A,N,N/A
Pendle Borough Council,Engineering & Special Projects,Premises Related Expense,Grounds : R & M : Day to Day : Routine,2101,REDACTED - PERESONAL DATA,A0046430, 10/05/2018,HED0288080,4.64,N,N/A,N,N/A
Pendle Borough Council,Engineering & Special Projects,Capital Costs,Capital : Payments,CD14,COLNE GALA,A0047272, 24/05/2018,HED0288357,1000.00,N,N/A,N,N/A
Pendle Borough Council,Engineering & Special Projects,Supplies and Services,Seminars etc All Costs,4601,REDACTED - PERESONAL DATA,A0047792, 24/05/2018,HED0288296,0.83,N,N/A,N,N/A
Pendle Borough Council,Engineering & Special Projects,Supplies and Services,Seminars etc All Costs,4601,REDACTED - PERESONAL DATA,A0047792, 24/05/2018,HED0288296,13.35,N,N/A,N,N/A
Pendle Borough Council,Financial Services,Premises Related Expense,Rents,2301,NEW LIFE CHRISTIAN CENTRE,A0048955, 03/05/2018,AAS0287899,100.00,N,N/A,N,N/A
Pendle Borough Council,Planning & Building Control,Supplies and Services,Consultants Fees,4401,THE ENVIRONMENT PARTNERSHIP (TEP) LIMITED,A0049717, 17/05/2018,PBC0288129,765.00,N,N/A,N,N/A
Pendle Borough Council,Planning & Building Control,Supplies and Services,EFM : Other Equipment,4003,VIP SYSTEM LIMITED,A0050529, 24/05/2018,PBC0288403,140.73,N,N/A,N,N/A
Pendle Borough Council,Planning & Building Control,Supplies and Services,EFM : Other Equipment,4003,VIP SYSTEM LIMITED,A0050529, 24/05/2018,PBC0288403,250.16,N,N/A,N,N/A
Pendle Borough Council,Planning & Building Control,Supplies and Services,EFM : Other Equipment,4003,VIP SYSTEM LIMITED,A0050529, 24/05/2018,PBC0288403,451.64,N,N/A,N,N/A
Pendle Borough Council,Planning & Building Control,Supplies and Services,EFM : Other Equipment,4003,VIP SYSTEM LIMITED,A0050529, 24/05/2018,PBC0288403,231.60,N,N/A,N,N/A
Pendle Borough Council,Parks & Recreation Services,Premises Related Expense,Grounds : R & M : Day to Day : Routine,2101,BUTLER SHEETMETAL LIMITED,A0050988, 24/05/2018,PCO0288417,180.00,N,N/A,N,N/A
Pendle Borough Council,Parks & Recreation Services,Transport Related Expense,Tprt : Repairs : General,3105,ROSSENDALE VULCANISING (SALES LTD),A0051239, 17/05/2018,PCO0288160,10.00,N,N/A,N,N/A
Pendle Borough Council,Parks & Recreation Services,Transport Related Expense,Tprt : Repairs : General,3105,ROSSENDALE VULCANISING (SALES LTD),A0051239, 17/05/2018,PCO0288160,32.00,N,N/A,N,N/A
Pendle Borough Council,Parks & Recreation Services,Transport Related Expense,Tprt : Repairs : General,3105,ROSSENDALE VULCANISING (SALES LTD),A0051239, 17/05/2018,PCO0288160,10.00,N,N/A,N,N/A
Pendle Borough Council,Parks & Recreation Services,Transport Related Expense,Tyres,3204,ROSSENDALE VULCANISING (SALES LTD),A0051239, 17/05/2018,PCO0288159,25.00,N,N/A,N,N/A
Pendle Borough Council,Housing Regeneration Services,Premises Related Expense,Premises Cleaning,2601,ROACH CLEANING & MAINTENANCE SERVICES LTD,A0051553, 24/05/2018,HMR0288393,40.00,N,N/A,N,N/A
Pendle Borough Council,Housing Regeneration Services,Premises Related Expense,Premises Cleaning,2601,ROACH CLEANING & MAINTENANCE SERVICES LTD,A0051553, 31/05/2018,HMR0288561,40.00,N,N/A,N,N/A
Pendle Borough Council,Human Resources,Indirect Employee Expenses,Recruitment,1221,LIBERATA UK LTD,A0051618, 24/05/2018,PER0288336,65.00,N,N/A,N,N/A
Pendle Borough Council,Human Resources,Indirect Employee Expenses,Recruitment,1221,LIBERATA UK LTD,A0051618, 24/05/2018,PER0288337,90.00,N,N/A,N,N/A
Pendle Borough Council,Financial Services,Premises Related Expense,Rents,2301,LIBERATA UK LTD,A0051618, 10/05/2018,AAS0288122,1792.19,N,N/A,N,N/A
Pendle Borough Council,Financial Services,Supplies and Services,Telephones : Central,4503,LIBERATA UK LTD,A0051618, 10/05/2018,AAS0288123,120490.99,N,N/A,N,N/A
Pendle Borough Council,Financial Services,Agency Costs,Liberata,5301,LIBERATA UK LTD,A0051618, 17/05/2018,AAS0288271,1135.50,N,N/A,N,N/A
Pendle Borough Council,Financial Services,Agency Costs,Liberata,5301,LIBERATA UK LTD,A0051618, 17/05/2018,AAS0288273,1340.00,N,N/A,N,N/A
Pendle Borough Council,Financial Services,Agency Costs,Liberata,5301,LIBERATA UK LTD,A0051618, 24/05/2018,AAS0288348,1516.34,N,N/A,N,N/A
Pendle Borough Council,Financial Services,Agency Costs,Liberata,5301,LIBERATA UK LTD,A0051618, 24/05/2018,AAS0288349,4471.78,N,N/A,N,N/A
Pendle Borough Council,Financial Services,Agency Costs,Liberata,5303,LIBERATA UK LTD,A0051618, 10/05/2018,AAS0288123,6666.67,N,N/A,N,N/A
Pendle Borough Council,Financial Services,Agency Costs,Liberata,5303,LIBERATA UK LTD,A0051618, 10/05/2018,AAS0288123,34032.48,N,N/A,N,N/A
Pendle Borough Council,Financial Services,Agency Costs,Liberata,5303,LIBERATA UK LTD,A0051618, 10/05/2018,AAS0288123,26546.85,N,N/A,N,N/A
Pendle Borough Council,Financial Services,Agency Costs,Liberata,5303,LIBERATA UK LTD,A0051618, 10/05/2018,AAS0288123,80322.47,N,N/A,N,N/A
Pendle Borough Council,Financial Services,Agency Costs,Liberata,5303,LIBERATA UK LTD,A0051618, 10/05/2018,AAS0288123,627.64,N,N/A,N,N/A
Pendle Borough Council,Financial Services,Agency Costs,Liberata,5303,LIBERATA UK LTD,A0051618, 17/05/2018,AAS0288272,3865.50,N,N/A,N,N/A
Pendle Borough Council,Financial Services,Agency Costs,Liberata,5303,LIBERATA UK LTD,A0051618, 10/05/2018,AAS0288123,53683.50,N,N/A,N,N/A
Pendle Borough Council,Financial Services,Agency Costs,Liberata,5303,LIBERATA UK LTD,A0051618, 10/05/2018,AAS0288123,79310.37,N,N/A,N,N/A
Pendle Borough Council,Financial Services,Capital Costs,Capital : Salaries,CD13,LIBERATA UK LTD,A0051618, 03/05/2018,AAS0287921,2039.92,N,N/A,N,N/A
Pendle Borough Council,Financial Services,Capital Costs,Capital : Salaries,CD13,LIBERATA UK LTD,A0051618, 03/05/2018,AAS0287921,9650.10,N,N/A,N,N/A
Pendle Borough Council,Housing Regeneration Services,Capital Costs,Capital : Payments,CD14,LIBERATA UK LTD,A0051618, 03/05/2018,HMR0287931,3692.80,N,N/A,N,N/A
Pendle Borough Council,Economic Development & Tourism,Capital Costs,Capital : Payments,CD14,LIBERATA UK LTD,A0051618, 03/05/2018,REG0287772,25926.00,N,N/A,N,N/A
Pendle Borough Council,Financial Services,Capital Costs,Ren Grant : 1996 Act,CH22,LIBERATA UK LTD,A0051618, 03/05/2018,AAS0287921,720.00,N,N/A,N,N/A
Pendle Borough Council,Property Services,Premises Related Expense,Electricity,2203,SOUTHERN ELECTRIC,A0051726, 10/05/2018,EST0288094,115.09,N,N/A,N,N/A
Pendle Borough Council,Financial Services,Premises Related Expense,Rents,2301,REEDLEY PRIMARY SCHOOL,A0051734, 03/05/2018,AAS0287892,100.00,N,N/A,N,N/A
Pendle Borough Council,Planning & Building Control,Supplies and Services,Seminars etc All Costs,4601,REDACTED - PERESONAL DATA,A0051740, 31/05/2018,PBC0288593,7.00,N,N/A,N,N/A
Pendle Borough Council,Human Resources,Supplies and Services,Other Expenses,4705,FIDELITI LIMITED,A0052058, 17/05/2018,PER0288253,35.24,N,N/A,N,N/A
Pendle Borough Council,Parks & Recreation Services,Premises Related Expense,Grounds : R & M : Day to Day : Routine,2101,C B PRICE & SONS BUILDERS,A0052117, 24/05/2018,PCO0288425,2000.00,N,N/A,N,N/A
Pendle Borough Council,Parks & Recreation Services,Premises Related Expense,Grounds : R & M : Day to Day : Routine,2101,C B PRICE & SONS BUILDERS,A0052117, 03/05/2018,PCO0287964,4800.00,N,N/A,N,N/A
Pendle Borough Council,Parks & Recreation Services,Premises Related Expense,Grounds : R & M : Day to Day : Routine,2101,C B PRICE & SONS BUILDERS,A0052117, 10/05/2018,PCO0288045,4800.00,N,N/A,N,N/A
Pendle Borough Council,Parks & Recreation Services,Premises Related Expense,Grounds : R & M : Day to Day : Routine,2101,C B PRICE & SONS BUILDERS,A0052117, 17/05/2018,PCO0288158,4800.00,N,N/A,N,N/A
Pendle Borough Council,Financial Services,Premises Related Expense,Rents,2301,INDEPENDENT METHODIST CHURCH,A0052318, 03/05/2018,AAS0287889,200.00,N,N/A,N,N/A
Pendle Borough Council,Operational Services,Capital Costs,Capital : Payments,CD14,MGB PLASTICS LIMITED,A0052535, 24/05/2018,OPS0288411,720.30,N,N/A,N,N/A
Pendle Borough Council,Operational Services,Capital Costs,Capital : Payments,CD14,MGB PLASTICS LIMITED,A0052535, 17/05/2018,OPS0288206,3910.20,N,N/A,N,N/A
Pendle Borough Council,Operational Services,Capital Costs,Capital : Payments,CD14,MGB PLASTICS LIMITED,A0052535, 03/05/2018,OPS0287766,9416.00,N,N/A,N,N/A
Pendle Borough Council,Parks & Recreation Services,Indirect Employee Expenses,Training,1211,MYERSCOUGH COLLEGE,A0053390, 31/05/2018,PCO0288532,1120.00,N,N/A,N,N/A
Pendle Borough Council,Democratic & Legal Services,Supplies and Services,Mobile Phones,4508,O2 (UK) LIMITED,A0053660, 17/05/2018,DAL0288228,10.00,N,N/A,N,N/A
Pendle Borough Council,Democratic & Legal Services,Supplies and Services,Mobile Phones,4508,O2 (UK) LIMITED,A0053660, 17/05/2018,DAL0288228,10.00,N,N/A,N,N/A
Pendle Borough Council,Democratic & Legal Services,Supplies and Services,EFM : Office and computer equipment,4002,REDACTED - PERESONAL DATA,A0054205, 17/05/2018,DAL0288225,31.66,N,N/A,N,N/A
Pendle Borough Council,Property Services,Indirect Employee Expenses,Staff Refreshments,1261,SIEMENS FINANCIAL SERVICES LIMITED,A0054268, 24/05/2018,EST0288456,390.00,N,N/A,N,N/A
Pendle Borough Council,Parks & Recreation Services,Transport Related Expense,Tprt : Repairs : General,3105,FLEET STREET GARAGE LIMITED,A0054291, 31/05/2018,PCO0288527,219.78,N,N/A,N,N/A
Pendle Borough Council,Engineering & Special Projects,Capital Costs,Capital : Payments,CD14,KEVIN GUY PLANT HIRE,A0054367, 17/05/2018,HED0288251,615.00,N,N/A,N,N/A
Pendle Borough Council,Planning & Building Control,Supplies and Services,Seminars etc All Costs,4601,REDACTED - PERESONAL DATA,A0054626, 03/05/2018,PBC0287926,12.80,N,N/A,N,N/A
Pendle Borough Council,Planning & Building Control,Supplies and Services,Seminars etc All Costs,4601,REDACTED - PERESONAL DATA,A0054626, 31/05/2018,PBC0288591,17.40,N,N/A,N,N/A
Pendle Borough Council,Housing Regeneration Services,Supplies and Services,EFM Materials,4004,REDACTED - PERESONAL DATA,A0054677, 03/05/2018,HMR0287929,5.75,N,N/A,N,N/A
Pendle Borough Council,Financial Services,Supplies and Services,Consultants Fees,4401,LINK TREASURY SERVICES LIMITED,A0055209, 24/05/2018,AAS0288352,3750.00,N,N/A,N,N/A
Pendle Borough Council,Engineering & Special Projects,Capital Costs,Capital : Payments,CD14,WARRINGTON BOROUGH COUNCIL,A0055421, 17/05/2018,HED0288256,6500.00,N,N/A,N,N/A
Pendle Borough Council,Parks & Recreation Services,Indirect Employee Expenses,Emp : Training : General,1217,BEN SHAW TRAINING LIMITED,A0055722, 03/05/2018,PCO0287954,1200.00,N,N/A,N,N/A
Pendle Borough Council,Economic Development & Tourism,Supplies and Services,Publicity & advertisement,4704,SPECTEL PRODUCTIONS LIMITED,A0055856, 24/05/2018,REG0288354,100.00,N,N/A,N,N/A
Pendle Borough Council,Financial Services,Premises Related Expense,Rents,2301,BRIERFIELD BAPTIST CHURCH,A0056872, 03/05/2018,AAS0287887,100.00,N,N/A,N,N/A
Pendle Borough Council,Parks & Recreation Services,Premises Related Expense,Grounds : R & M : Day to Day : Routine,2101,A BINNS & CO,A0057121, 17/05/2018,PCO0288163,100.00,N,N/A,N,N/A
Pendle Borough Council,Parks & Recreation Services,Premises Related Expense,Grounds : R & M : Day to Day : Routine,2101,A BINNS & CO,A0057121, 17/05/2018,PCO0288163,180.00,N,N/A,N,N/A
Pendle Borough Council,Parks & Recreation Services,,Tax Deducted,PD05,A BINNS & CO,A0057121, 17/05/2018,PCO0288163,250.00,N,N/A,N,N/A
Pendle Borough Council,Housing Regeneration Services,,LANCASHIRE COUNTY COUNCIL,9.00E+09,ROSSENDALE BOROUGH COUNCIL,A0057585, 24/05/2018,HMR0288397,779.33,N,N/A,N,N/A
Pendle Borough Council,Operational Services,Support Services,Admin Buildings Expenses,7001,CHUBB FIRE & SECURITY LTD,A0057603, 10/05/2018,OPS0288077,670.68,N,N/A,N,N/A
Pendle Borough Council,Operational Services,Support Services,Admin Buildings Expenses,7001,CHUBB FIRE & SECURITY LTD,A0057603, 10/05/2018,OPS0288076,785.40,N,N/A,N,N/A
Pendle Borough Council,Operational Services,Supplies and Services,Other Expenses,4705,P LEE WASTE OIL LIMTED,A0058412, 17/05/2018,OPS0288207,820.00,N,N/A,N,N/A
Pendle Borough Council,Operational Services,Supplies and Services,Telephones : Direct,4502,SECURITY MONITORING CENTRES LTD,A0059068, 03/05/2018,OPS0287985,121.67,N,N/A,N,N/A
Pendle Borough Council,Parks & Recreation Services,Premises Related Expense,Grounds : R & M : Day to Day : Routine,2101,TAYLORMADE CASTINGS LTD,A0059071, 31/05/2018,PCO0288534,850.00,N,N/A,N,N/A
Pendle Borough Council,Financial Services,Premises Related Expense,Rents,2301,PENDLE VALE COLLEGE,A0059178, 03/05/2018,AAS0287903,100.00,N,N/A,N,N/A
Pendle Borough Council,Engineering & Special Projects,Agency Costs,Lancashire C C,5102,NSL LIMITED,A0059256, 17/05/2018,HED0288212,1520.82,N,N/A,N,N/A
Pendle Borough Council,Directorate,Supplies and Services,Adverts : Statutory Notice,4702,JOHNSTON PUBLISHING LIMITED,A0059640, 03/05/2018,MAN0287767,162.00,N,N/A,N,N/A
Pendle Borough Council,Directorate,Supplies and Services,Adverts : Statutory Notice,4702,JOHNSTON PUBLISHING LIMITED,A0059640, 10/05/2018,MAN0288018,216.00,N,N/A,N,N/A
Pendle Borough Council,Directorate,Supplies and Services,Adverts : Statutory Notice,4702,JOHNSTON PUBLISHING LIMITED,A0059640, 24/05/2018,MAN0288293,216.00,N,N/A,N,N/A
Pendle Borough Council,Directorate,Supplies and Services,Adverts : Statutory Notice,4702,JOHNSTON PUBLISHING LIMITED,A0059640, 03/05/2018,MAN0287769,243.00,N,N/A,N,N/A
Pendle Borough Council,Directorate,Supplies and Services,Adverts : Statutory Notice,4702,JOHNSTON PUBLISHING LIMITED,A0059640, 17/05/2018,MAN0288223,297.00,N,N/A,N,N/A
Pendle Borough Council,Directorate,Supplies and Services,Adverts : Statutory Notice,4702,JOHNSTON PUBLISHING LIMITED,A0059640, 31/05/2018,MAN0288469,297.00,N,N/A,N,N/A
Pendle Borough Council,Directorate,Supplies and Services,Publicity & advertisement,4704,JOHNSTON PUBLISHING LIMITED,A0059640, 03/05/2018,MAN0287768,216.00,N,N/A,N,N/A
Pendle Borough Council,Property Services,Capital Costs,Capital : Payments,CD14,MAXIGIENE ENVIRONMENTAL SERVICES LTD,A0060911, 24/05/2018,EST0288447,150.00,N,N/A,N,N/A
Pendle Borough Council,Property Services,Capital Costs,Capital : Payments,CD14,MAXIGIENE ENVIRONMENTAL SERVICES LTD,A0060911, 24/05/2018,EST0288448,150.00,N,N/A,N,N/A
Pendle Borough Council,Property Services,Capital Costs,Capital : Payments,CD14,MAXIGIENE ENVIRONMENTAL SERVICES LTD,A0060911, 24/05/2018,EST0288445,175.00,N,N/A,N,N/A
Pendle Borough Council,Property Services,Capital Costs,Capital : Payments,CD14,MAXIGIENE ENVIRONMENTAL SERVICES LTD,A0060911, 24/05/2018,EST0288446,380.00,N,N/A,N,N/A
Pendle Borough Council,Operational Services,Supplies and Services,EFM Materials,4004,CONTAINER CARE SOLUTIONS LIMITED,A0061112, 31/05/2018,OPS0288526,12.00,N,N/A,N,N/A
Pendle Borough Council,Operational Services,Supplies and Services,EFM Materials,4004,CONTAINER CARE SOLUTIONS LIMITED,A0061112, 31/05/2018,OPS0288526,30.00,N,N/A,N,N/A
Pendle Borough Council,Operational Services,Supplies and Services,EFM Materials,4004,CONTAINER CARE SOLUTIONS LIMITED,A0061112, 31/05/2018,OPS0288526,35.00,N,N/A,N,N/A
Pendle Borough Council,Operational Services,Supplies and Services,EFM Materials,4004,CONTAINER CARE SOLUTIONS LIMITED,A0061112, 31/05/2018,OPS0288526,75.00,N,N/A,N,N/A
Pendle Borough Council,Operational Services,Supplies and Services,EFM Materials,4004,CONTAINER CARE SOLUTIONS LIMITED,A0061112, 31/05/2018,OPS0288526,1020.00,N,N/A,N,N/A
Pendle Borough Council,Operational Services,Supplies and Services,EFM Materials,4004,CONTAINER CARE SOLUTIONS LIMITED,A0061112, 24/05/2018,OPS0288288,1900.00,N,N/A,N,N/A
Pendle Borough Council,Engineering & Special Projects,Premises Related Expense,Grounds : R & M : Day to Day : Routine,2101,MINI CAM LIMITED,A0061133, 24/05/2018,HED0288406,62.95,N,N/A,N,N/A
Pendle Borough Council,Democratic & Legal Services,Supplies and Services,Mobile Phones,4508,REDACTED - PERESONAL DATA,A0061566, 24/05/2018,DAL0288382,35.70,N,N/A,N,N/A
Pendle Borough Council,Financial Services,Premises Related Expense,Rents,2301,NORTH VALLEY COMMUNITY CENTRE,A0062271, 03/05/2018,AAS0287907,96.00,N,N/A,N,N/A
Pendle Borough Council,Financial Services,,Precept Parish & T Council,303,LANESHAWBRIDGE PARISH COUNCIL,A0062284, 08/05/2018,AAS0288065,21440.00,N,N/A,N,N/A
Pendle Borough Council,Financial Services,,Precept Parish & T Council,303,TRAWDEN FOREST PARISH COUNCIL,A0062286, 08/05/2018,AAS0288070,52500.00,N,N/A,N,N/A
Pendle Borough Council,Financial Services,Transport Related Expense,Tprt : Annual Hire Charge,3601,ARVAL LTD (ALLSTAR FUEL SERVICES),A0062668, 15/05/2018,AAS0288303,144.48,N,N/A,N,N/A
Pendle Borough Council,Financial Services,Transport Related Expense,Tprt : Annual Hire Charge,3601,ARVAL LTD (ALLSTAR FUEL SERVICES),A0062668, 15/05/2018,AAS0288303,144.48,N,N/A,N,N/A
Pendle Borough Council,Financial Services,Transport Related Expense,Tprt : Annual Hire Charge,3601,ARVAL LTD (ALLSTAR FUEL SERVICES),A0062668, 15/05/2018,AAS0288303,144.48,N,N/A,N,N/A
Pendle Borough Council,Financial Services,Transport Related Expense,Tprt : Annual Hire Charge,3601,ARVAL LTD (ALLSTAR FUEL SERVICES),A0062668, 15/05/2018,AAS0288303,144.48,N,N/A,N,N/A
Pendle Borough Council,Financial Services,Transport Related Expense,Tprt : Annual Hire Charge,3601,ARVAL LTD (ALLSTAR FUEL SERVICES),A0062668, 15/05/2018,AAS0288302,198.19,N,N/A,N,N/A
Pendle Borough Council,Financial Services,Transport Related Expense,Tprt : Annual Hire Charge,3601,ARVAL LTD (ALLSTAR FUEL SERVICES),A0062668, 15/05/2018,AAS0288302,201.83,N,N/A,N,N/A
Pendle Borough Council,Financial Services,Transport Related Expense,Tprt : Annual Hire Charge,3601,ARVAL LTD (ALLSTAR FUEL SERVICES),A0062668, 15/05/2018,AAS0288303,144.48,N,N/A,N,N/A
Pendle Borough Council,Financial Services,Supplies and Services,"Monitoring, Console etc",4510,KEYPLUS SECURITY LIMITED,A0062723, 24/05/2018,AAS0288369,457.14,N,N/A,N,N/A
Pendle Borough Council,Democratic & Legal Services,Transport Related Expense,Tprt : Repairs : General,3105,REDACTED - PERESONAL DATA,A0062864, 31/05/2018,DAL0288587,5.00,N,N/A,N,N/A
Pendle Borough Council,Democratic & Legal Services,Transport Related Expense,Tprt : Repairs : General,3105,REDACTED - PERESONAL DATA,A0062864, 24/05/2018,DAL0288381,45.00,N,N/A,N,N/A
Pendle Borough Council,Democratic & Legal Services,Supplies and Services,Uniforms,4202,REDACTED - PERESONAL DATA,A0062864, 17/05/2018,DAL0288232,4.00,N,N/A,N,N/A
Pendle Borough Council,Democratic & Legal Services,Supplies and Services,Robes & Regalia,4203,REDACTED - PERESONAL DATA,A0062864, 24/05/2018,DAL0288381,12.00,N,N/A,N,N/A
Pendle Borough Council,Democratic & Legal Services,Supplies and Services,Mayoral Expenses,4614,REDACTED - PERESONAL DATA,A0062864, 17/05/2018,DAL0288232,3.49,N,N/A,N,N/A
Pendle Borough Council,Democratic & Legal Services,Supplies and Services,Mayoral Expenses,4614,REDACTED - PERESONAL DATA,A0062864, 17/05/2018,DAL0288232,12.16,N,N/A,N,N/A
Pendle Borough Council,Democratic & Legal Services,Supplies and Services,Mayoral Expenses,4614,REDACTED - PERESONAL DATA,A0062864, 24/05/2018,DAL0288381,44.25,N,N/A,N,N/A
Pendle Borough Council,Democratic & Legal Services,Supplies and Services,Seminars etc All Costs,4601,REDACTED - PERESONAL DATA,A0063547, 17/05/2018,DAL0288231,8.48,N,N/A,N,N/A
Pendle Borough Council,Planning & Building Control,,Other Income : Non-VATable,9303,ALPINE TAXIS,A0063813, 31/05/2018,PBC0288564,39.48,N,N/A,N,N/A
Pendle Borough Council,Engineering & Special Projects,Supplies and Services,LCC Levy (Admins Costs),4419,PHOENIX COMMERCIAL COLLECTIONS LTD,A0064046, 03/05/2018,HED0287869,-310.00,N,N/A,N,N/A
Pendle Borough Council,Engineering & Special Projects,Supplies and Services,LCC Levy (Admins Costs),4419,PHOENIX COMMERCIAL COLLECTIONS LTD,A0064046, 03/05/2018,HED0287869,310.00,N,N/A,N,N/A
Pendle Borough Council,Democratic & Legal Services,Supplies and Services,Postages,4501,WHISTL UK LIMITED,A0064458, 03/05/2018,DAL0288008,3.55,N,N/A,N,N/A
Pendle Borough Council,Democratic & Legal Services,Supplies and Services,Postages,4501,WHISTL UK LIMITED,A0064458, 24/05/2018,DAL0288437,14.97,N,N/A,N,N/A
Pendle Borough Council,Democratic & Legal Services,Supplies and Services,Postages,4501,WHISTL UK LIMITED,A0064458, 24/05/2018,DAL0288374,18.14,N,N/A,N,N/A
Pendle Borough Council,Democratic & Legal Services,Supplies and Services,Postages,4501,WHISTL UK LIMITED,A0064458, 24/05/2018,DAL0288437,1.97,N,N/A,N,N/A
Pendle Borough Council,Democratic & Legal Services,Supplies and Services,Postages,4501,WHISTL UK LIMITED,A0064458, 24/05/2018,DAL0288374,2.36,N,N/A,N,N/A
Pendle Borough Council,Democratic & Legal Services,Supplies and Services,Postages,4501,WHISTL UK LIMITED,A0064458, 24/05/2018,DAL0288437,0.40,N,N/A,N,N/A
Pendle Borough Council,Democratic & Legal Services,Supplies and Services,Postages,4501,WHISTL UK LIMITED,A0064458, 24/05/2018,DAL0288374,70.61,N,N/A,N,N/A
Pendle Borough Council,Democratic & Legal Services,Supplies and Services,Postages,4501,WHISTL UK LIMITED,A0064458, 03/05/2018,DAL0288008,70.75,N,N/A,N,N/A
Pendle Borough Council,Democratic & Legal Services,Supplies and Services,Postages,4501,WHISTL UK LIMITED,A0064458, 24/05/2018,DAL0288437,120.41,N,N/A,N,N/A
Pendle Borough Council,Democratic & Legal Services,Supplies and Services,Postages,4501,WHISTL UK LIMITED,A0064458, 24/05/2018,DAL0288374,2.39,N,N/A,N,N/A
Pendle Borough Council,Democratic & Legal Services,Supplies and Services,Postages,4501,WHISTL UK LIMITED,A0064458, 03/05/2018,DAL0288008,3.59,N,N/A,N,N/A
Pendle Borough Council,Democratic & Legal Services,Supplies and Services,Postages,4501,WHISTL UK LIMITED,A0064458, 24/05/2018,DAL0288437,4.35,N,N/A,N,N/A
Pendle Borough Council,Democratic & Legal Services,Supplies and Services,Postages,4501,WHISTL UK LIMITED,A0064458, 24/05/2018,DAL0288437,14.23,N,N/A,N,N/A
Pendle Borough Council,Democratic & Legal Services,Supplies and Services,Postages,4501,WHISTL UK LIMITED,A0064458, 03/05/2018,DAL0288008,15.45,N,N/A,N,N/A
Pendle Borough Council,Democratic & Legal Services,Supplies and Services,Postages,4501,WHISTL UK LIMITED,A0064458, 24/05/2018,DAL0288374,25.69,N,N/A,N,N/A
Pendle Borough Council,Democratic & Legal Services,Supplies and Services,Consultants Fees,4401,LANCASHIRE BROADCASTING CO LTD,A0064934, 03/05/2018,DAL0287989,150.00,N,N/A,N,N/A
Pendle Borough Council,Democratic & Legal Services,Supplies and Services,Publicity & advertisement,4704,LANCASHIRE BROADCASTING CO LTD,A0064934, 03/05/2018,DAL0287991,150.00,N,N/A,N,N/A
Pendle Borough Council,Democratic & Legal Services,Supplies and Services,Publicity & advertisement,4704,LANCASHIRE BROADCASTING CO LTD,A0064934, 24/05/2018,DAL0288372,429.00,N,N/A,N,N/A
Pendle Borough Council,Democratic & Legal Services,Supplies and Services,Publicity & advertisement,4704,LANCASHIRE BROADCASTING CO LTD,A0064934, 03/05/2018,DAL0288009,439.29,N,N/A,N,N/A
Pendle Borough Council,Financial Services,Premises Related Expense,Rents,2301,THE RAINHALL CENTRE,A0066193, 03/05/2018,AAS0287906,350.00,N,N/A,N,N/A
Pendle Borough Council,Housing Regeneration Services,Supplies and Services,Publicity & advertisement,4704,RIVER PUBLISHING LIMITED,A0066194, 31/05/2018,HMR0288565,425.00,N,N/A,N,N/A
Pendle Borough Council,Human Resources,Transport Related Expense,Tprt : Annual Hire Charge,3601,LEX AUTOLEASE LIMITED,A0066530, 31/05/2018,PER0288544,4116.48,N,N/A,N,N/A
Pendle Borough Council,Property Services,Premises Related Expense,Bldgs : R & M : Day To Day,2001,SPEAKMAN CONTRACTORS LTD,A0066581, 17/05/2018,EST0288248,40.78,N,N/A,N,N/A
Pendle Borough Council,Property Services,Capital Costs,Capital : Payments,CD14,SPEAKMAN CONTRACTORS LTD,A0066581, 17/05/2018,EST0288248,347.93,N,N/A,N,N/A
Pendle Borough Council,Operational Services,Transport Related Expense,Tprt : Repairs : General,3105,PROBRUSH T/A NORTHERN MUNICIPAL SPARES LTD,A0068263, 24/05/2018,OPS0288416,160.51,N,N/A,N,N/A
Pendle Borough Council,Operational Services,Transport Related Expense,Tprt : Repairs : General,3105,PROBRUSH T/A NORTHERN MUNICIPAL SPARES LTD,A0068263, 24/05/2018,OPS0288416,160.50,N,N/A,N,N/A
Pendle Borough Council,Operational Services,Transport Related Expense,Tprt : Repairs : General,3105,PROBRUSH T/A NORTHERN MUNICIPAL SPARES LTD,A0068263, 24/05/2018,OPS0288416,160.50,N,N/A,N,N/A
Pendle Borough Council,Operational Services,Transport Related Expense,Tprt : Repairs : General,3105,PROBRUSH T/A NORTHERN MUNICIPAL SPARES LTD,A0068263, 24/05/2018,OPS0288416,160.50,N,N/A,N,N/A
Pendle Borough Council,Operational Services,Transport Related Expense,Tprt : Repairs : General,3105,PROBRUSH T/A NORTHERN MUNICIPAL SPARES LTD,A0068263, 24/05/2018,OPS0288416,160.50,N,N/A,N,N/A
Pendle Borough Council,Operational Services,Transport Related Expense,Tprt : Repairs : General,3105,PROBRUSH T/A NORTHERN MUNICIPAL SPARES LTD,A0068263, 24/05/2018,OPS0288416,160.50,N,N/A,N,N/A
Pendle Borough Council,Engineering & Special Projects,Supplies and Services,Liberata,4424,CHIPSIDE LTD,A0068587, 31/05/2018,HED0288401,186.24,N,N/A,N,N/A
Pendle Borough Council,Engineering & Special Projects,Supplies and Services,Liberata,4424,CHIPSIDE LTD,A0068587, 31/05/2018,HED0288540,299.52,N,N/A,N,N/A
Pendle Borough Council,Engineering & Special Projects,Supplies and Services,Other Expenses,4705,CHIPSIDE LTD,A0068587, 31/05/2018,HED0288399,12.11,N,N/A,N,N/A
Pendle Borough Council,Engineering & Special Projects,Supplies and Services,Other Expenses,4705,CHIPSIDE LTD,A0068587, 31/05/2018,HED0288003,17.58,N,N/A,N,N/A
Pendle Borough Council,Engineering & Special Projects,,Fees Income : Non-VATable,9302,CHIPSIDE LTD,A0068587, 31/05/2018,HED0288006,79.89,N,N/A,N,N/A
Pendle Borough Council,Engineering & Special Projects,,Fees Income : Non-VATable,9302,CHIPSIDE LTD,A0068587, 31/05/2018,HED4005882,-636.06,N,N/A,N,N/A
Pendle Borough Council,Engineering & Special Projects,,Fees Income : Non-VATable,9302,CHIPSIDE LTD,A0068587, 31/05/2018,HED0288539,2.72,N,N/A,N,N/A
Pendle Borough Council,Engineering & Special Projects,,Fees Income : Non-VATable,9302,CHIPSIDE LTD,A0068587, 31/05/2018,HED0288005,65.28,N,N/A,N,N/A
Pendle Borough Council,Parks & Recreation Services,Supplies and Services,Expenditure : Materials,2,M C & M A STEWART HAULAGE,A0068863, 03/05/2018,PCO0287958,451.58,N,N/A,N,N/A
Pendle Borough Council,Parks & Recreation Services,Supplies and Services,Expenditure : Materials,2,SHERRIFF AMENITY - AGROVISTA UK LIMITED,A0068904, 03/05/2018,PCO0287960,151.32,N,N/A,N,N/A
Pendle Borough Council,Parks & Recreation Services,Supplies and Services,Expenditure : Materials,2,SHERRIFF AMENITY - AGROVISTA UK LIMITED,A0068904, 31/05/2018,PCO0288439,151.32,N,N/A,N,N/A
Pendle Borough Council,Parks & Recreation Services,Supplies and Services,Expenditure : Materials,2,SHERRIFF AMENITY - AGROVISTA UK LIMITED,A0068904, 24/05/2018,PCO0288429,216.80,N,N/A,N,N/A
Pendle Borough Council,Parks & Recreation Services,Supplies and Services,Expenditure : Materials,2,SHERRIFF AMENITY - AGROVISTA UK LIMITED,A0068904, 03/05/2018,PCO0287952,253.60,N,N/A,N,N/A
Pendle Borough Council,Parks & Recreation Services,Supplies and Services,Expenditure : Materials,2,SHERRIFF AMENITY - AGROVISTA UK LIMITED,A0068904, 10/05/2018,PCO0288046,293.55,N,N/A,N,N/A
Pendle Borough Council,Parks & Recreation Services,Supplies and Services,Expenditure : Materials,2,SHERRIFF AMENITY - AGROVISTA UK LIMITED,A0068904, 03/05/2018,PCO0287959,4040.00,N,N/A,N,N/A
Pendle Borough Council,Environmental Health Services,Supplies and Services,EFM : Other Equipment,4003,ACOUSTICS NOISE & VIBRATION LTD,A0069005, 17/05/2018,ENV0288214,1218.00,N,N/A,N,N/A
Pendle Borough Council,Environmental Health Services,Supplies and Services,Reference Books Acts,4304,REDACTED - PERESONAL DATA,A0069093, 31/05/2018,ENV0288598,42.40,N,N/A,N,N/A
Pendle Borough Council,Financial Services,Premises Related Expense,Electricity,2203,BRITISH GAS BUSINESS,A0069538, 31/05/2018,AAS0288495,16.87,N,N/A,N,N/A
Pendle Borough Council,Financial Services,Premises Related Expense,Electricity,2203,BRITISH GAS BUSINESS,A0069538, 31/05/2018,AAS0287832,42.29,N,N/A,N,N/A
Pendle Borough Council,Financial Services,Premises Related Expense,Electricity,2203,BRITISH GAS BUSINESS,A0069538, 31/05/2018,AAS0287833,46.61,N,N/A,N,N/A
Pendle Borough Council,Financial Services,Premises Related Expense,Electricity,2203,BRITISH GAS BUSINESS,A0069538, 31/05/2018,AAS0288496,54.23,N,N/A,N,N/A
Pendle Borough Council,Financial Services,Premises Related Expense,Electricity,2203,BRITISH GAS BUSINESS,A0069538, 31/05/2018,AAS0288520,7.55,N,N/A,N,N/A
Pendle Borough Council,Financial Services,Premises Related Expense,Electricity,2203,BRITISH GAS BUSINESS,A0069538, 31/05/2018,AAS0287859,8.41,N,N/A,N,N/A
Pendle Borough Council,Financial Services,Premises Related Expense,Electricity,2203,BRITISH GAS BUSINESS,A0069538, 03/05/2018,AAS0288178,9.30,N,N/A,N,N/A
Pendle Borough Council,Financial Services,Premises Related Expense,Electricity,2203,BRITISH GAS BUSINESS,A0069538, 31/05/2018,AAS4005886,-48.43,N,N/A,N,N/A
Pendle Borough Council,Financial Services,Premises Related Expense,Electricity,2203,BRITISH GAS BUSINESS,A0069538, 31/05/2018,AAS4005887,-46.83,N,N/A,N,N/A
Pendle Borough Council,Financial Services,Premises Related Expense,Electricity,2203,BRITISH GAS BUSINESS,A0069538, 31/05/2018,AAS4005885,-21.59,N,N/A,N,N/A
Pendle Borough Council,Financial Services,Premises Related Expense,Electricity,2203,BRITISH GAS BUSINESS,A0069538, 31/05/2018,AAS4005884,-7.39,N,N/A,N,N/A
Pendle Borough Council,Financial Services,Premises Related Expense,Electricity,2203,BRITISH GAS BUSINESS,A0069538, 31/05/2018,AAS0287843,7.39,N,N/A,N,N/A
Pendle Borough Council,Financial Services,Premises Related Expense,Electricity,2203,BRITISH GAS BUSINESS,A0069538, 31/05/2018,AAS0288506,27.79,N,N/A,N,N/A
Pendle Borough Council,Financial Services,Premises Related Expense,Electricity,2203,BRITISH GAS BUSINESS,A0069538, 31/05/2018,AAS0288489,451.38,N,N/A,N,N/A
Pendle Borough Council,Financial Services,Premises Related Expense,Electricity,2203,BRITISH GAS BUSINESS,A0069538, 31/05/2018,AAS0287826,739.13,N,N/A,N,N/A
Pendle Borough Council,Financial Services,Premises Related Expense,Electricity,2203,BRITISH GAS BUSINESS,A0069538, 31/05/2018,AAS0288508,34.76,N,N/A,N,N/A
Pendle Borough Council,Financial Services,Premises Related Expense,Electricity,2203,BRITISH GAS BUSINESS,A0069538, 31/05/2018,AAS0287845,35.13,N,N/A,N,N/A
Pendle Borough Council,Financial Services,Premises Related Expense,Electricity,2203,BRITISH GAS BUSINESS,A0069538, 31/05/2018,AAS0287839,219.37,N,N/A,N,N/A
Pendle Borough Council,Financial Services,Premises Related Expense,Electricity,2203,BRITISH GAS BUSINESS,A0069538, 31/05/2018,AAS0288502,233.04,N,N/A,N,N/A
Pendle Borough Council,Financial Services,Premises Related Expense,Electricity,2203,BRITISH GAS BUSINESS,A0069538, 31/05/2018,AAS0287861,97.24,N,N/A,N,N/A
Pendle Borough Council,Financial Services,Premises Related Expense,Electricity,2203,BRITISH GAS BUSINESS,A0069538, 31/05/2018,AAS0288522,142.24,N,N/A,N,N/A
Pendle Borough Council,Financial Services,Premises Related Expense,Electricity,2203,BRITISH GAS BUSINESS,A0069538, 31/05/2018,AAS0288521,11.74,N,N/A,N,N/A
Pendle Borough Council,Financial Services,Premises Related Expense,Electricity,2203,BRITISH GAS BUSINESS,A0069538, 31/05/2018,AAS0287860,12.76,N,N/A,N,N/A
Pendle Borough Council,Financial Services,Premises Related Expense,Electricity,2203,BRITISH GAS BUSINESS,A0069538, 29/05/2018,AAS0288765,289.99,N,N/A,N,N/A
Pendle Borough Council,Financial Services,Premises Related Expense,Electricity,2203,BRITISH GAS BUSINESS,A0069538, 31/05/2018,AAS0288492,16.86,N,N/A,N,N/A
Pendle Borough Council,Financial Services,Premises Related Expense,Electricity,2203,BRITISH GAS BUSINESS,A0069538, 31/05/2018,AAS0287829,17.27,N,N/A,N,N/A
Pendle Borough Council,Financial Services,Premises Related Expense,Electricity,2203,BRITISH GAS BUSINESS,A0069538, 31/05/2018,AAS0288491,26.55,N,N/A,N,N/A
Pendle Borough Council,Financial Services,Premises Related Expense,Electricity,2203,BRITISH GAS BUSINESS,A0069538, 31/05/2018,AAS0287828,30.13,N,N/A,N,N/A
Pendle Borough Council,Financial Services,Premises Related Expense,Electricity,2203,BRITISH GAS BUSINESS,A0069538, 31/05/2018,AAS0287842,16.74,N,N/A,N,N/A
Pendle Borough Council,Financial Services,Premises Related Expense,Electricity,2203,BRITISH GAS BUSINESS,A0069538, 31/05/2018,AAS0288505,22.89,N,N/A,N,N/A
Pendle Borough Council,Financial Services,Premises Related Expense,Electricity,2203,BRITISH GAS BUSINESS,A0069538, 31/05/2018,AAS0287858,303.69,N,N/A,N,N/A
Pendle Borough Council,Financial Services,Premises Related Expense,Electricity,2203,BRITISH GAS BUSINESS,A0069538, 31/05/2018,AAS0288519,324.77,N,N/A,N,N/A
Pendle Borough Council,Financial Services,Premises Related Expense,Electricity,2203,BRITISH GAS BUSINESS,A0069538, 08/05/2018,AAS0288175,64.27,N,N/A,N,N/A
Pendle Borough Council,Financial Services,Premises Related Expense,Electricity,2203,BRITISH GAS BUSINESS,A0069538, 31/05/2018,AAS0287851,7.39,N,N/A,N,N/A
Pendle Borough Council,Financial Services,Premises Related Expense,Electricity,2203,BRITISH GAS BUSINESS,A0069538, 31/05/2018,AAS0288514,7.61,N,N/A,N,N/A
Pendle Borough Council,Financial Services,Premises Related Expense,Electricity,2203,BRITISH GAS BUSINESS,A0069538, 31/05/2018,AAS4005814,-547.86,N,N/A,N,N/A
Pendle Borough Council,Financial Services,Premises Related Expense,Electricity,2203,BRITISH GAS BUSINESS,A0069538, 31/05/2018,AAS4005812,-436.64,N,N/A,N,N/A
Pendle Borough Council,Financial Services,Premises Related Expense,Electricity,2203,BRITISH GAS BUSINESS,A0069538, 31/05/2018,AAS4005813,-394.73,N,N/A,N,N/A
Pendle Borough Council,Financial Services,Premises Related Expense,Electricity,2203,BRITISH GAS BUSINESS,A0069538, 31/05/2018,AAS4005811,-392.53,N,N/A,N,N/A
Pendle Borough Council,Financial Services,Premises Related Expense,Electricity,2203,BRITISH GAS BUSINESS,A0069538, 31/05/2018,AAS0287824,38.85,N,N/A,N,N/A
Pendle Borough Council,Financial Services,Premises Related Expense,Electricity,2203,BRITISH GAS BUSINESS,A0069538, 31/05/2018,AAS0288487,70.79,N,N/A,N,N/A
Pendle Borough Council,Financial Services,Premises Related Expense,Electricity,2203,BRITISH GAS BUSINESS,A0069538, 31/05/2018,AAS0287823,143.49,N,N/A,N,N/A
Pendle Borough Council,Financial Services,Premises Related Expense,Electricity,2203,BRITISH GAS BUSINESS,A0069538, 31/05/2018,AAS0287822,475.09,N,N/A,N,N/A
Pendle Borough Council,Financial Services,Premises Related Expense,Electricity,2203,BRITISH GAS BUSINESS,A0069538, 31/05/2018,AAS0288498,254.39,N,N/A,N,N/A
Pendle Borough Council,Financial Services,Premises Related Expense,Electricity,2203,BRITISH GAS BUSINESS,A0069538, 31/05/2018,AAS0287836,270.57,N,N/A,N,N/A
Pendle Borough Council,Financial Services,Premises Related Expense,Electricity,2203,BRITISH GAS BUSINESS,A0069538, 31/05/2018,AAS4005817,-353.95,N,N/A,N,N/A
Pendle Borough Council,Financial Services,Premises Related Expense,Electricity,2203,BRITISH GAS BUSINESS,A0069538, 31/05/2018,AAS4005844,-106.66,N,N/A,N,N/A
Pendle Borough Council,Financial Services,Premises Related Expense,Electricity,2203,BRITISH GAS BUSINESS,A0069538, 31/05/2018,AAS4005815,-32.51,N,N/A,N,N/A
Pendle Borough Council,Financial Services,Premises Related Expense,Electricity,2203,BRITISH GAS BUSINESS,A0069538, 31/05/2018,AAS4005816,-30.66,N,N/A,N,N/A
Pendle Borough Council,Financial Services,Premises Related Expense,Electricity,2203,BRITISH GAS BUSINESS,A0069538, 31/05/2018,AAS4005818,-21.68,N,N/A,N,N/A
Pendle Borough Council,Financial Services,Premises Related Expense,Electricity,2203,BRITISH GAS BUSINESS,A0069538, 31/05/2018,AAS4005828,-21.00,N,N/A,N,N/A
Pendle Borough Council,Financial Services,Premises Related Expense,Electricity,2203,BRITISH GAS BUSINESS,A0069538, 31/05/2018,AAS4005824,-20.27,N,N/A,N,N/A
Pendle Borough Council,Financial Services,Premises Related Expense,Electricity,2203,BRITISH GAS BUSINESS,A0069538, 31/05/2018,AAS4005838,-20.22,N,N/A,N,N/A
Pendle Borough Council,Financial Services,Premises Related Expense,Electricity,2203,BRITISH GAS BUSINESS,A0069538, 31/05/2018,AAS4005839,-20.17,N,N/A,N,N/A
Pendle Borough Council,Financial Services,Premises Related Expense,Electricity,2203,BRITISH GAS BUSINESS,A0069538, 31/05/2018,AAS4005840,-20.07,N,N/A,N,N/A
Pendle Borough Council,Financial Services,Premises Related Expense,Electricity,2203,BRITISH GAS BUSINESS,A0069538, 31/05/2018,AAS4005819,-20.01,N,N/A,N,N/A
Pendle Borough Council,Financial Services,Premises Related Expense,Electricity,2203,BRITISH GAS BUSINESS,A0069538, 31/05/2018,AAS4005830,-19.97,N,N/A,N,N/A
Pendle Borough Council,Financial Services,Premises Related Expense,Electricity,2203,BRITISH GAS BUSINESS,A0069538, 31/05/2018,AAS4005826,-19.63,N,N/A,N,N/A
Pendle Borough Council,Financial Services,Premises Related Expense,Electricity,2203,BRITISH GAS BUSINESS,A0069538, 31/05/2018,AAS4005829,-19.63,N,N/A,N,N/A
Pendle Borough Council,Financial Services,Premises Related Expense,Electricity,2203,BRITISH GAS BUSINESS,A0069538, 31/05/2018,AAS4005822,-19.22,N,N/A,N,N/A
Pendle Borough Council,Financial Services,Premises Related Expense,Electricity,2203,BRITISH GAS BUSINESS,A0069538, 31/05/2018,AAS4005823,-19.17,N,N/A,N,N/A
Pendle Borough Council,Financial Services,Premises Related Expense,Electricity,2203,BRITISH GAS BUSINESS,A0069538, 31/05/2018,AAS4005825,-19.14,N,N/A,N,N/A
Pendle Borough Council,Financial Services,Premises Related Expense,Electricity,2203,BRITISH GAS BUSINESS,A0069538, 31/05/2018,AAS4005820,-19.06,N,N/A,N,N/A
Pendle Borough Council,Financial Services,Premises Related Expense,Electricity,2203,BRITISH GAS BUSINESS,A0069538, 31/05/2018,AAS4005821,-18.99,N,N/A,N,N/A
Pendle Borough Council,Financial Services,Premises Related Expense,Electricity,2203,BRITISH GAS BUSINESS,A0069538, 31/05/2018,AAS4005842,-18.96,N,N/A,N,N/A
Pendle Borough Council,Financial Services,Premises Related Expense,Electricity,2203,BRITISH GAS BUSINESS,A0069538, 31/05/2018,AAS4005841,-18.90,N,N/A,N,N/A
Pendle Borough Council,Financial Services,Premises Related Expense,Electricity,2203,BRITISH GAS BUSINESS,A0069538, 31/05/2018,AAS4005843,-18.50,N,N/A,N,N/A
Pendle Borough Council,Financial Services,Premises Related Expense,Electricity,2203,BRITISH GAS BUSINESS,A0069538, 31/05/2018,AAS4005837,-18.49,N,N/A,N,N/A
Pendle Borough Council,Financial Services,Premises Related Expense,Electricity,2203,BRITISH GAS BUSINESS,A0069538, 31/05/2018,AAS4005827,-18.37,N,N/A,N,N/A
Pendle Borough Council,Financial Services,Premises Related Expense,Electricity,2203,BRITISH GAS BUSINESS,A0069538, 31/05/2018,AAS4005831,-18.06,N,N/A,N,N/A
Pendle Borough Council,Financial Services,Premises Related Expense,Electricity,2203,BRITISH GAS BUSINESS,A0069538, 31/05/2018,AAS4005836,-17.76,N,N/A,N,N/A
Pendle Borough Council,Financial Services,Premises Related Expense,Electricity,2203,BRITISH GAS BUSINESS,A0069538, 31/05/2018,AAS4005833,-17.73,N,N/A,N,N/A
Pendle Borough Council,Financial Services,Premises Related Expense,Electricity,2203,BRITISH GAS BUSINESS,A0069538, 31/05/2018,AAS4005835,-17.41,N,N/A,N,N/A
Pendle Borough Council,Financial Services,Premises Related Expense,Electricity,2203,BRITISH GAS BUSINESS,A0069538, 31/05/2018,AAS4005832,-17.12,N,N/A,N,N/A
Pendle Borough Council,Financial Services,Premises Related Expense,Electricity,2203,BRITISH GAS BUSINESS,A0069538, 31/05/2018,AAS4005834,-17.02,N,N/A,N,N/A
Pendle Borough Council,Financial Services,Premises Related Expense,Electricity,2203,BRITISH GAS BUSINESS,A0069538, 31/05/2018,AAS0287835,89.14,N,N/A,N,N/A
Pendle Borough Council,Financial Services,Premises Related Expense,Electricity,2203,BRITISH GAS BUSINESS,A0069538, 31/05/2018,AAS0288497,251.33,N,N/A,N,N/A
Pendle Borough Council,Financial Services,Premises Related Expense,Electricity,2203,BRITISH GAS BUSINESS,A0069538, 31/05/2018,AAS0287821,15.01,N,N/A,N,N/A
Pendle Borough Council,Financial Services,Premises Related Expense,Electricity,2203,BRITISH GAS BUSINESS,A0069538, 31/05/2018,AAS0288486,20.27,N,N/A,N,N/A
Pendle Borough Council,Financial Services,Premises Related Expense,Electricity,2203,BRITISH GAS BUSINESS,A0069538, 31/05/2018,AAS0287831,144.05,N,N/A,N,N/A
Pendle Borough Council,Financial Services,Premises Related Expense,Electricity,2203,BRITISH GAS BUSINESS,A0069538, 31/05/2018,AAS0288494,153.89,N,N/A,N,N/A
Pendle Borough Council,Financial Services,Premises Related Expense,Electricity,2203,BRITISH GAS BUSINESS,A0069538, 31/05/2018,AAS0287820,9.10,N,N/A,N,N/A
Pendle Borough Council,Financial Services,Premises Related Expense,Electricity,2203,BRITISH GAS BUSINESS,A0069538, 31/05/2018,AAS0288485,13.21,N,N/A,N,N/A
Pendle Borough Council,Financial Services,Premises Related Expense,Electricity,2203,BRITISH GAS BUSINESS,A0069538, 31/05/2018,AAS0287844,11.03,N,N/A,N,N/A
Pendle Borough Council,Financial Services,Premises Related Expense,Electricity,2203,BRITISH GAS BUSINESS,A0069538, 31/05/2018,AAS0288507,12.36,N,N/A,N,N/A
Pendle Borough Council,Financial Services,Premises Related Expense,Electricity,2203,BRITISH GAS BUSINESS,A0069538, 31/05/2018,AAS0288516,33.18,N,N/A,N,N/A
Pendle Borough Council,Financial Services,Premises Related Expense,Electricity,2203,BRITISH GAS BUSINESS,A0069538, 31/05/2018,AAS0287855,45.84,N,N/A,N,N/A
Pendle Borough Council,Financial Services,Premises Related Expense,Electricity,2203,BRITISH GAS BUSINESS,A0069538, 31/05/2018,AAS0287848,10.47,N,N/A,N,N/A
Pendle Borough Council,Financial Services,Premises Related Expense,Electricity,2203,BRITISH GAS BUSINESS,A0069538, 31/05/2018,AAS0288511,14.15,N,N/A,N,N/A
Pendle Borough Council,Financial Services,Premises Related Expense,Electricity,2203,BRITISH GAS BUSINESS,A0069538, 31/05/2018,AAS0287847,64.34,N,N/A,N,N/A
Pendle Borough Council,Financial Services,Premises Related Expense,Electricity,2203,BRITISH GAS BUSINESS,A0069538, 31/05/2018,AAS0288510,70.65,N,N/A,N,N/A
Pendle Borough Council,Financial Services,Premises Related Expense,Electricity,2203,BRITISH GAS BUSINESS,A0069538, 31/05/2018,AAS0287825,196.06,N,N/A,N,N/A
Pendle Borough Council,Financial Services,Premises Related Expense,Electricity,2203,BRITISH GAS BUSINESS,A0069538, 31/05/2018,AAS0288488,223.14,N,N/A,N,N/A
Pendle Borough Council,Financial Services,Premises Related Expense,Electricity,2203,BRITISH GAS BUSINESS,A0069538, 31/05/2018,AAS0288513,6.19,N,N/A,N,N/A
Pendle Borough Council,Financial Services,Premises Related Expense,Electricity,2203,BRITISH GAS BUSINESS,A0069538, 31/05/2018,AAS0287850,6.75,N,N/A,N,N/A
Pendle Borough Council,Financial Services,Premises Related Expense,Electricity,2203,BRITISH GAS BUSINESS,A0069538, 31/05/2018,AAS0287834,-0.23,N,N/A,N,N/A
Pendle Borough Council,Financial Services,Premises Related Expense,Electricity,2203,BRITISH GAS BUSINESS,A0069538, 31/05/2018,AAS0287834,0.23,N,N/A,N,N/A
Pendle Borough Council,Financial Services,Premises Related Expense,Electricity,2203,BRITISH GAS BUSINESS,A0069538, 31/05/2018,AAS0287834,2.35,N,N/A,N,N/A
Pendle Borough Council,Financial Services,Premises Related Expense,Electricity,2203,BRITISH GAS BUSINESS,A0069538, 31/05/2018,AAS0288499,114.30,N,N/A,N,N/A
Pendle Borough Council,Financial Services,Premises Related Expense,Electricity,2203,BRITISH GAS BUSINESS,A0069538, 31/05/2018,AAS0287837,138.53,N,N/A,N,N/A
Pendle Borough Council,Financial Services,Premises Related Expense,Electricity,2203,BRITISH GAS BUSINESS,A0069538, 31/05/2018,AAS0287838,169.01,N,N/A,N,N/A
Pendle Borough Council,Financial Services,Premises Related Expense,Electricity,2203,BRITISH GAS BUSINESS,A0069538, 31/05/2018,AAS0288501,215.77,N,N/A,N,N/A
Pendle Borough Council,Financial Services,Premises Related Expense,Electricity,2203,BRITISH GAS BUSINESS,A0069538, 31/05/2018,AAS0288500,-0.20,N,N/A,N,N/A
Pendle Borough Council,Financial Services,Premises Related Expense,Electricity,2203,BRITISH GAS BUSINESS,A0069538, 31/05/2018,AAS0288500,0.20,N,N/A,N,N/A
Pendle Borough Council,Financial Services,Premises Related Expense,Electricity,2203,BRITISH GAS BUSINESS,A0069538, 31/05/2018,AAS0288500,2.51,N,N/A,N,N/A
Pendle Borough Council,Financial Services,Premises Related Expense,Electricity,2203,BRITISH GAS BUSINESS,A0069538, 31/05/2018,AAS0287840,17.43,N,N/A,N,N/A
Pendle Borough Council,Financial Services,Premises Related Expense,Electricity,2203,BRITISH GAS BUSINESS,A0069538, 31/05/2018,AAS0288503,40.01,N,N/A,N,N/A
Pendle Borough Council,Financial Services,Premises Related Expense,Electricity,2203,BRITISH GAS BUSINESS,A0069538, 31/05/2018,AAS0287827,74.69,N,N/A,N,N/A
Pendle Borough Council,Financial Services,Premises Related Expense,Electricity,2203,BRITISH GAS BUSINESS,A0069538, 31/05/2018,AAS0288490,91.23,N,N/A,N,N/A
Pendle Borough Council,Financial Services,Premises Related Expense,Electricity,2203,BRITISH GAS BUSINESS,A0069538, 31/05/2018,AAS0288515,7.50,N,N/A,N,N/A
Pendle Borough Council,Financial Services,Premises Related Expense,Electricity,2203,BRITISH GAS BUSINESS,A0069538, 31/05/2018,AAS0287854,8.33,N,N/A,N,N/A
Pendle Borough Council,Financial Services,Premises Related Expense,Electricity,2203,BRITISH GAS BUSINESS,A0069538, 31/05/2018,AAS0287849,15.12,N,N/A,N,N/A
Pendle Borough Council,Financial Services,Premises Related Expense,Electricity,2203,BRITISH GAS BUSINESS,A0069538, 31/05/2018,AAS0288512,15.52,N,N/A,N,N/A
Pendle Borough Council,Financial Services,Premises Related Expense,Electricity,2203,BRITISH GAS BUSINESS,A0069538, 31/05/2018,AAS0288509,47.86,N,N/A,N,N/A
Pendle Borough Council,Financial Services,Premises Related Expense,Electricity,2203,BRITISH GAS BUSINESS,A0069538, 31/05/2018,AAS0287846,111.09,N,N/A,N,N/A
Pendle Borough Council,Financial Services,Premises Related Expense,Electricity,2203,BRITISH GAS BUSINESS,A0069538, 31/05/2018,AAS0288518,414.21,N,N/A,N,N/A
Pendle Borough Council,Financial Services,Premises Related Expense,Electricity,2203,BRITISH GAS BUSINESS,A0069538, 31/05/2018,AAS0287857,440.31,N,N/A,N,N/A
Pendle Borough Council,Financial Services,Premises Related Expense,Electricity,2203,BRITISH GAS BUSINESS,A0069538, 31/05/2018,AAS0288517,384.97,N,N/A,N,N/A
Pendle Borough Council,Financial Services,Premises Related Expense,Electricity,2203,BRITISH GAS BUSINESS,A0069538, 31/05/2018,AAS0287856,446.24,N,N/A,N,N/A
Pendle Borough Council,Financial Services,Supplies and Services,Other Expenses,4705,BRITISH GAS BUSINESS,A0069538, 31/05/2018,AAS0287841,8.04,N,N/A,N,N/A
Pendle Borough Council,Financial Services,Supplies and Services,Other Expenses,4705,BRITISH GAS BUSINESS,A0069538, 31/05/2018,AAS0288504,8.30,N,N/A,N,N/A
Pendle Borough Council,Financial Services,Supplies and Services,Other Expenses,4705,BRITISH GAS BUSINESS,A0069538, 31/05/2018,AAS0287830,32.97,N,N/A,N,N/A
Pendle Borough Council,Financial Services,Supplies and Services,Other Expenses,4705,BRITISH GAS BUSINESS,A0069538, 31/05/2018,AAS0288493,39.26,N,N/A,N,N/A
Pendle Borough Council,Engineering & Special Projects,Supplies and Services,Seminars etc All Costs,4601,REDACTED - PERESONAL DATA,A0069967, 03/05/2018,HED0287867,13.34,N,N/A,N,N/A
Pendle Borough Council,Operational Services,Capital Costs,Capital : Payments,CD14,CRAEMER UK LIMITED,A0070869, 24/05/2018,OPS0288279,760.00,N,N/A,N,N/A
Pendle Borough Council,Operational Services,Capital Costs,Capital : Payments,CD14,CRAEMER UK LIMITED,A0070869, 24/05/2018,OPS0288287,1368.00,N,N/A,N,N/A
Pendle Borough Council,Operational Services,Capital Costs,Capital : Payments,CD14,CRAEMER UK LIMITED,A0070869, 24/05/2018,OPS0288279,3192.00,N,N/A,N,N/A
Pendle Borough Council,Operational Services,Capital Costs,Capital : Payments,CD14,CRAEMER UK LIMITED,A0070869, 24/05/2018,OPS0288279,6080.00,N,N/A,N,N/A
Pendle Borough Council,Operational Services,Capital Costs,Capital : Payments,CD14,CRAEMER UK LIMITED,A0070869, 24/05/2018,OPS0288287,6080.00,N,N/A,N,N/A
Pendle Borough Council,Operational Services,Capital Costs,Capital : Payments,CD14,CRAEMER UK LIMITED,A0070869, 24/05/2018,OPS0288379,6080.00,N,N/A,N,N/A
Pendle Borough Council,Financial Services,Premises Related Expense,Rents,2301,MARKAZI JAMIA MASJID GHAUSIA MOSQUE,A0070998, 03/05/2018,AAS0287890,150.00,N,N/A,N,N/A
Pendle Borough Council,Economic Development & Tourism,Supplies and Services,Publicity & advertisement,4704,BAUER CONSUMER MEDIA LIMITED,A0071011, 24/05/2018,REG0288355,225.00,N,N/A,N,N/A
Pendle Borough Council,Financial Services,Supplies and Services,Sub-Contractors,4007,QHS SOLUTIONS LIMITED,A0071912, 01/05/2018,AAS0288174,666.67,N,N/A,N,N/A
Pendle Borough Council,Human Resources,Indirect Employee Expenses,Emp : Medical Expenses,1236,FIT 2 DRIVE MEDICALS LIMITED,A0071919, 10/05/2018,PER0288102,45.83,N,N/A,N,N/A
Pendle Borough Council,Planning & Building Control,Supplies and Services,Reference Books Acts,4304,LABC,A0072264, 03/05/2018,PBC0287920,1872.79,N,N/A,N,N/A
Pendle Borough Council,Environmental Health Services,Supplies and Services,Tests & Inspection Fees,4409,UNITED UTILITIES WATER PLC,A0072400, 31/05/2018,ENV0288566,274.80,N,N/A,N,N/A
Pendle Borough Council,Financial Services,Supplies and Services,Consultants Fees,4401,GLOBAL PAYMENTS,A0072461, 17/05/2018,AAS0288301,7.00,N,N/A,N,N/A
Pendle Borough Council,Financial Services,Supplies and Services,Consultants Fees,4401,GLOBAL PAYMENTS,A0072461, 17/05/2018,AAS0288301,3235.67,N,N/A,N,N/A
Pendle Borough Council,Financial Services,Supplies and Services,Credit card and online charges,4421,GLOBAL PAYMENTS,A0072461, 17/05/2018,AAS0288299,7.00,N,N/A,N,N/A
Pendle Borough Council,Financial Services,Supplies and Services,Credit card and online charges,4421,GLOBAL PAYMENTS,A0072461, 17/05/2018,AAS0288300,7.00,N,N/A,N,N/A
Pendle Borough Council,Financial Services,Supplies and Services,Credit card and online charges,4421,GLOBAL PAYMENTS,A0072461, 17/05/2018,AAS0288300,1081.79,N,N/A,N,N/A
Pendle Borough Council,Financial Services,Supplies and Services,Credit card and online charges,4421,GLOBAL PAYMENTS,A0072461, 17/05/2018,AAS0288299,1945.76,N,N/A,N,N/A
Pendle Borough Council,Financial Services,Support Services,Bank Charges,7201,LLOYDS BANKING GROUP,A0072462, 01/05/2018,AAS0288180,0.99,N,N/A,N,N/A
Pendle Borough Council,Financial Services,Support Services,Bank Charges,7201,LLOYDS BANKING GROUP,A0072462, 29/05/2018,AAS0288766,60.00,N,N/A,N,N/A
Pendle Borough Council,Operational Services,Supplies and Services,Sub-Contractors,4007,OCS GROUP UK LIMITED,A0072816, 17/05/2018,OPS0288152,236.20,N,N/A,N,N/A
Pendle Borough Council,Operational Services,Supplies and Services,Sub-Contractors,4007,OCS GROUP UK LIMITED,A0072816, 17/05/2018,OPS0288150,4.26,N,N/A,N,N/A
Pendle Borough Council,Operational Services,Supplies and Services,Sub-Contractors,4007,OCS GROUP UK LIMITED,A0072816, 17/05/2018,OPS0288191,4.26,N,N/A,N,N/A
Pendle Borough Council,Operational Services,Supplies and Services,Sub-Contractors,4007,OCS GROUP UK LIMITED,A0072816, 24/05/2018,OPS0288286,4.26,N,N/A,N,N/A
Pendle Borough Council,Operational Services,Supplies and Services,Sub-Contractors,4007,OCS GROUP UK LIMITED,A0072816, 17/05/2018,OPS0288190,8.51,N,N/A,N,N/A
Pendle Borough Council,Operational Services,Supplies and Services,Sub-Contractors,4007,TCS (WASTE) LIMITED,A0072822, 24/05/2018,OPS0288280,140.00,N,N/A,N,N/A
Pendle Borough Council,Financial Services,Indirect Employee Expenses,Recruitment,1221,DBS,A0072958, 21/05/2018,AAS0288777,264.00,N,N/A,N,N/A
Pendle Borough Council,Financial Services,Supplies and Services,Other Expenses,4705,DBS,A0072958, 21/05/2018,AAS0288777,1232.00,N,N/A,N,N/A
Pendle Borough Council,Engineering & Special Projects,Capital Costs,Capital : Payments,CD14,JD & S PICKLES LIMITED,A0074455, 10/05/2018,HED0288125,700.00,N,N/A,N,N/A
Pendle Borough Council,Engineering & Special Projects,Capital Costs,Capital : Payments,CD14,JD & S PICKLES LIMITED,A0074455, 10/05/2018,HED0288125,1960.00,N,N/A,N,N/A
Pendle Borough Council,Economic Development & Tourism,Transport Related Expense,Diesel Oil,3202,REDACTED - PERESONAL DATA,A0075060, 17/05/2018,REG0288039,25.01,N,N/A,N,N/A
Pendle Borough Council,Economic Development & Tourism,Supplies and Services,Miscellaneous : Other,4707,REDACTED - PERESONAL DATA,A0075060, 17/05/2018,REG0288021,60.03,N,N/A,N,N/A
Pendle Borough Council,Parks & Recreation Services,Supplies and Services,Expenditure : Materials,2,FLEET (LINE MARKERS) LIMITED,A0075352, 03/05/2018,PCO0287967,1322.10,N,N/A,N,N/A
Pendle Borough Council,Housing Regeneration Services,Capital Costs,Ren Grant : 1996 Act,CH22,OCEAN BATHROOMS TILES & HEATING LTD,A0075367, 17/05/2018,HMR0288220,3225.00,N,N/A,N,N/A
Pendle Borough Council,Housing Regeneration Services,Capital Costs,Ren Grant : 1996 Act,CH22,OCEAN BATHROOMS TILES & HEATING LTD,A0075367, 24/05/2018,HMR0288392,3655.00,N,N/A,N,N/A
Pendle Borough Council,Chief Executives Policy Unit,Supplies and Services,Seminars etc All Costs,4601,REDACTED - PERESONAL DATA,A0076703, 17/05/2018,COR0288142,2.00,N,N/A,N,N/A
Pendle Borough Council,Property Services,Supplies and Services,Other Expenses,4705,BURNLEY AND PENDLE ENERGY ASSESSORS LTD,A0077075, 31/05/2018,EST0288562,150.00,N,N/A,N,N/A
Pendle Borough Council,Property Services,Supplies and Services,Other Expenses,4705,BURNLEY AND PENDLE ENERGY ASSESSORS LTD,A0077075, 31/05/2018,EST0288571,150.00,N,N/A,N,N/A
Pendle Borough Council,Property Services,Supplies and Services,Other Expenses,4705,BURNLEY AND PENDLE ENERGY ASSESSORS LTD,A0077075, 31/05/2018,EST0288572,150.00,N,N/A,N,N/A
Pendle Borough Council,Property Services,Supplies and Services,Other Expenses,4705,BURNLEY AND PENDLE ENERGY ASSESSORS LTD,A0077075, 31/05/2018,EST0288573,150.00,N,N/A,N,N/A
Pendle Borough Council,Property Services,Supplies and Services,Other Expenses,4705,BURNLEY AND PENDLE ENERGY ASSESSORS LTD,A0077075, 31/05/2018,EST0288574,175.00,N,N/A,N,N/A
Pendle Borough Council,Democratic & Legal Services,Supplies and Services,EFM : Office and computer equipment,4002,THOMSON REUTERS PROFESSIONAL UK LIMITED,A0077400, 17/05/2018,DAL0288245,111.50,N,N/A,N,N/A
Pendle Borough Council,Democratic & Legal Services,Supplies and Services,EFM : Office and computer equipment,4002,THOMSON REUTERS PROFESSIONAL UK LIMITED,A0077400, 17/05/2018,DAL0288245,111.50,N,N/A,N,N/A
Pendle Borough Council,Financial Services,,Precept Parish & T Council,303,FOULRIDGE PARISH COUNCIL,A0077715, 08/05/2018,AAS0288061,21232.42,N,N/A,N,N/A
Pendle Borough Council,Operational Services,Supplies and Services,EFM Materials,4004,GLASDON UK LIMITED,A0078667, 17/05/2018,OPS0288155,555.47,N,N/A,N,N/A
Pendle Borough Council,Engineering & Special Projects,Premises Related Expense,Passenger Shelter Cleaning,2606,JANDON CLEANING SERVICES,A0079028, 03/05/2018,HED0288004,60.00,N,N/A,N,N/A
Pendle Borough Council,Housing Regeneration Services,Premises Related Expense,Premises Cleaning,2601,KINGS WASHING MACHINE RENTALS,A0079878, 24/05/2018,HMR0288394,55.00,N,N/A,N,N/A
Pendle Borough Council,Economic Development & Tourism,Capital Costs,Capital : Salaries,CD13,HILL DICKINSON LLP,A0080232, 17/05/2018,REG0288143,3163.00,N,N/A,N,N/A
Pendle Borough Council,Financial Services,,Precept Parish & T Council,303,GOLDSHAWBOOTH PARISH COUNCIL,A0080533, 08/05/2018,AAS0288062,6131.00,N,N/A,N,N/A
Pendle Borough Council,Housing Regeneration Services,,LANCASHIRE COUNTY COUNCIL,9.00E+09,LANCASHIRE CARE NHS FOUNDATION TRUST,A0081128, 31/05/2018,HMR0288569,14382.47,N,N/A,N,N/A
Pendle Borough Council,Financial Services,,Precept Parish & T Council,303,KELBROOK & SOUGH PARISH COUNCIL,A0081332, 08/05/2018,AAS0288064,15000.00,Y,1101005,N,N/A
Pendle Borough Council,Financial Services,Premises Related Expense,Rents,2301,KELBROOK AND SOUGH VILLAGE HALL,A0081339, 03/05/2018,AAS0287886,60.00,Y,1101005,N,N/A
Pendle Borough Council,Financial Services,Premises Related Expense,Rents,2301,PETER BIRTWISTLE TRUST,A0081345, 03/05/2018,AAS0287891,60.00,N,N/A,N,N/A
Pendle Borough Council,Financial Services,Premises Related Expense,Rents,2301,NELSON BAPTIST CHURCH,A0081346, 03/05/2018,AAS0287893,100.00,N,N/A,N,N/A
Pendle Borough Council,Financial Services,Premises Related Expense,Rents,2301,MARSDEN QUAKER MEETING,A0081348, 03/05/2018,AAS0287894,50.00,N,N/A,N,N/A
Pendle Borough Council,Planning & Building Control,Supplies and Services,EFM : Other Equipment,4003,INSTITUTE OF LICENSING LIMITED,A0082227, 24/05/2018,PBC0288404,80.00,N,N/A,N,N/A
Pendle Borough Council,Parks & Recreation Services,Transport Related Expense,Diesel Oil,3202,TATE FUEL OILS LIMITED,A0082819, 03/05/2018,PCO0287961,2025.11,N,N/A,N,N/A
Pendle Borough Council,Parks & Recreation Services,Transport Related Expense,Diesel Oil,3202,TATE FUEL OILS LIMITED,A0082819, 31/05/2018,PCO0288530,2113.14,N,N/A,N,N/A
Pendle Borough Council,Financial Services,Supplies and Services,Consultants Fees,4401,HM COURTS & TRIBUNALS SERVICE,A0083319, 16/05/2018,AAS0288767,245.00,N,N/A,N,N/A
Pendle Borough Council,Operational Services,Supplies and Services,Other Expenses,4705,FOOD SAFETY DIRECT LIMITED,A0083616, 03/05/2018,OPS0287973,100.00,N,N/A,N,N/A
Pendle Borough Council,Planning & Building Control,,Other Income : Non-VATable,9303,REDACTED - PERESONAL DATA,A0084247, 31/05/2018,PBC0288567,18.63,N,N/A,N,N/A
Pendle Borough Council,Financial Services,,Precept Parish & T Council,303,BLACKO PARISH COUNCIL,A0084321, 08/05/2018,AAS0288057,9109.00,N,N/A,N,N/A
Pendle Borough Council,Financial Services,Supplies and Services,Allpay,4422,ALLPAY LIMITED,A0084372, 10/05/2018,AAS0288106,10.82,N,N/A,N,N/A
Pendle Borough Council,Financial Services,Supplies and Services,Allpay,4422,ALLPAY LIMITED,A0084372, 10/05/2018,AAS0288109,25.11,N,N/A,N,N/A
Pendle Borough Council,Financial Services,Supplies and Services,Allpay,4422,ALLPAY LIMITED,A0084372, 10/05/2018,AAS0288110,42.06,N,N/A,N,N/A
Pendle Borough Council,Financial Services,Supplies and Services,Allpay,4422,ALLPAY LIMITED,A0084372, 10/05/2018,AAS0288108,182.74,N,N/A,N,N/A
Pendle Borough Council,Financial Services,Supplies and Services,Allpay,4422,ALLPAY LIMITED,A0084372, 17/05/2018,AAS0288270,1573.67,N,N/A,N,N/A
Pendle Borough Council,Financial Services,Supplies and Services,Allpay,4422,ALLPAY LIMITED,A0084372, 10/05/2018,AAS0288111,2720.68,N,N/A,N,N/A
Pendle Borough Council,Revenues Services,,Fees Income : Non-VATable,9302,WILKIN CHAPMAN LLP,A0084376, 24/05/2018,TRE0288338,12.00,N,N/A,N,N/A
Pendle Borough Council,Revenues Services,,Fees Income : Non-VATable,9302,WILKIN CHAPMAN LLP,A0084376, 24/05/2018,TRE0288338,40.00,N,N/A,N,N/A
Pendle Borough Council,Financial Services,Premises Related Expense,Rents,2301,VICTORIA PARK PAVILION CIC,A0085028, 03/05/2018,AAS0287900,150.00,N,N/A,N,N/A
Pendle Borough Council,Engineering & Special Projects,Premises Related Expense,Grounds : R & M : Day to Day : Routine,2101,KEVIN WILKINSON LANDSCAPES LTD,A0085660, 17/05/2018,HED0288250,268.00,N,N/A,N,N/A
Pendle Borough Council,Financial Services,Support Services,District Audit Fees,7202,NATWEST,A0086339, 03/05/2018,AAS0288011,75.00,N,N/A,N,N/A
Pendle Borough Council,Operational Services,Transport Related Expense,Tprt : Repairs : General,3105,DAC BEACHCROFT CLAIMS LIMITED,A0087004, 24/05/2018,OPS0288275,-400.00,N,N/A,N,N/A
Pendle Borough Council,Operational Services,Transport Related Expense,Tprt : Repairs : General,3105,DAC BEACHCROFT CLAIMS LIMITED,A0087004, 24/05/2018,OPS0288275,400.00,N,N/A,N,N/A
Pendle Borough Council,Engineering & Special Projects,Premises Related Expense,Bldgs : R & M : Day To Day,2001,MARCHBRIDGE BUILDERS LIMITED,A0087284, 10/05/2018,HED0288028,131.17,N,N/A,N,N/A
Pendle Borough Council,Engineering & Special Projects,Premises Related Expense,Bldgs : R & M : Day To Day,2001,MARCHBRIDGE BUILDERS LIMITED,A0087284, 10/05/2018,HED0288027,320.00,N,N/A,N,N/A
Pendle Borough Council,Revenues Services,Supplies and Services,Consultants Fees,4401,JBW GROUP LIMITED,A0088708, 31/05/2018,TRE0288589,55.00,N,N/A,N,N/A
Pendle Borough Council,Revenues Services,Supplies and Services,Consultants Fees,4401,JBW GROUP LIMITED,A0088708, 31/05/2018,TRE0288545,110.00,N,N/A,N,N/A
Pendle Borough Council,Revenues Services,Supplies and Services,Consultants Fees,4401,JBW GROUP LIMITED,A0088708, 03/05/2018,TRE0287917,220.00,N,N/A,N,N/A
Pendle Borough Council,Revenues Services,Supplies and Services,Consultants Fees,4401,JBW GROUP LIMITED,A0088708, 10/05/2018,TRE0288098,220.00,N,N/A,N,N/A
Pendle Borough Council,Engineering & Special Projects,Premises Related Expense,Bldgs : R & M : Day To Day,2001,JETCAM CLEANSING COLNE LTD,A0088807, 24/05/2018,HED0288405,70.00,N,N/A,N,N/A
Pendle Borough Council,Engineering & Special Projects,Premises Related Expense,Grounds : R & M : Day to Day : Routine,2101,JETCAM CLEANSING COLNE LTD,A0088807, 24/05/2018,HED0288407,125.00,N,N/A,N,N/A
Pendle Borough Council,Engineering & Special Projects,Premises Related Expense,Grounds : R & M : Day to Day : Routine,2101,JETCAM CLEANSING COLNE LTD,A0088807, 24/05/2018,HED0288408,180.00,N,N/A,N,N/A
Pendle Borough Council,Human Resources,Indirect Employee Expenses,Emp : Medical Expenses,1236,HEALTH BUSINESS LIMITED,A0088933, 17/05/2018,PER0288255,700.00,N,N/A,N,N/A
Pendle Borough Council,Engineering & Special Projects,Capital Costs,Capital : Payments,CD14,THE FRIENDS OF ALKINCOATS PARK,A0089013, 03/05/2018,HED0287762,500.00,N,N/A,N,N/A
Pendle Borough Council,Financial Services,Supplies and Services,Consultants Fees,4401,AURORA ACCOUNTING SERVICES,A0089134, 17/05/2018,AAS0288268,1920.00,N,N/A,N,N/A
Pendle Borough Council,Financial Services,Premises Related Expense,Rents,2301,REDACTED - PERESONAL DATA,A0089260, 03/05/2018,AAS0287883,30.00,N,N/A,N,N/A
Pendle Borough Council,Financial Services,Premises Related Expense,Rents,2301,SALTERFORTH VILLAGE HALL,A0089262, 03/05/2018,AAS0287888,115.00,N,N/A,N,N/A
Pendle Borough Council,Property Services,Capital Costs,Capital : Payments,CD14,CATCHPOINT (UK) LIMITED,A0089500, 03/05/2018,EST0287935,5160.00,N,N/A,N,N/A
Pendle Borough Council,Financial Services,Premises Related Expense,Rents,2301,AGE UK LANCASHIRE,A0089644, 03/05/2018,AAS0287877,50.00,N,N/A,N,N/A
Pendle Borough Council,Operational Services,Indirect Employee Expenses,Lone Worker Monitoring Service,1270,SOLOPROTECT LIMITED,A0089719, 03/05/2018,OPS0287982,11.06,N,N/A,N,N/A
Pendle Borough Council,Operational Services,Indirect Employee Expenses,Lone Worker Monitoring Service,1270,SOLOPROTECT LIMITED,A0089719, 03/05/2018,OPS0287983,394.80,N,N/A,N,N/A
Pendle Borough Council,Operational Services,Indirect Employee Expenses,Lone Worker Monitoring Service,1270,SOLOPROTECT LIMITED,A0089719, 17/05/2018,OPS0288203,394.80,N,N/A,N,N/A
Pendle Borough Council,Financial Services,Capital Costs,Capital : Payments,CD14,INFORM CPI LIMITED,A0089895, 10/05/2018,AAS0288107,6000.00,N,N/A,N,N/A
Pendle Borough Council,Parks & Recreation Services,Premises Related Expense,Grounds : R & M : Day to Day : Routine,2101,UNIVERSAL CONTAINERS LTD,A0089970, 24/05/2018,PCO0288424,140.00,N,N/A,N,N/A
Pendle Borough Council,Parks & Recreation Services,Premises Related Expense,Grounds : R & M : Day to Day : Routine,2101,UNIVERSAL CONTAINERS LTD,A0089970, 24/05/2018,PCO0288424,950.00,N,N/A,N,N/A
Pendle Borough Council,Financial Services,Premises Related Expense,Rents,2301,ST JOHN SOUTHWORTH FAMILY GROUP,A0089974, 03/05/2018,AAS0287882,100.00,N,N/A,N,N/A
Pendle Borough Council,Financial Services,Premises Related Expense,Rents,2301,TRAWDEN FOREST COMMUNITY CENTRE,A0090063, 03/05/2018,AAS0287881,100.00,Y,1158193,N,N/A
Pendle Borough Council,Operational Services,Agency Staff,Emp : Agency Wages,1004,RAPID RECRUIT LIMITED,A0090080, 24/05/2018,OPS0288315,1628.03,N,N/A,N,N/A
Pendle Borough Council,Operational Services,Agency Staff,Emp : Agency Wages,1004,RAPID RECRUIT LIMITED,A0090080, 10/05/2018,OPS0288026,1696.99,N,N/A,N,N/A
Pendle Borough Council,Operational Services,Agency Staff,Emp : Agency Wages,1004,RAPID RECRUIT LIMITED,A0090080, 17/05/2018,OPS0288196,2538.39,N,N/A,N,N/A
Pendle Borough Council,Operational Services,Agency Staff,Emp : Agency Wages,1004,RAPID RECRUIT LIMITED,A0090080, 17/05/2018,OPS0288196,1980.56,N,N/A,N,N/A
Pendle Borough Council,Operational Services,Agency Staff,Emp : Agency Wages,1004,RAPID RECRUIT LIMITED,A0090080, 24/05/2018,OPS0288315,1990.49,N,N/A,N,N/A
Pendle Borough Council,Operational Services,Agency Staff,Emp : Agency Wages,1004,RAPID RECRUIT LIMITED,A0090080, 10/05/2018,OPS0288026,2941.22,N,N/A,N,N/A
Pendle Borough Council,Operational Services,Agency Staff,Emp : Agency Wages,1004,RAPID RECRUIT LIMITED,A0090080, 17/05/2018,OPS0288196,81.30,N,N/A,N,N/A
Pendle Borough Council,Operational Services,Agency Staff,Emp : Agency Wages,1004,RAPID RECRUIT LIMITED,A0090080, 10/05/2018,OPS0288026,583.60,N,N/A,N,N/A
Pendle Borough Council,Operational Services,Agency Staff,Emp : Agency Wages,1004,RAPID RECRUIT LIMITED,A0090080, 24/05/2018,OPS0288315,597.68,N,N/A,N,N/A
Pendle Borough Council,Parks & Recreation Services,Premises Related Expense,Grounds : R & M : Day to Day : Routine,2101,MARTIN LEE,A0090177, 31/05/2018,PCO0288533,145.30,N,N/A,N,N/A
Pendle Borough Council,Parks & Recreation Services,Premises Related Expense,Grounds : R & M : Day to Day : Routine,2101,MARTIN LEE,A0090177, 31/05/2018,PCO0288533,530.00,N,N/A,N,N/A
Pendle Borough Council,Parks & Recreation Services,Premises Related Expense,Grounds : R & M : Day to Day : Routine,2101,MARTIN LEE,A0090177, 31/05/2018,PCO0288533,750.00,N,N/A,N,N/A
Pendle Borough Council,Financial Services,Agency Costs,Liberata,5301,BOB`S BUSINESS LIMITED,A0090247, 03/05/2018,AAS0287922,3000.00,N,N/A,N,N/A
Pendle Borough Council,Environmental Health Services,Supplies and Services,EFM : Other Equipment,4003,TTM MEDIA LIMITED,A0090248, 31/05/2018,ENV0288568,450.00,N,N/A,N,N/A
Pendle Borough Council,Financial Services,Premises Related Expense,Rents,2301,LANESHAWBRIDGE PRIMARY SCHOOL,A0090261, 03/05/2018,AAS0287904,100.00,N,N/A,N,N/A
Pendle Borough Council,Financial Services,Premises Related Expense,Rents,2301,DIOCESE OF LEEDS ST JOSEPHS BARNOLDSWICK,A0090262, 03/05/2018,AAS0287880,200.00,N,N/A,N,N/A
Pendle Borough Council,Financial Services,Premises Related Expense,Rents,2301,PENDLE PRIMARY ACADEMY,A0090263, 03/05/2018,AAS0287905,100.00,N,N/A,N,N/A
Pendle Borough Council,Financial Services,Premises Related Expense,Rents,2301,HOLY TRINITY CHURCH,A0090264, 03/05/2018,AAS0287885,140.00,N,N/A,N,N/A
Pendle Borough Council,Financial Services,Transport Related Expense,Diesel Oil,3202,FUELMATE LTD,A0090265, 29/05/2018,AAS0288772,17.66,N,N/A,N,N/A
Pendle Borough Council,Financial Services,Transport Related Expense,Diesel Oil,3202,FUELMATE LTD,A0090265, 08/05/2018,AAS0288189,27.84,N,N/A,N,N/A
Pendle Borough Council,Financial Services,Transport Related Expense,Diesel Oil,3202,FUELMATE LTD,A0090265, 01/05/2018,AAS0288187,36.58,N,N/A,N,N/A
Pendle Borough Council,Financial Services,Transport Related Expense,Diesel Oil,3202,FUELMATE LTD,A0090265, 01/05/2018,AAS0288187,40.60,N,N/A,N,N/A
Pendle Borough Council,Financial Services,Transport Related Expense,Diesel Oil,3202,FUELMATE LTD,A0090265, 22/05/2018,AAS0288771,42.00,N,N/A,N,N/A
Pendle Borough Council,Financial Services,Transport Related Expense,Diesel Oil,3202,FUELMATE LTD,A0090265, 01/05/2018,AAS0288187,45.90,N,N/A,N,N/A
Pendle Borough Council,Financial Services,Transport Related Expense,Diesel Oil,3202,FUELMATE LTD,A0090265, 29/05/2018,AAS0288772,47.80,N,N/A,N,N/A
Pendle Borough Council,Financial Services,Transport Related Expense,Diesel Oil,3202,FUELMATE LTD,A0090265, 15/05/2018,AAS0288770,49.63,N,N/A,N,N/A
Pendle Borough Council,Financial Services,Transport Related Expense,Diesel Oil,3202,FUELMATE LTD,A0090265, 08/05/2018,AAS0288189,50.07,N,N/A,N,N/A
Pendle Borough Council,Financial Services,Transport Related Expense,Diesel Oil,3202,FUELMATE LTD,A0090265, 01/05/2018,AAS0288187,51.02,N,N/A,N,N/A
Pendle Borough Council,Financial Services,Transport Related Expense,Diesel Oil,3202,FUELMATE LTD,A0090265, 22/05/2018,AAS0288771,51.69,N,N/A,N,N/A
Pendle Borough Council,Financial Services,Transport Related Expense,Diesel Oil,3202,FUELMATE LTD,A0090265, 29/05/2018,AAS0288772,57.29,N,N/A,N,N/A
Pendle Borough Council,Financial Services,Transport Related Expense,Diesel Oil,3202,FUELMATE LTD,A0090265, 01/05/2018,AAS0288187,59.78,N,N/A,N,N/A
Pendle Borough Council,Financial Services,Transport Related Expense,Diesel Oil,3202,FUELMATE LTD,A0090265, 29/05/2018,AAS0288772,60.29,N,N/A,N,N/A
Pendle Borough Council,Financial Services,Transport Related Expense,Diesel Oil,3202,FUELMATE LTD,A0090265, 15/05/2018,AAS0288770,79.62,N,N/A,N,N/A
Pendle Borough Council,Financial Services,Transport Related Expense,Diesel Oil,3202,FUELMATE LTD,A0090265, 29/05/2018,AAS0288772,95.59,N,N/A,N,N/A
Pendle Borough Council,Financial Services,Transport Related Expense,Diesel Oil,3202,FUELMATE LTD,A0090265, 08/05/2018,AAS0288189,110.58,N,N/A,N,N/A
Pendle Borough Council,Financial Services,Transport Related Expense,Diesel Oil,3202,FUELMATE LTD,A0090265, 08/05/2018,AAS0288189,121.37,N,N/A,N,N/A
Pendle Borough Council,Financial Services,Transport Related Expense,Diesel Oil,3202,FUELMATE LTD,A0090265, 01/05/2018,AAS0288187,125.15,N,N/A,N,N/A
Pendle Borough Council,Financial Services,Transport Related Expense,Diesel Oil,3202,FUELMATE LTD,A0090265, 15/05/2018,AAS0288770,134.26,N,N/A,N,N/A
Pendle Borough Council,Financial Services,Transport Related Expense,Diesel Oil,3202,FUELMATE LTD,A0090265, 01/05/2018,AAS0288187,184.06,N,N/A,N,N/A
Pendle Borough Council,Financial Services,Transport Related Expense,Diesel Oil,3202,FUELMATE LTD,A0090265, 29/05/2018,AAS0288772,223.32,N,N/A,N,N/A
Pendle Borough Council,Financial Services,Transport Related Expense,Diesel Oil,3202,FUELMATE LTD,A0090265, 15/05/2018,AAS0288770,141.81,N,N/A,N,N/A
Pendle Borough Council,Financial Services,Transport Related Expense,Diesel Oil,3202,FUELMATE LTD,A0090265, 01/05/2018,AAS0288187,192.92,N,N/A,N,N/A
Pendle Borough Council,Financial Services,Transport Related Expense,Diesel Oil,3202,FUELMATE LTD,A0090265, 08/05/2018,AAS0288189,250.52,N,N/A,N,N/A
Pendle Borough Council,Financial Services,Transport Related Expense,Diesel Oil,3202,FUELMATE LTD,A0090265, 29/05/2018,AAS0288772,273.13,N,N/A,N,N/A
Pendle Borough Council,Financial Services,Transport Related Expense,Diesel Oil,3202,FUELMATE LTD,A0090265, 22/05/2018,AAS0288771,322.04,N,N/A,N,N/A
Pendle Borough Council,Financial Services,Transport Related Expense,Diesel Oil,3202,FUELMATE LTD,A0090265, 29/05/2018,AAS0288772,58.72,N,N/A,N,N/A
Pendle Borough Council,Financial Services,Transport Related Expense,Diesel Oil,3202,FUELMATE LTD,A0090265, 08/05/2018,AAS0288189,99.88,N,N/A,N,N/A
Pendle Borough Council,Financial Services,Transport Related Expense,Diesel Oil,3202,FUELMATE LTD,A0090265, 15/05/2018,AAS0288770,251.05,N,N/A,N,N/A
Pendle Borough Council,Financial Services,Transport Related Expense,Diesel Oil,3202,FUELMATE LTD,A0090265, 22/05/2018,AAS0288771,300.05,N,N/A,N,N/A
Pendle Borough Council,Financial Services,Transport Related Expense,Diesel Oil,3202,FUELMATE LTD,A0090265, 01/05/2018,AAS0288187,184.62,N,N/A,N,N/A
Pendle Borough Council,Financial Services,Transport Related Expense,Diesel Oil,3202,FUELMATE LTD,A0090265, 22/05/2018,AAS0288771,185.84,N,N/A,N,N/A
Pendle Borough Council,Financial Services,Transport Related Expense,Diesel Oil,3202,FUELMATE LTD,A0090265, 08/05/2018,AAS0288189,222.63,N,N/A,N,N/A
Pendle Borough Council,Financial Services,Transport Related Expense,Diesel Oil,3202,FUELMATE LTD,A0090265, 15/05/2018,AAS0288770,274.42,N,N/A,N,N/A
Pendle Borough Council,Financial Services,Transport Related Expense,Diesel Oil,3202,FUELMATE LTD,A0090265, 29/05/2018,AAS0288772,308.52,N,N/A,N,N/A
Pendle Borough Council,Financial Services,Transport Related Expense,Diesel Oil,3202,FUELMATE LTD,A0090265, 08/05/2018,AAS0288189,199.93,N,N/A,N,N/A
Pendle Borough Council,Financial Services,Transport Related Expense,Diesel Oil,3202,FUELMATE LTD,A0090265, 29/05/2018,AAS0288772,250.68,N,N/A,N,N/A
Pendle Borough Council,Financial Services,Transport Related Expense,Diesel Oil,3202,FUELMATE LTD,A0090265, 01/05/2018,AAS0288187,253.11,N,N/A,N,N/A
Pendle Borough Council,Financial Services,Transport Related Expense,Diesel Oil,3202,FUELMATE LTD,A0090265, 15/05/2018,AAS0288770,257.85,N,N/A,N,N/A
Pendle Borough Council,Financial Services,Transport Related Expense,Diesel Oil,3202,FUELMATE LTD,A0090265, 22/05/2018,AAS0288771,279.45,N,N/A,N,N/A
Pendle Borough Council,Financial Services,Transport Related Expense,Diesel Oil,3202,FUELMATE LTD,A0090265, 01/05/2018,AAS0288187,196.34,N,N/A,N,N/A
Pendle Borough Council,Financial Services,Transport Related Expense,Diesel Oil,3202,FUELMATE LTD,A0090265, 15/05/2018,AAS0288770,248.22,N,N/A,N,N/A
Pendle Borough Council,Financial Services,Transport Related Expense,Diesel Oil,3202,FUELMATE LTD,A0090265, 29/05/2018,AAS0288772,252.79,N,N/A,N,N/A
Pendle Borough Council,Financial Services,Transport Related Expense,Diesel Oil,3202,FUELMATE LTD,A0090265, 08/05/2018,AAS0288189,265.13,N,N/A,N,N/A
Pendle Borough Council,Financial Services,Transport Related Expense,Diesel Oil,3202,FUELMATE LTD,A0090265, 22/05/2018,AAS0288771,273.38,N,N/A,N,N/A
Pendle Borough Council,Financial Services,Transport Related Expense,Diesel Oil,3202,FUELMATE LTD,A0090265, 15/05/2018,AAS0288770,154.84,N,N/A,N,N/A
Pendle Borough Council,Financial Services,Transport Related Expense,Diesel Oil,3202,FUELMATE LTD,A0090265, 22/05/2018,AAS0288771,194.13,N,N/A,N,N/A
Pendle Borough Council,Financial Services,Transport Related Expense,Diesel Oil,3202,FUELMATE LTD,A0090265, 29/05/2018,AAS0288772,234.88,N,N/A,N,N/A
Pendle Borough Council,Financial Services,Transport Related Expense,Diesel Oil,3202,FUELMATE LTD,A0090265, 08/05/2018,AAS0288189,247.82,N,N/A,N,N/A
Pendle Borough Council,Financial Services,Transport Related Expense,Diesel Oil,3202,FUELMATE LTD,A0090265, 29/05/2018,AAS0288772,20.43,N,N/A,N,N/A
Pendle Borough Council,Financial Services,Transport Related Expense,Diesel Oil,3202,FUELMATE LTD,A0090265, 01/05/2018,AAS0288187,33.24,N,N/A,N,N/A
Pendle Borough Council,Financial Services,Transport Related Expense,Diesel Oil,3202,FUELMATE LTD,A0090265, 01/05/2018,AAS0288187,53.97,N,N/A,N,N/A
Pendle Borough Council,Financial Services,Transport Related Expense,Diesel Oil,3202,FUELMATE LTD,A0090265, 29/05/2018,AAS0288772,54.54,N,N/A,N,N/A
Pendle Borough Council,Financial Services,Transport Related Expense,Diesel Oil,3202,FUELMATE LTD,A0090265, 01/05/2018,AAS0288187,56.30,N,N/A,N,N/A
Pendle Borough Council,Financial Services,Transport Related Expense,Diesel Oil,3202,FUELMATE LTD,A0090265, 22/05/2018,AAS0288771,63.01,N,N/A,N,N/A
Pendle Borough Council,Financial Services,Transport Related Expense,Diesel Oil,3202,FUELMATE LTD,A0090265, 15/05/2018,AAS0288770,64.12,N,N/A,N,N/A
Pendle Borough Council,Financial Services,Transport Related Expense,Diesel Oil,3202,FUELMATE LTD,A0090265, 15/05/2018,AAS0288770,70.45,N,N/A,N,N/A
Pendle Borough Council,Financial Services,Transport Related Expense,Diesel Oil,3202,FUELMATE LTD,A0090265, 22/05/2018,AAS0288771,71.73,N,N/A,N,N/A
Pendle Borough Council,Financial Services,Transport Related Expense,Diesel Oil,3202,FUELMATE LTD,A0090265, 22/05/2018,AAS0288771,71.77,N,N/A,N,N/A
Pendle Borough Council,Financial Services,Transport Related Expense,Diesel Oil,3202,FUELMATE LTD,A0090265, 29/05/2018,AAS0288772,73.68,N,N/A,N,N/A
Pendle Borough Council,Financial Services,Transport Related Expense,Diesel Oil,3202,FUELMATE LTD,A0090265, 15/05/2018,AAS0288770,93.77,N,N/A,N,N/A
Pendle Borough Council,Financial Services,Transport Related Expense,Diesel Oil,3202,FUELMATE LTD,A0090265, 15/05/2018,AAS0288770,112.27,N,N/A,N,N/A
Pendle Borough Council,Financial Services,Transport Related Expense,Diesel Oil,3202,FUELMATE LTD,A0090265, 22/05/2018,AAS0288771,180.55,N,N/A,N,N/A
Pendle Borough Council,Financial Services,Transport Related Expense,Diesel Oil,3202,FUELMATE LTD,A0090265, 08/05/2018,AAS0288189,186.44,N,N/A,N,N/A
Pendle Borough Council,Financial Services,Transport Related Expense,Diesel Oil,3202,FUELMATE LTD,A0090265, 01/05/2018,AAS0288187,255.21,N,N/A,N,N/A
Pendle Borough Council,Financial Services,Transport Related Expense,Diesel Oil,3202,FUELMATE LTD,A0090265, 08/05/2018,AAS0288189,141.87,N,N/A,N,N/A
Pendle Borough Council,Financial Services,Transport Related Expense,Diesel Oil,3202,FUELMATE LTD,A0090265, 29/05/2018,AAS0288772,160.33,N,N/A,N,N/A
Pendle Borough Council,Financial Services,Transport Related Expense,Diesel Oil,3202,FUELMATE LTD,A0090265, 15/05/2018,AAS0288770,179.42,N,N/A,N,N/A
Pendle Borough Council,Financial Services,Transport Related Expense,Diesel Oil,3202,FUELMATE LTD,A0090265, 01/05/2018,AAS0288187,282.18,N,N/A,N,N/A
Pendle Borough Council,Financial Services,Transport Related Expense,Diesel Oil,3202,FUELMATE LTD,A0090265, 22/05/2018,AAS0288771,293.02,N,N/A,N,N/A
Pendle Borough Council,Financial Services,Transport Related Expense,Diesel Oil,3202,FUELMATE LTD,A0090265, 15/05/2018,AAS0288770,66.83,N,N/A,N,N/A
Pendle Borough Council,Financial Services,Transport Related Expense,Diesel Oil,3202,FUELMATE LTD,A0090265, 22/05/2018,AAS0288771,129.70,N,N/A,N,N/A
Pendle Borough Council,Financial Services,Transport Related Expense,Diesel Oil,3202,FUELMATE LTD,A0090265, 08/05/2018,AAS0288189,161.42,N,N/A,N,N/A
Pendle Borough Council,Financial Services,Transport Related Expense,Diesel Oil,3202,FUELMATE LTD,A0090265, 01/05/2018,AAS0288187,198.07,N,N/A,N,N/A
Pendle Borough Council,Financial Services,Transport Related Expense,Diesel Oil,3202,FUELMATE LTD,A0090265, 29/05/2018,AAS0288772,232.92,N,N/A,N,N/A
Pendle Borough Council,Financial Services,Transport Related Expense,Diesel Oil,3202,FUELMATE LTD,A0090265, 01/05/2018,AAS0288187,72.87,N,N/A,N,N/A
Pendle Borough Council,Financial Services,Transport Related Expense,Diesel Oil,3202,FUELMATE LTD,A0090265, 08/05/2018,AAS0288189,183.56,N,N/A,N,N/A
Pendle Borough Council,Financial Services,Transport Related Expense,Diesel Oil,3202,FUELMATE LTD,A0090265, 15/05/2018,AAS0288770,266.97,N,N/A,N,N/A
Pendle Borough Council,Financial Services,Transport Related Expense,Diesel Oil,3202,FUELMATE LTD,A0090265, 29/05/2018,AAS0288772,306.28,N,N/A,N,N/A
Pendle Borough Council,Financial Services,Transport Related Expense,Diesel Oil,3202,FUELMATE LTD,A0090265, 29/05/2018,AAS0288772,54.38,N,N/A,N,N/A
Pendle Borough Council,Financial Services,Transport Related Expense,Diesel Oil,3202,FUELMATE LTD,A0090265, 22/05/2018,AAS0288771,59.53,N,N/A,N,N/A
Pendle Borough Council,Financial Services,Transport Related Expense,Diesel Oil,3202,FUELMATE LTD,A0090265, 08/05/2018,AAS0288189,60.27,N,N/A,N,N/A
Pendle Borough Council,Financial Services,Transport Related Expense,Diesel Oil,3202,FUELMATE LTD,A0090265, 01/05/2018,AAS0288187,61.55,N,N/A,N,N/A
Pendle Borough Council,Financial Services,Transport Related Expense,Diesel Oil,3202,FUELMATE LTD,A0090265, 15/05/2018,AAS0288770,122.76,N,N/A,N,N/A
Pendle Borough Council,Financial Services,Transport Related Expense,Diesel Oil,3202,FUELMATE LTD,A0090265, 22/05/2018,AAS0288771,102.73,N,N/A,N,N/A
Pendle Borough Council,Financial Services,Transport Related Expense,Diesel Oil,3202,FUELMATE LTD,A0090265, 08/05/2018,AAS0288189,217.37,N,N/A,N,N/A
Pendle Borough Council,Financial Services,Transport Related Expense,Diesel Oil,3202,FUELMATE LTD,A0090265, 01/05/2018,AAS0288187,218.62,N,N/A,N,N/A
Pendle Borough Council,Financial Services,Transport Related Expense,Diesel Oil,3202,FUELMATE LTD,A0090265, 15/05/2018,AAS0288770,254.22,N,N/A,N,N/A
Pendle Borough Council,Financial Services,Transport Related Expense,Diesel Oil,3202,FUELMATE LTD,A0090265, 22/05/2018,AAS0288771,178.49,N,N/A,N,N/A
Pendle Borough Council,Financial Services,Transport Related Expense,Diesel Oil,3202,FUELMATE LTD,A0090265, 01/05/2018,AAS0288187,198.31,N,N/A,N,N/A
Pendle Borough Council,Financial Services,Transport Related Expense,Diesel Oil,3202,FUELMATE LTD,A0090265, 08/05/2018,AAS0288189,230.43,N,N/A,N,N/A
Pendle Borough Council,Financial Services,Transport Related Expense,Diesel Oil,3202,FUELMATE LTD,A0090265, 15/05/2018,AAS0288770,239.06,N,N/A,N,N/A
Pendle Borough Council,Financial Services,Transport Related Expense,Diesel Oil,3202,FUELMATE LTD,A0090265, 29/05/2018,AAS0288772,514.07,N,N/A,N,N/A
Pendle Borough Council,Financial Services,Transport Related Expense,Diesel Oil,3202,FUELMATE LTD,A0090265, 08/05/2018,AAS0288189,163.46,N,N/A,N,N/A
Pendle Borough Council,Financial Services,Transport Related Expense,Diesel Oil,3202,FUELMATE LTD,A0090265, 15/05/2018,AAS0288770,197.59,N,N/A,N,N/A
Pendle Borough Council,Financial Services,Transport Related Expense,Diesel Oil,3202,FUELMATE LTD,A0090265, 01/05/2018,AAS0288187,222.58,N,N/A,N,N/A
Pendle Borough Council,Financial Services,Transport Related Expense,Diesel Oil,3202,FUELMATE LTD,A0090265, 29/05/2018,AAS0288772,237.57,N,N/A,N,N/A
Pendle Borough Council,Financial Services,Transport Related Expense,Diesel Oil,3202,FUELMATE LTD,A0090265, 22/05/2018,AAS0288771,239.49,N,N/A,N,N/A
Pendle Borough Council,Financial Services,Transport Related Expense,Diesel Oil,3202,FUELMATE LTD,A0090265, 15/05/2018,AAS0288770,29.97,N,N/A,N,N/A
Pendle Borough Council,Financial Services,Transport Related Expense,Diesel Oil,3202,FUELMATE LTD,A0090265, 22/05/2018,AAS0288771,33.84,N,N/A,N,N/A
Pendle Borough Council,Financial Services,Transport Related Expense,Diesel Oil,3202,FUELMATE LTD,A0090265, 29/05/2018,AAS0288772,45.28,N,N/A,N,N/A
Pendle Borough Council,Financial Services,Transport Related Expense,Diesel Oil,3202,FUELMATE LTD,A0090265, 22/05/2018,AAS0288771,78.67,N,N/A,N,N/A
Pendle Borough Council,Financial Services,Transport Related Expense,Diesel Oil,3202,FUELMATE LTD,A0090265, 01/05/2018,AAS0288187,83.59,N,N/A,N,N/A
Pendle Borough Council,Financial Services,Transport Related Expense,Diesel Oil,3202,FUELMATE LTD,A0090265, 15/05/2018,AAS0288770,92.96,N,N/A,N,N/A
Pendle Borough Council,Financial Services,Transport Related Expense,Diesel Oil,3202,FUELMATE LTD,A0090265, 29/05/2018,AAS0288772,96.11,N,N/A,N,N/A
Pendle Borough Council,Financial Services,Transport Related Expense,Diesel Oil,3202,FUELMATE LTD,A0090265, 08/05/2018,AAS0288189,99.13,N,N/A,N,N/A
Pendle Borough Council,Financial Services,Transport Related Expense,Diesel Oil,3202,FUELMATE LTD,A0090265, 29/05/2018,AAS0288772,102.52,N,N/A,N,N/A
Pendle Borough Council,Financial Services,Transport Related Expense,Diesel Oil,3202,FUELMATE LTD,A0090265, 15/05/2018,AAS0288770,121.56,N,N/A,N,N/A
Pendle Borough Council,Financial Services,Transport Related Expense,Diesel Oil,3202,FUELMATE LTD,A0090265, 01/05/2018,AAS0288187,124.36,N,N/A,N,N/A
Pendle Borough Council,Financial Services,Transport Related Expense,Diesel Oil,3202,FUELMATE LTD,A0090265, 29/05/2018,AAS0288772,153.52,N,N/A,N,N/A
Pendle Borough Council,Financial Services,Transport Related Expense,Diesel Oil,3202,FUELMATE LTD,A0090265, 08/05/2018,AAS0288189,156.71,N,N/A,N,N/A
Pendle Borough Council,Financial Services,Transport Related Expense,Diesel Oil,3202,FUELMATE LTD,A0090265, 22/05/2018,AAS0288771,163.35,N,N/A,N,N/A
Pendle Borough Council,Financial Services,Transport Related Expense,Diesel Oil,3202,FUELMATE LTD,A0090265, 15/05/2018,AAS0288770,53.18,N,N/A,N,N/A
Pendle Borough Council,Financial Services,Transport Related Expense,Diesel Oil,3202,FUELMATE LTD,A0090265, 22/05/2018,AAS0288771,69.37,N,N/A,N,N/A
Pendle Borough Council,Financial Services,Transport Related Expense,Diesel Oil,3202,FUELMATE LTD,A0090265, 01/05/2018,AAS0288187,102.41,N,N/A,N,N/A
Pendle Borough Council,Financial Services,Transport Related Expense,Diesel Oil,3202,FUELMATE LTD,A0090265, 08/05/2018,AAS0288189,162.19,N,N/A,N,N/A
Pendle Borough Council,Financial Services,Transport Related Expense,Diesel Oil,3202,FUELMATE LTD,A0090265, 15/05/2018,AAS0288770,107.03,N,N/A,N,N/A
Pendle Borough Council,Financial Services,Transport Related Expense,Diesel Oil,3202,FUELMATE LTD,A0090265, 22/05/2018,AAS0288771,123.19,N,N/A,N,N/A
Pendle Borough Council,Financial Services,Transport Related Expense,Diesel Oil,3202,FUELMATE LTD,A0090265, 08/05/2018,AAS0288189,136.70,N,N/A,N,N/A
Pendle Borough Council,Financial Services,Transport Related Expense,Diesel Oil,3202,FUELMATE LTD,A0090265, 01/05/2018,AAS0288187,144.85,N,N/A,N,N/A
Pendle Borough Council,Financial Services,Transport Related Expense,Diesel Oil,3202,FUELMATE LTD,A0090265, 29/05/2018,AAS0288772,100.47,N,N/A,N,N/A
Pendle Borough Council,Financial Services,Transport Related Expense,Diesel Oil,3202,FUELMATE LTD,A0090265, 01/05/2018,AAS0288187,128.53,N,N/A,N,N/A
Pendle Borough Council,Financial Services,Transport Related Expense,Diesel Oil,3202,FUELMATE LTD,A0090265, 15/05/2018,AAS0288770,134.54,N,N/A,N,N/A
Pendle Borough Council,Financial Services,Transport Related Expense,Diesel Oil,3202,FUELMATE LTD,A0090265, 22/05/2018,AAS0288771,157.21,N,N/A,N,N/A
Pendle Borough Council,Financial Services,Transport Related Expense,Diesel Oil,3202,FUELMATE LTD,A0090265, 08/05/2018,AAS0288189,172.77,N,N/A,N,N/A
Pendle Borough Council,Financial Services,Transport Related Expense,Diesel Oil,3202,FUELMATE LTD,A0090265, 29/05/2018,AAS0288772,153.81,N,N/A,N,N/A
Pendle Borough Council,Financial Services,Transport Related Expense,Diesel Oil,3202,FUELMATE LTD,A0090265, 22/05/2018,AAS0288771,168.44,N,N/A,N,N/A
Pendle Borough Council,Financial Services,Transport Related Expense,Diesel Oil,3202,FUELMATE LTD,A0090265, 08/05/2018,AAS0288189,176.86,N,N/A,N,N/A
Pendle Borough Council,Financial Services,Transport Related Expense,Diesel Oil,3202,FUELMATE LTD,A0090265, 15/05/2018,AAS0288770,185.60,N,N/A,N,N/A
Pendle Borough Council,Financial Services,Transport Related Expense,Diesel Oil,3202,FUELMATE LTD,A0090265, 01/05/2018,AAS0288187,189.53,N,N/A,N,N/A
Pendle Borough Council,Financial Services,Transport Related Expense,Diesel Oil,3202,FUELMATE LTD,A0090265, 08/05/2018,AAS0288189,49.63,N,N/A,N,N/A
Pendle Borough Council,Financial Services,Transport Related Expense,Diesel Oil,3202,FUELMATE LTD,A0090265, 29/05/2018,AAS0288772,57.09,N,N/A,N,N/A
Pendle Borough Council,Financial Services,Transport Related Expense,Diesel Oil,3202,FUELMATE LTD,A0090265, 22/05/2018,AAS0288771,71.73,N,N/A,N,N/A
Pendle Borough Council,Financial Services,Transport Related Expense,Diesel Oil,3202,FUELMATE LTD,A0090265, 08/05/2018,AAS0288189,56.50,N,N/A,N,N/A
Pendle Borough Council,Financial Services,Transport Related Expense,Diesel Oil,3202,FUELMATE LTD,A0090265, 29/05/2018,AAS0288772,57.04,N,N/A,N,N/A
Pendle Borough Council,Financial Services,Transport Related Expense,Diesel Oil,3202,FUELMATE LTD,A0090265, 22/05/2018,AAS0288771,44.54,N,N/A,N,N/A
Pendle Borough Council,Financial Services,Transport Related Expense,Diesel Oil,3202,FUELMATE LTD,A0090265, 08/05/2018,AAS0288189,45.29,N,N/A,N,N/A
Pendle Borough Council,Financial Services,Transport Related Expense,Diesel Oil,3202,FUELMATE LTD,A0090265, 01/05/2018,AAS0288187,46.41,N,N/A,N,N/A
Pendle Borough Council,Financial Services,Transport Related Expense,Diesel Oil,3202,FUELMATE LTD,A0090265, 22/05/2018,AAS0288771,49.05,N,N/A,N,N/A
Pendle Borough Council,Financial Services,Transport Related Expense,Diesel Oil,3202,FUELMATE LTD,A0090265, 22/05/2018,AAS0288771,27.15,N,N/A,N,N/A
Pendle Borough Council,Financial Services,Transport Related Expense,Diesel Oil,3202,FUELMATE LTD,A0090265, 15/05/2018,AAS0288770,30.74,N,N/A,N,N/A
Pendle Borough Council,Financial Services,Transport Related Expense,Diesel Oil,3202,FUELMATE LTD,A0090265, 15/05/2018,AAS0288770,64.23,N,N/A,N,N/A
Pendle Borough Council,Financial Services,Transport Related Expense,Diesel Oil,3202,FUELMATE LTD,A0090265, 08/05/2018,AAS0288189,67.17,N,N/A,N,N/A
Pendle Borough Council,Financial Services,Transport Related Expense,Diesel Oil,3202,FUELMATE LTD,A0090265, 01/05/2018,AAS0288187,69.65,N,N/A,N,N/A
Pendle Borough Council,Financial Services,Transport Related Expense,Diesel Oil,3202,FUELMATE LTD,A0090265, 29/05/2018,AAS0288772,73.14,N,N/A,N,N/A
Pendle Borough Council,Financial Services,Transport Related Expense,Diesel Oil,3202,FUELMATE LTD,A0090265, 01/05/2018,AAS0288187,33.76,N,N/A,N,N/A
Pendle Borough Council,Financial Services,Transport Related Expense,Diesel Oil,3202,FUELMATE LTD,A0090265, 22/05/2018,AAS0288771,43.74,N,N/A,N,N/A
Pendle Borough Council,Financial Services,Transport Related Expense,Diesel Oil,3202,FUELMATE LTD,A0090265, 15/05/2018,AAS0288770,68.54,N,N/A,N,N/A
Pendle Borough Council,Financial Services,Transport Related Expense,Diesel Oil,3202,FUELMATE LTD,A0090265, 29/05/2018,AAS0288772,99.30,N,N/A,N,N/A
Pendle Borough Council,Financial Services,Transport Related Expense,Diesel Oil,3202,FUELMATE LTD,A0090265, 08/05/2018,AAS0288189,68.12,N,N/A,N,N/A
Pendle Borough Council,Financial Services,Transport Related Expense,Diesel Oil,3202,FUELMATE LTD,A0090265, 01/05/2018,AAS0288187,70.27,N,N/A,N,N/A
Pendle Borough Council,Financial Services,Transport Related Expense,Diesel Oil,3202,FUELMATE LTD,A0090265, 15/05/2018,AAS0288770,80.86,N,N/A,N,N/A
Pendle Borough Council,Financial Services,Transport Related Expense,Diesel Oil,3202,FUELMATE LTD,A0090265, 22/05/2018,AAS0288771,125.31,N,N/A,N,N/A
Pendle Borough Council,Financial Services,Transport Related Expense,Diesel Oil,3202,FUELMATE LTD,A0090265, 15/05/2018,AAS0288770,44.49,N,N/A,N,N/A
Pendle Borough Council,Financial Services,Transport Related Expense,Diesel Oil,3202,FUELMATE LTD,A0090265, 01/05/2018,AAS0288187,51.53,N,N/A,N,N/A
Pendle Borough Council,Financial Services,Transport Related Expense,Diesel Oil,3202,FUELMATE LTD,A0090265, 08/05/2018,AAS0288189,53.44,N,N/A,N,N/A
Pendle Borough Council,Financial Services,Transport Related Expense,Diesel Oil,3202,FUELMATE LTD,A0090265, 22/05/2018,AAS0288771,54.55,N,N/A,N,N/A
Pendle Borough Council,Financial Services,Transport Related Expense,Diesel Oil,3202,FUELMATE LTD,A0090265, 29/05/2018,AAS0288772,106.69,N,N/A,N,N/A
Pendle Borough Council,Financial Services,Transport Related Expense,Diesel Oil,3202,FUELMATE LTD,A0090265, 15/05/2018,AAS0288770,57.90,N,N/A,N,N/A
Pendle Borough Council,Financial Services,Transport Related Expense,Diesel Oil,3202,FUELMATE LTD,A0090265, 29/05/2018,AAS0288772,61.26,N,N/A,N,N/A
Pendle Borough Council,Financial Services,Transport Related Expense,Diesel Oil,3202,FUELMATE LTD,A0090265, 08/05/2018,AAS0288189,111.29,N,N/A,N,N/A
Pendle Borough Council,Financial Services,Transport Related Expense,Diesel Oil,3202,FUELMATE LTD,A0090265, 01/05/2018,AAS0288187,62.64,N,N/A,N,N/A
Pendle Borough Council,Financial Services,Transport Related Expense,Diesel Oil,3202,FUELMATE LTD,A0090265, 08/05/2018,AAS0288189,68.71,N,N/A,N,N/A
Pendle Borough Council,Financial Services,Transport Related Expense,Diesel Oil,3202,FUELMATE LTD,A0090265, 15/05/2018,AAS0288770,74.65,N,N/A,N,N/A
Pendle Borough Council,Financial Services,Transport Related Expense,Diesel Oil,3202,FUELMATE LTD,A0090265, 22/05/2018,AAS0288771,75.37,N,N/A,N,N/A
Pendle Borough Council,Financial Services,Transport Related Expense,Diesel Oil,3202,FUELMATE LTD,A0090265, 01/05/2018,AAS0288187,58.92,N,N/A,N,N/A
Pendle Borough Council,Financial Services,Transport Related Expense,Diesel Oil,3202,FUELMATE LTD,A0090265, 01/05/2018,AAS0288187,27.30,N,N/A,N,N/A
Pendle Borough Council,Financial Services,Transport Related Expense,Diesel Oil,3202,FUELMATE LTD,A0090265, 22/05/2018,AAS0288771,38.44,N,N/A,N,N/A
Pendle Borough Council,Financial Services,Transport Related Expense,Diesel Oil,3202,FUELMATE LTD,A0090265, 29/05/2018,AAS0288772,47.83,N,N/A,N,N/A
Pendle Borough Council,Financial Services,Transport Related Expense,Diesel Oil,3202,FUELMATE LTD,A0090265, 08/05/2018,AAS0288189,38.84,N,N/A,N,N/A
Pendle Borough Council,Financial Services,Transport Related Expense,Diesel Oil,3202,FUELMATE LTD,A0090265, 01/05/2018,AAS0288187,48.39,N,N/A,N,N/A
Pendle Borough Council,Financial Services,Transport Related Expense,Diesel Oil,3202,FUELMATE LTD,A0090265, 29/05/2018,AAS0288772,50.24,N,N/A,N,N/A
Pendle Borough Council,Financial Services,Transport Related Expense,Diesel Oil,3202,FUELMATE LTD,A0090265, 22/05/2018,AAS0288771,54.30,N,N/A,N,N/A
Pendle Borough Council,Financial Services,Transport Related Expense,Diesel Oil,3202,FUELMATE LTD,A0090265, 22/05/2018,AAS0288771,25.40,N,N/A,N,N/A
Pendle Borough Council,Financial Services,Transport Related Expense,Diesel Oil,3202,FUELMATE LTD,A0090265, 22/05/2018,AAS0288771,48.34,N,N/A,N,N/A
Pendle Borough Council,Financial Services,Transport Related Expense,Diesel Oil,3202,FUELMATE LTD,A0090265, 15/05/2018,AAS0288770,52.26,N,N/A,N,N/A
Pendle Borough Council,Financial Services,Transport Related Expense,Diesel Oil,3202,FUELMATE LTD,A0090265, 22/05/2018,AAS0288771,41.30,N,N/A,N,N/A
Pendle Borough Council,Financial Services,Transport Related Expense,Diesel Oil,3202,FUELMATE LTD,A0090265, 01/05/2018,AAS0288187,75.05,N,N/A,N,N/A
Pendle Borough Council,Financial Services,Transport Related Expense,Diesel Oil,3202,FUELMATE LTD,A0090265, 15/05/2018,AAS0288770,76.56,N,N/A,N,N/A
Pendle Borough Council,Financial Services,Transport Related Expense,Diesel Oil,3202,FUELMATE LTD,A0090265, 29/05/2018,AAS0288772,77.67,N,N/A,N,N/A
Pendle Borough Council,Financial Services,Transport Related Expense,Diesel Oil,3202,FUELMATE LTD,A0090265, 08/05/2018,AAS0288189,74.84,N,N/A,N,N/A
Pendle Borough Council,Financial Services,Transport Related Expense,Diesel Oil,3202,FUELMATE LTD,A0090265, 29/05/2018,AAS0288772,76.94,N,N/A,N,N/A
Pendle Borough Council,Financial Services,Transport Related Expense,Diesel Oil,3202,FUELMATE LTD,A0090265, 08/05/2018,AAS0288189,56.51,N,N/A,N,N/A
Pendle Borough Council,Financial Services,Transport Related Expense,Diesel Oil,3202,FUELMATE LTD,A0090265, 29/05/2018,AAS0288772,58.29,N,N/A,N,N/A
Pendle Borough Council,Financial Services,Transport Related Expense,Diesel Oil,3202,FUELMATE LTD,A0090265, 22/05/2018,AAS0288771,58.68,N,N/A,N,N/A
Pendle Borough Council,Financial Services,Transport Related Expense,Diesel Oil,3202,FUELMATE LTD,A0090265, 01/05/2018,AAS0288187,60.57,N,N/A,N,N/A
Pendle Borough Council,Financial Services,Transport Related Expense,Diesel Oil,3202,FUELMATE LTD,A0090265, 08/05/2018,AAS0288189,49.30,N,N/A,N,N/A
Pendle Borough Council,Financial Services,Transport Related Expense,Diesel Oil,3202,FUELMATE LTD,A0090265, 22/05/2018,AAS0288771,50.32,N,N/A,N,N/A
Pendle Borough Council,Financial Services,Transport Related Expense,Diesel Oil,3202,FUELMATE LTD,A0090265, 29/05/2018,AAS0288772,44.60,N,N/A,N,N/A
Pendle Borough Council,Financial Services,Transport Related Expense,Diesel Oil,3202,FUELMATE LTD,A0090265, 01/05/2018,AAS0288187,56.52,N,N/A,N,N/A
Pendle Borough Council,Financial Services,Transport Related Expense,Diesel Oil,3202,FUELMATE LTD,A0090265, 22/05/2018,AAS0288771,57.81,N,N/A,N,N/A
Pendle Borough Council,Financial Services,Transport Related Expense,Diesel Oil,3202,FUELMATE LTD,A0090265, 22/05/2018,AAS0288771,56.96,N,N/A,N,N/A
Pendle Borough Council,Financial Services,Transport Related Expense,Diesel Oil,3202,FUELMATE LTD,A0090265, 15/05/2018,AAS0288770,60.18,N,N/A,N,N/A
Pendle Borough Council,Financial Services,Transport Related Expense,Diesel Oil,3202,FUELMATE LTD,A0090265, 08/05/2018,AAS0288189,58.85,N,N/A,N,N/A
Pendle Borough Council,Financial Services,Transport Related Expense,Diesel Oil,3202,FUELMATE LTD,A0090265, 22/05/2018,AAS0288771,59.12,N,N/A,N,N/A
Pendle Borough Council,Financial Services,Transport Related Expense,Diesel Oil,3202,FUELMATE LTD,A0090265, 08/05/2018,AAS0288189,66.17,N,N/A,N,N/A
Pendle Borough Council,Financial Services,Transport Related Expense,Diesel Oil,3202,FUELMATE LTD,A0090265, 22/05/2018,AAS0288771,56.92,N,N/A,N,N/A
Pendle Borough Council,Financial Services,Transport Related Expense,Diesel Oil,3202,FUELMATE LTD,A0090265, 08/05/2018,AAS0288189,58.25,N,N/A,N,N/A
Pendle Borough Council,Financial Services,Transport Related Expense,Diesel Oil,3202,FUELMATE LTD,A0090265, 08/05/2018,AAS0288189,48.91,N,N/A,N,N/A
Pendle Borough Council,Financial Services,Transport Related Expense,Diesel Oil,3202,FUELMATE LTD,A0090265, 01/05/2018,AAS0288187,15.36,N,N/A,N,N/A
Pendle Borough Council,Financial Services,Transport Related Expense,Diesel Oil,3202,FUELMATE LTD,A0090265, 22/05/2018,AAS0288771,40.51,N,N/A,N,N/A
Pendle Borough Council,Financial Services,Transport Related Expense,Diesel Oil,3202,FUELMATE LTD,A0090265, 22/05/2018,AAS0288771,40.50,N,N/A,N,N/A
Pendle Borough Council,Financial Services,Transport Related Expense,Diesel Oil,3202,FUELMATE LTD,A0090265, 01/05/2018,AAS0288187,46.52,N,N/A,N,N/A
Pendle Borough Council,Financial Services,Transport Related Expense,Diesel Oil,3202,FUELMATE LTD,A0090265, 22/05/2018,AAS0288771,53.26,N,N/A,N,N/A
Pendle Borough Council,Financial Services,Transport Related Expense,Diesel Oil,3202,FUELMATE LTD,A0090265, 08/05/2018,AAS0288189,55.15,N,N/A,N,N/A
Pendle Borough Council,Financial Services,Transport Related Expense,Diesel Oil,3202,FUELMATE LTD,A0090265, 29/05/2018,AAS0288772,49.09,N,N/A,N,N/A
Pendle Borough Council,Financial Services,Transport Related Expense,Diesel Oil,3202,FUELMATE LTD,A0090265, 22/05/2018,AAS0288771,62.61,N,N/A,N,N/A
Pendle Borough Council,Financial Services,Transport Related Expense,Diesel Oil,3202,FUELMATE LTD,A0090265, 15/05/2018,AAS0288770,74.02,N,N/A,N,N/A
Pendle Borough Council,Planning & Building Control,,Other Income : Non-VATable,9303,REDACTED - PERESONAL DATA,A0090289, 31/05/2018,PBC0288470,66.50,N,N/A,N,N/A
Pendle Borough Council,Financial Services,Premises Related Expense,Rents,2301,REDACTED - PERESONAL DATA,A0090350, 03/05/2018,AAS0287896,150.00,N,N/A,N,N/A
Pendle Borough Council,Financial Services,,Precept Parish & T Council,303,BARNOLDSWICK TOWN COUNCIL,A0090352, 08/05/2018,AAS0288055,244000.00,N,N/A,N,N/A
Pendle Borough Council,Property Services,,Rents : Non-VATable,9304,BARNOLDSWICK TOWN COUNCIL,A0090352, 17/05/2018,EST0288260,312.05,N,N/A,N,N/A
Pendle Borough Council,Property Services,,Rents : Non-VATable,9304,BARNOLDSWICK TOWN COUNCIL,A0090352, 17/05/2018,EST0288260,204.25,N,N/A,N,N/A
Pendle Borough Council,Property Services,,Rents : Non-VATable,9304,BARNOLDSWICK TOWN COUNCIL,A0090352, 17/05/2018,EST0288260,371.35,N,N/A,N,N/A
Pendle Borough Council,Engineering & Special Projects,Premises Related Expense,Grounds : R & M : Day to Day : Routine,2101,GREEN CLEAN RESTORATION,A0090368, 17/05/2018,HED0288252,2065.00,N,N/A,N,N/A
Pendle Borough Council,Financial Services,,Precept Parish & T Council,303,SALTERFORTH PARISH COUNCIL,A0090441, 08/05/2018,AAS0288072,14000.00,N,N/A,N,N/A
Pendle Borough Council,Engineering & Special Projects,Supplies and Services,Consultants Fees,4401,BETTS GEO ENVIRONMENTAL LIMITED,A0090455, 17/05/2018,HED0288227,1685.00,N,N/A,N,N/A
Pendle Borough Council,Financial Services,,Precept Parish & T Council,303,HIGHAM WITH WEST CLOSE BOOTH PC,A0090493, 08/05/2018,AAS0288063,14930.14,N,N/A,N,N/A
Pendle Borough Council,Democratic & Legal Services,Supplies and Services,Members Conference Expenses,4605,REDACTED - PERESONAL DATA,A0090630, 03/05/2018,DAL0287765,167.50,N,N/A,N,N/A
Pendle Borough Council,Revenues Services,Supplies and Services,Consultants Fees,4401,PS&P LTD,A0090720, 17/05/2018,TRE0288266,22.48,N,N/A,N,N/A
Pendle Borough Council,Revenues Services,Supplies and Services,Consultants Fees,4401,PS&P LTD,A0090720, 17/05/2018,TRE0288264,79.32,N,N/A,N,N/A
Pendle Borough Council,Revenues Services,Supplies and Services,Consultants Fees,4401,PS&P LTD,A0090720, 17/05/2018,TRE0288265,330.41,N,N/A,N,N/A
Pendle Borough Council,Operational Services,Agency Staff,Emp : Agency Wages,1004,M65 RECRUITMENT,A0090760, 17/05/2018,OPS0288197,179.90,N,N/A,N,N/A
Pendle Borough Council,Operational Services,Agency Staff,Emp : Agency Wages,1004,M65 RECRUITMENT,A0090760, 10/05/2018,OPS0288025,226.16,N,N/A,N,N/A
Pendle Borough Council,Operational Services,Agency Staff,Emp : Agency Wages,1004,M65 RECRUITMENT,A0090760, 10/05/2018,OPS0288025,77.10,N,N/A,N,N/A
Pendle Borough Council,Operational Services,Agency Staff,Emp : Agency Wages,1004,M65 RECRUITMENT,A0090760, 10/05/2018,OPS0288025,77.10,N,N/A,N,N/A
Pendle Borough Council,Operational Services,Agency Staff,Emp : Agency Wages,1004,M65 RECRUITMENT,A0090760, 17/05/2018,OPS0288197,327.68,N,N/A,N,N/A
Pendle Borough Council,Engineering & Special Projects,Capital Costs,Capital : Payments,CD14,PWCGBA,A0090796, 03/05/2018,HED0287763,500.00,N,N/A,N,N/A
Pendle Borough Council,Financial Services,Premises Related Expense,Gas,2202,GAZPROM ENERGY,A0090838, 24/05/2018,AAS0288362,158.10,N,N/A,N,N/A
Pendle Borough Council,Financial Services,Premises Related Expense,Gas,2202,GAZPROM ENERGY,A0090838, 24/05/2018,AAS0288361,159.17,N,N/A,N,N/A
Pendle Borough Council,Financial Services,Premises Related Expense,Gas,2202,GAZPROM ENERGY,A0090838, 24/05/2018,AAS0288363,190.35,N,N/A,N,N/A
Pendle Borough Council,Financial Services,Premises Related Expense,Gas,2202,GAZPROM ENERGY,A0090838, 24/05/2018,AAS0288360,192.91,N,N/A,N,N/A
Pendle Borough Council,Financial Services,Premises Related Expense,Gas,2202,GAZPROM ENERGY,A0090838, 24/05/2018,AAS0288364,241.08,N,N/A,N,N/A
Pendle Borough Council,Financial Services,Premises Related Expense,Gas,2202,GAZPROM ENERGY,A0090838, 24/05/2018,AAS0288365,316.05,N,N/A,N,N/A
Pendle Borough Council,Financial Services,Premises Related Expense,Gas,2202,GAZPROM ENERGY,A0090838, 24/05/2018,AAS0288366,375.96,N,N/A,N,N/A
Pendle Borough Council,Financial Services,Premises Related Expense,Gas,2202,GAZPROM ENERGY,A0090838, 24/05/2018,AAS0288368,388.77,N,N/A,N,N/A
Pendle Borough Council,Financial Services,Premises Related Expense,Gas,2202,GAZPROM ENERGY,A0090838, 24/05/2018,AAS0288367,402.82,N,N/A,N,N/A
Pendle Borough Council,Financial Services,Premises Related Expense,Gas,2202,GAZPROM ENERGY,A0090838, 24/05/2018,AAS0288359,556.60,N,N/A,N,N/A
Pendle Borough Council,Financial Services,Premises Related Expense,Gas,2202,GAZPROM ENERGY,A0090838, 24/05/2018,AAS0288358,3077.86,N,N/A,N,N/A
Pendle Borough Council,Parks & Recreation Services,Premises Related Expense,Grounds : R & M : Day to Day : Routine,2101,TUVISIO,A0090842, 10/05/2018,PCO0288043,595.80,N,N/A,N,N/A
Pendle Borough Council,Economic Development & Tourism,Supplies and Services,Other Expenses,4705,KOLEK CONSULTING LIMITED,A0090905, 17/05/2018,REG0288141,2360.00,N,N/A,N,N/A
Pendle Borough Council,Engineering & Special Projects,Capital Costs,Capital : Payments,CD14,SITE SURVEYING SERVICES LIMITED,A0090952, 17/05/2018,HED0288218,700.00,N,N/A,N,N/A
Pendle Borough Council,Financial Services,Premises Related Expense,Gas,2202,ORSTED SALES (UK) LIMITED,A0090977, 21/05/2018,AAS0288631,21.50,N,N/A,N,N/A
Pendle Borough Council,Financial Services,Premises Related Expense,Gas,2202,ORSTED SALES (UK) LIMITED,A0090977, 21/05/2018,AAS0288632,42.75,N,N/A,N,N/A
Pendle Borough Council,Financial Services,Premises Related Expense,Gas,2202,ORSTED SALES (UK) LIMITED,A0090977, 21/05/2018,AAS0288642,153.92,N,N/A,N,N/A
Pendle Borough Council,Financial Services,Premises Related Expense,Gas,2202,ORSTED SALES (UK) LIMITED,A0090977, 30/05/2018,AAS0288649,142.01,N,N/A,N,N/A
Pendle Borough Council,Financial Services,Premises Related Expense,Gas,2202,ORSTED SALES (UK) LIMITED,A0090977, 17/05/2018,AAS0288648,210.09,N,N/A,N,N/A
Pendle Borough Council,Financial Services,Premises Related Expense,Gas,2202,ORSTED SALES (UK) LIMITED,A0090977, 21/05/2018,AAS0288645,145.53,N,N/A,N,N/A
Pendle Borough Council,Financial Services,Premises Related Expense,Gas,2202,ORSTED SALES (UK) LIMITED,A0090977, 21/05/2018,AAS0288640,243.36,N,N/A,N,N/A
Pendle Borough Council,Financial Services,Premises Related Expense,Gas,2202,ORSTED SALES (UK) LIMITED,A0090977, 21/05/2018,AAS0288641,206.71,N,N/A,N,N/A
Pendle Borough Council,Financial Services,Premises Related Expense,Gas,2202,ORSTED SALES (UK) LIMITED,A0090977, 21/05/2018,AAS0288646,65.72,N,N/A,N,N/A
Pendle Borough Council,Financial Services,Premises Related Expense,Gas,2202,ORSTED SALES (UK) LIMITED,A0090977, 21/05/2018,AAS0288628,174.57,N,N/A,N,N/A
Pendle Borough Council,Financial Services,Premises Related Expense,Gas,2202,ORSTED SALES (UK) LIMITED,A0090977, 21/05/2018,AAS0288633,50.77,N,N/A,N,N/A
Pendle Borough Council,Financial Services,Premises Related Expense,Gas,2202,ORSTED SALES (UK) LIMITED,A0090977, 21/05/2018,AAS0288630,89.47,N,N/A,N,N/A
Pendle Borough Council,Financial Services,Premises Related Expense,Gas,2202,ORSTED SALES (UK) LIMITED,A0090977, 21/05/2018,AAS0288629,93.82,N,N/A,N,N/A
Pendle Borough Council,Financial Services,Premises Related Expense,Gas,2202,ORSTED SALES (UK) LIMITED,A0090977, 21/05/2018,AAS0288636,256.15,N,N/A,N,N/A
Pendle Borough Council,Financial Services,Premises Related Expense,Gas,2202,ORSTED SALES (UK) LIMITED,A0090977, 21/05/2018,AAS0288637,58.55,N,N/A,N,N/A
Pendle Borough Council,Information Services,Capital Costs,Capital : Payments,CD14,CHESS ICT BURNLEY LIMITED,A0091033, 24/05/2018,ITS0288343,175.48,N,N/A,N,N/A
Pendle Borough Council,Information Services,Capital Costs,Capital : Payments,CD14,CHESS ICT BURNLEY LIMITED,A0091033, 24/05/2018,ITS0288343,929.27,N,N/A,N,N/A
Pendle Borough Council,Engineering & Special Projects,Capital Costs,Capital : Payments,CD14,DIRTWORKS BMX,A0091056, 17/05/2018,HED0288213,5000.00,N,N/A,N,N/A
Pendle Borough Council,Engineering & Special Projects,Capital Costs,Capital : Payments,CD14,DIRTWORKS BMX,A0091056, 17/05/2018,HED0288213,22033.00,N,N/A,N,N/A
Pendle Borough Council,Parks & Recreation Services,Transport Related Expense,Hire of Plant,3502,EXPRESS INSTRUMENT HIRE LIMITED,A0091113, 31/05/2018,PCO0288538,16.00,N,N/A,N,N/A
Pendle Borough Council,Parks & Recreation Services,Transport Related Expense,Hire of Plant,3502,EXPRESS INSTRUMENT HIRE LIMITED,A0091113, 31/05/2018,PCO0288460,195.00,N,N/A,N,N/A
Pendle Borough Council,Parks & Recreation Services,Transport Related Expense,Hire of Plant,3502,EXPRESS INSTRUMENT HIRE LIMITED,A0091113, 17/05/2018,PCO0288167,211.00,N,N/A,N,N/A
Pendle Borough Council,Financial Services,Premises Related Expense,Rents,2301,BARNOLDSWICK GOSPEL MISSION,A0091132, 03/05/2018,AAS0287879,100.00,N,N/A,N,N/A
Pendle Borough Council,Human Resources,Indirect Employee Expenses,Emp : Medical Expenses,1236,HEALTH ASSURED LIMITED,A0091143, 10/05/2018,PER0288101,3365.00,N,N/A,N,N/A
Pendle Borough Council,Operational Services,Premises Related Expense,Bldgs : R & M : Day To Day,2001,LODG-IC LIMITED,A0091148, 24/05/2018,OPS0288412,1500.00,N,N/A,N,N/A
Pendle Borough Council,Housing Regeneration Services,Supplies and Services,"Monitoring, Console etc",4510,PROGRESS HOUSING ASSOCIATION LIMITED,A0091149, 24/05/2018,HMR0288396,234.00,N,N/A,N,N/A
Pendle Borough Council,Environmental Health Services,Premises Related Expense,Bldgs : R & M : Abnormal,2002,D Y BUILDING SERVICES,A0091159, 17/05/2018,ENV0288221,120.00,N,N/A,N,N/A
Pendle Borough Council,Financial Services,,Precept Parish & T Council,303,BRIERFIELD TOWN COUNCIL - PRECEPTS ONLY,A0091165, 08/05/2018,AAS0288058,140000.00,N,N/A,N,N/A
Pendle Borough Council,Democratic & Legal Services,Supplies and Services,EFM : Office and computer equipment,4002,RESTORE DATASHRED,A0091201, 17/05/2018,DAL0288240,158.25,N,N/A,N,N/A
Pendle Borough Council,Engineering & Special Projects,Capital Costs,Capital : Payments,CD14,COLNE IN BLOOM,A0091202, 03/05/2018,HED0288007,1000.00,N,N/A,N,N/A
Pendle Borough Council,Housing Regeneration Services,Capital Costs,Capital : Payments,CD14,COLNE IN BLOOM,A0091202, 10/05/2018,HMR0288086,1000.00,N,N/A,N,N/A
Pendle Borough Council,Housing Regeneration Services,Capital Costs,Capital : Payments,CD14,FIREFLY ENERGI LIMITED,A0091212, 17/05/2018,HMR0288238,1324.05,N,N/A,N,N/A
Pendle Borough Council,Housing Regeneration Services,Capital Costs,Capital : Payments,CD14,FIREFLY ENERGI LIMITED,A0091212, 03/05/2018,HMR0287930,2597.70,N,N/A,N,N/A
Pendle Borough Council,Economic Development & Tourism,Supplies and Services,Grants/Contributions,4739,EUROPA,A0091221, 17/05/2018,REG0288140,2000.00,N,N/A,N,N/A
Pendle Borough Council,Planning & Building Control,Supplies and Services,Seminars etc All Costs,4601,CHARLOTTE PINCH,A0091236, 31/05/2018,PBC0288592,6.60,N,N/A,N,N/A
Pendle Borough Council,Parks & Recreation Services,Premises Related Expense,Grounds : R & M : Day to Day : Routine,2101,LIGHTHOUSE TAI CHI,A0091248, 17/05/2018,PCO0288185,250.00,N,N/A,N,N/A
Pendle Borough Council,Information Services,Supplies and Services,Printing & Stationery,4301,SOFTCAT,A0091298, 24/05/2018,ITS0288341,352.23,N,N/A,N,N/A
Pendle Borough Council,Information Services,Supplies and Services,Printing & Stationery,4301,SOFTCAT,A0091298, 24/05/2018,ITS0288340,352.23,N,N/A,N,N/A
Pendle Borough Council,Housing Regeneration Services,Transfer Payments,Storage & Homelessness prevention,6104,FOUR STAR TAXIS,A0091315, 10/05/2018,HMR0288036,101.00,N,N/A,N,N/A
Pendle Borough Council,Housing Regeneration Services,Supplies and Services,Other Expenses,4705,REDACTED - PERESONAL DATA,A0091345, 10/05/2018,HMR0288037,150.00,N,N/A,N,N/A
Pendle Borough Council,Housing Regeneration Services,Supplies and Services,Other Expenses,4705,REDACTED - PERESONAL DATA,A0091345, 17/05/2018,HMR0288236,150.00,N,N/A,N,N/A
Pendle Borough Council,Chief Executives Policy Unit,Supplies and Services,Other Expenses,4705,BRADLEY BIG LOCAL COMMUNITY LAND TRUST,A0091381, 24/05/2018,COR0288334,71508.50,N,N/A,N,N/A
Pendle Borough Council,Engineering & Special Projects,Capital Costs,Capital : Payments,CD14,BRADLEY BIG LOCAL COMMUNITY LAND TRUST,A0091381, 31/05/2018,HED0288541,1250.00,N,N/A,N,N/A
Pendle Borough Council,Operational Services,,Fees Income : Non-VATable,9302,EURO LABELS PRINTERS LIMITED,A0091396, 10/05/2018,OPS0288078,533.24,N,N/A,N,N/A
Pendle Borough Council,Operational Services,Supplies and Services,Other Expenses,4705,CRONER-I LIMITED,A0091446, 24/05/2018,OPS0288414,405.66,N,N/A,N,N/A
Pendle Borough Council,Operational Services,Supplies and Services,Other Expenses,4705,CRONER-I LIMITED,A0091446, 24/05/2018,OPS0288414,557.79,N,N/A,N,N/A
Pendle Borough Council,Financial Services,Capital Costs,Capital : Payments,CD14,CORRECT FLOW ENGINEERING LTD,A0091456, 17/05/2018,AAS0288234,2950.00,N,N/A,N,N/A
Pendle Borough Council,Democratic & Legal Services,Supplies and Services,Other Expenses,4705,FLAGMAKERS,A0091459, 10/05/2018,DAL0288071,180.38,N,N/A,N,N/A
Pendle Borough Council,Economic Development & Tourism,Capital Costs,Capital : Payments,CD14,TAX OFFICE LIMITED,A0091463, 03/05/2018,REG0287771,3000.00,N,N/A,N,N/A
Pendle Borough Council,Property Services,,Personnel : Refundable Rental Deposits,B622,REDACTED - PERESONAL DATA,A0091464, 10/05/2018,EST0287936,1500.00,N,N/A,N,N/A
Pendle Borough Council,Economic Development & Tourism,Premises Related Expense,Grounds : R & M : Day to Day : Routine,2101,REDACTED - PERESONAL DATA,A0091465, 17/05/2018,REG0287951,98.40,N,N/A,N,N/A
Pendle Borough Council,Financial Services,,Fees Income : VATable,9202,REDACTED - PERESONAL DATA,A0091466, 03/05/2018,AAS0288019,8.33,N,N/A,N,N/A
Pendle Borough Council,Planning & Building Control,,Fees Income : Non-VATable,9302,MR S R FISHER T/A S R DESIGN,A0091467, 10/05/2018,PBC0288034,97.00,N,N/A,N,N/A
Pendle Borough Council,Housing Regeneration Services,Transfer Payments,Storage & Homelessness prevention,6104,TIME TO MOVE GB LIMITED,A0091469, 10/05/2018,HMR0288085,245.00,N,N/A,N,N/A
Pendle Borough Council,Housing Regeneration Services,Supplies and Services,Grants/Contributions,4739,GREENBYTE IT DISPOSAL LIMITED,A0091470, 10/05/2018,HMR0288087,2000.00,N,N/A,N,N/A
Pendle Borough Council,Planning & Building Control,Supplies and Services,Other Expenses,4705,LAND USE CONSULTANTS LIMITED,A0091471, 17/05/2018,PBC0288130,2499.75,N,N/A,N,N/A
Pendle Borough Council,Engineering & Special Projects,Premises Related Expense,Grounds : R & M : Day to Day : Routine,2101,NORTHERN MAGIC PHOTOGRAPHY,A0091472, 24/05/2018,HED0288298,150.00,N,N/A,N,N/A
Pendle Borough Council,Economic Development & Tourism,Supplies and Services,Miscellaneous : Other,4707,LONG RAKE SPAR CO LIMITED,A0091474, 31/05/2018,REG0288464,270.00,N,N/A,N,N/A
Pendle Borough Council,Democratic & Legal Services,Supplies and Services,Consultants Fees,4401,REDACTED - PERESONAL DATA,A0091475, 17/05/2018,DAL0288222,600.00,N,N/A,N,N/A
Pendle Borough Council,Democratic & Legal Services,Supplies and Services,Publicity & advertisement,4704,COMMUNITY SPORT LIMITED,A0091476, 17/05/2018,DAL0288224,1200.00,N,N/A,N,N/A
Pendle Borough Council,Housing Regeneration Services,Supplies and Services,Grants/Contributions,4739,REDACTED - PERESONAL DATA,A0091482, 24/05/2018,HMR0288391,1991.17,N,N/A,N,N/A
Pendle Borough Council,Financial Services,Capital Costs,Capital : Legal Fees,CD09,TIP TRAILER SERVICES UK LIMITED,A0091484, 22/05/2018,AAS0288473,6045.00,N,N/A,N,N/A
Pendle Borough Council,Democratic & Legal Services,Capital Costs,Capital : Legal Fees,CD09,HM COURTS & TRIBUNAL SERVICES,A0091487, 31/05/2018,DAL0288599,110.00,N,N/A,N,N/A
